Workbook

Sheet Kitchen
T1: Enter % | U1: Total Cost Ex Vat | V1: RRP Ex Vat | W1: Cash Margin | X1: Margin %
S2: My Furniture Discount | T2: 0.4 | U2: =SUM(U12:U453) -> 75 | V2: =D9/1.2 -> 75 | W2: =V2-U2 -> 0 | X2: =W2/V2 -> 0
S3: Add Retail Discount | T3: 0
A4: Range | B4: Customer Name
A5: Rigid | B5: Order Ref | S5: Additional Margin
A6: Home Delivery | E6: =VLOOKUP('Data Validation Lists'!B1,'Data Validation Lists'!A2:D147,4,FALSE) -> 0 | S6: Lights | T6: 0.3
S7: Carron Pheonix | T7: 0.3
B8: Qty | C8: RRP | D8: Total RRP | E8: Part Code | H8: Drw Boxes | S8: Other | T8: 0.3
D9: =SUM(D10:D453) -> 90 | G9: Rigid | H9: STD | I9: Pan
A11: Base Units
A13: 150 Hl Pull Out Towel Base | C13: =IF($E13="Not Available","",VLOOKUP(E13,Prices!A:F,6,FALSE)*(1-$T$3)) -> 298 | D13: =IF(B13="","",B13*C13) ->  | E13: =VLOOKUP(A13,Codes!$B:$S,'Data Validation Lists'!$B$1+2,FALSE) -> @TK-DYL-BP15TW | F13: =B13 -> 0 | G13: =IF(AND(B13>0,'Data Validation Lists'!$I$1=1),B13,"") ->  | S13: Furniture | U13: =IF(B13="","",SUM(D13/1.2)*(1-$T$2)/(1-$T$3)) -> 
A14: 150 HL Pull Out Tray Base | C14: =IF($E14="Not Available","",VLOOKUP(E14,Prices!A:F,6,FALSE)*(1-$T$3)) -> 295.99 | E14: =VLOOKUP(A14,Codes!$B:$S,'Data Validation Lists'!$B$1+2,FALSE) -> @TK-DYL-BP15TY | F14: 0 | G14: =IF(AND(B14>0,'Data Validation Lists'!$I$1=1),B14,"") ->  | S14: Furniture
A15: 300 HL Pull Out Tray Base | C15: =IF($E15="Not Available","",VLOOKUP(E15,Prices!A:F,6,FALSE)*(1-$T$3)) -> 472 | D15: =IF(B15="","",B15*C15) ->  | E15: =VLOOKUP(A15,Codes!$B:$S,'Data Validation Lists'!$B$1+2,FALSE) -> @TK-DYL-BP3TY | F15: =B15 -> 0 | G15: =IF(AND(B15>0,'Data Validation Lists'!$I$1=1),B15,"") ->  | S15: Furniture | U15: =IF(B15="","",SUM(D15/1.2)*(1-$T$2)/(1-$T$3)) -> 
A16: 150 HL Base Unit -SC Full | C16: =IF($E16="Not Available","",VLOOKUP(E16,Prices!A:F,6,FALSE)*(1-$T$3)) -> 164 | D16: =IF(B16="","",B16*C16) ->  | E16: =VLOOKUP(A16,Codes!$B:$S,'Data Validation Lists'!$B$1+2,FALSE) -> @TK-DYL-BH15S | F16: =B16 -> 0 | G16: =IF(AND(B16>0,'Data Validation Lists'!$I$1=1),B16,"") ->  | S16: Furniture | U16: =IF(B16="","",SUM(D16/1.2)*(1-$T$2)/(1-$T$3)) -> 
A17: 300 HL Base Unit -SC Full | C17: =IF($E17="Not Available","",VLOOKUP(E17,Prices!A:F,6,FALSE)*(1-$T$3)) -> 170 | D17: =IF(B17="","",B17*C17) ->  | E17: =VLOOKUP(A17,Codes!$B:$S,'Data Validation Lists'!$B$1+2,FALSE) -> @TK-DYL-BH30S | F17: =B17 -> 0 | G17: =IF(AND(B17>0,'Data Validation Lists'!$I$1=1),B17,"") ->  | S17: Furniture | U17: =IF(B17="","",SUM(D17/1.2)*(1-$T$2)/(1-$T$3)) -> 
A18: 300 HL Base Unit & Bin -SC Full | C18: =IF($E18="Not Available","",VLOOKUP(E18,Prices!A:F,6,FALSE)*(1-$T$3)) -> 322.01 | E18: =VLOOKUP(A18,Codes!$B:$S,'Data Validation Lists'!$B$1+2,FALSE) -> @TK-DYL-BH3BS | F18: 0 | G18: =IF(AND(B18>0,'Data Validation Lists'!$I$1=1),B18,"") ->  | S18: Furniture
A19: 350 HL Base Unit -SC Full | C19: =IF($E19="Not Available","",VLOOKUP(E19,Prices!A:F,6,FALSE)*(1-$T$3)) -> 173.02 | E19: =VLOOKUP(A19,Codes!$B:$S,'Data Validation Lists'!$B$1+2,FALSE) -> @TK-DYL-BH35S | F19: 0 | G19: =IF(AND(B19>0,'Data Validation Lists'!$I$1=1),B19,"") ->  | S19: Furniture
A20: 400 HL Base Unit -SC Full | C20: =IF($E20="Not Available","",VLOOKUP(E20,Prices!A:F,6,FALSE)*(1-$T$3)) -> 181.01 | E20: =VLOOKUP(A20,Codes!$B:$S,'Data Validation Lists'!$B$1+2,FALSE) -> @TK-DYL-BH40S | F20: 0 | G20: =IF(AND(B20>0,'Data Validation Lists'!$I$1=1),B20,"") ->  | S20: Furniture
A21: 400 HL Base Unit & Bin -SC Full | C21: =IF($E21="Not Available","",VLOOKUP(E21,Prices!A:F,6,FALSE)*(1-$T$3)) -> 388.01 | E21: =VLOOKUP(A21,Codes!$B:$S,'Data Validation Lists'!$B$1+2,FALSE) -> @TK-DYL-BH4BS | F21: 0 | G21: =IF(AND(B21>0,'Data Validation Lists'!$I$1=1),B21,"") ->  | S21: Furniture
A22: 450 HL Base Unit -SC Full | C22: =IF($E22="Not Available","",VLOOKUP(E22,Prices!A:F,6,FALSE)*(1-$T$3)) -> 188 | E22: =VLOOKUP(A22,Codes!$B:$S,'Data Validation Lists'!$B$1+2,FALSE) -> @TK-DYL-BH45S | F22: 0 | G22: =IF(AND(B22>0,'Data Validation Lists'!$I$1=1),B22,"") ->  | S22: Furniture
A23: 500 HL Base Unit -SC Full | C23: =IF($E23="Not Available","",VLOOKUP(E23,Prices!A:F,6,FALSE)*(1-$T$3)) -> 193.01 | E23: =VLOOKUP(A23,Codes!$B:$S,'Data Validation Lists'!$B$1+2,FALSE) -> @TK-DYL-BH50S | F23: 0 | G23: =IF(AND(B23>0,'Data Validation Lists'!$I$1=1),B23,"") ->  | S23: Furniture
A24: 600 HL Base Unit -SC Full | C24: =IF($E24="Not Available","",VLOOKUP(E24,Prices!A:F,6,FALSE)*(1-$T$3)) -> 209 | E24: =VLOOKUP(A24,Codes!$B:$S,'Data Validation Lists'!$B$1+2,FALSE) -> @TK-DYL-BH60S | F24: 0 | G24: =IF(AND(B24>0,'Data Validation Lists'!$I$1=1),B24,"") ->  | S24: Furniture
A25: 600 HL Base Unit & Bin -SC Full | C25: =IF($E25="Not Available","",VLOOKUP(E25,Prices!A:F,6,FALSE)*(1-$T$3)) -> 634.01 | E25: =VLOOKUP(A25,Codes!$B:$S,'Data Validation Lists'!$B$1+2,FALSE) -> @TK-DYL-BH6BS | F25: 0 | G25: =IF(AND(B25>0,'Data Validation Lists'!$I$1=1),B25,"") ->  | S25: Furniture
A26: 700 HL Base Unit -SC Full | C26: =IF($E26="Not Available","",VLOOKUP(E26,Prices!A:F,6,FALSE)*(1-$T$3)) -> 275.03 | E26: =VLOOKUP(A26,Codes!$B:$S,'Data Validation Lists'!$B$1+2,FALSE) -> @TK-DYL-BH70S | F26: 0 | G26: =IF(AND(B26>0,'Data Validation Lists'!$I$1=1),B26,"") ->  | S26: Furniture
A27: 800 HL Base Unit -SC Full | C27: =IF($E27="Not Available","",VLOOKUP(E27,Prices!A:F,6,FALSE)*(1-$T$3)) -> 290 | E27: =VLOOKUP(A27,Codes!$B:$S,'Data Validation Lists'!$B$1+2,FALSE) -> @TK-DYL-BH80S | F27: 0 | G27: =IF(AND(B27>0,'Data Validation Lists'!$I$1=1),B27,"") ->  | S27: Furniture
A28: 900 HL Base Unit -SC Full | C28: =IF($E28="Not Available","",VLOOKUP(E28,Prices!A:F,6,FALSE)*(1-$T$3)) -> 299 | E28: =VLOOKUP(A28,Codes!$B:$S,'Data Validation Lists'!$B$1+2,FALSE) -> @TK-DYL-BH90S | F28: 0 | G28: =IF(AND(B28>0,'Data Validation Lists'!$I$1=1),B28,"") ->  | S28: Furniture
A29: 1000 HL Base Unit -SC Full | C29: =IF($E29="Not Available","",VLOOKUP(E29,Prices!A:F,6,FALSE)*(1-$T$3)) -> 310.01 | E29: =VLOOKUP(A29,Codes!$B:$S,'Data Validation Lists'!$B$1+2,FALSE) -> @TK-DYL-BH100S | F29: 0 | G29: =IF(AND(B29>0,'Data Validation Lists'!$I$1=1),B29,"") ->  | S29: Furniture
F30: 0
A31: 800 HL Cnr Base (300 Door) -SC Full | C31: =IF($E31="Not Available","",VLOOKUP(E31,Prices!A:F,6,FALSE)*(1-$T$3)) -> 303.01 | D31: =IF(B31="","",B31*C31) ->  | E31: =VLOOKUP(A31,Codes!$B:$S,'Data Validation Lists'!$B$1+2,FALSE) -> @TK-DYL-BC83S | F31: 0 | G31: =IF(AND(B31>0,'Data Validation Lists'!$I$1=1),B31,"") ->  | S31: Furniture | U31: =IF(B31="","",SUM(D31/1.2)*(1-$T$2)/(1-$T$3)) -> 
A32: 800 HL Cnr Base Unit (400 Door) -SC Full | C32: =IF($E32="Not Available","",VLOOKUP(E32,Prices!A:F,6,FALSE)*(1-$T$3)) -> 310.01 | E32: =VLOOKUP(A32,Codes!$B:$S,'Data Validation Lists'!$B$1+2,FALSE) -> @TK-DYL-BC84S | F32: 0 | G32: =IF(AND(B32>0,'Data Validation Lists'!$I$1=1),B32,"") ->  | S32: Furniture
A33: 800 HL Cnr Base (450 Door) -SC Full | C33: =IF($E33="Not Available","",VLOOKUP(E33,Prices!A:F,6,FALSE)*(1-$T$3)) -> 313.01 | E33: =VLOOKUP(A33,Codes!$B:$S,'Data Validation Lists'!$B$1+2,FALSE) -> @TK-DYL-BC845S | F33: 0 | G33: =IF(AND(B33>0,'Data Validation Lists'!$I$1=1),B33,"") ->  | S33: Furniture
A34: 900 HL Cnr Base (450 Door) -SC Full | C34: =IF($E34="Not Available","",VLOOKUP(E34,Prices!A:F,6,FALSE)*(1-$T$3)) -> 316.01 | E34: =VLOOKUP(A34,Codes!$B:$S,'Data Validation Lists'!$B$1+2,FALSE) -> @TK-DYL-BC945S | F34: 0 | G34: =IF(AND(B34>0,'Data Validation Lists'!$I$1=1),B34,"") ->  | S34: Furniture
A35: 1000 HL Cnr Base (450 Door) -SC Full | C35: =IF($E35="Not Available","",VLOOKUP(E35,Prices!A:F,6,FALSE)*(1-$T$3)) -> 321.01 | E35: =VLOOKUP(A35,Codes!$B:$S,'Data Validation Lists'!$B$1+2,FALSE) -> @TK-DYL-BC145S | F35: 0 | G35: =IF(AND(B35>0,'Data Validation Lists'!$I$1=1),B35,"") ->  | S35: Furniture
A36: 1000 HL Cnr Base (500 Door) -SC Full | C36: =IF($E36="Not Available","",VLOOKUP(E36,Prices!A:F,6,FALSE)*(1-$T$3)) -> 324.01 | E36: =VLOOKUP(A36,Codes!$B:$S,'Data Validation Lists'!$B$1+2,FALSE) -> @TK-DYL-BC15S | F36: 0 | G36: =IF(AND(B36>0,'Data Validation Lists'!$I$1=1),B36,"") ->  | S36: Furniture
A37: 1000 HL Cnr Base (600 Door) -SC Full | C37: =IF($E37="Not Available","",VLOOKUP(E37,Prices!A:F,6,FALSE)*(1-$T$3)) -> 329.02 | E37: =VLOOKUP(A37,Codes!$B:$S,'Data Validation Lists'!$B$1+2,FALSE) -> @TK-DYL-BC16S | F37: 0 | G37: =IF(AND(B37>0,'Data Validation Lists'!$I$1=1),B37,"") ->  | S37: Furniture
A38: Le Mans Cnr Base 1000 - 500 LH - SC Hng | C38: =IF($E38="Not Available","",VLOOKUP(E38,Prices!A:F,6,FALSE)*(1-$T$3)) -> 1005.01 | E38: =VLOOKUP(A38,Codes!$B:$S,'Data Validation Lists'!$B$1+2,FALSE) -> @TK-DYL-BCL15L | F38: 0 | G38: =IF(AND(B38>0,'Data Validation Lists'!$I$1=1),B38,"") ->  | S38: Furniture
A39: Le Mans Cnr Base 1000 - 500 RH - SC Hng | C39: =IF($E39="Not Available","",VLOOKUP(E39,Prices!A:F,6,FALSE)*(1-$T$3)) -> 1005.01 | E39: =VLOOKUP(A39,Codes!$B:$S,'Data Validation Lists'!$B$1+2,FALSE) -> @TK-DYL-BCL15R | F39: 0 | G39: =IF(AND(B39>0,'Data Validation Lists'!$I$1=1),B39,"") ->  | S39: Furniture
A40: Le Mans Cnr Base 1000 - 600 LH - SC Hng | C40: =IF($E40="Not Available","",VLOOKUP(E40,Prices!A:F,6,FALSE)*(1-$T$3)) -> 1059.01 | E40: =VLOOKUP(A40,Codes!$B:$S,'Data Validation Lists'!$B$1+2,FALSE) -> @TK-DYL-BCL16L | F40: 0 | G40: =IF(AND(B40>0,'Data Validation Lists'!$I$1=1),B40,"") ->  | S40: Furniture
A41: Le Mans Cnr Base 1000 - 600 RH - SC Hng | C41: =IF($E41="Not Available","",VLOOKUP(E41,Prices!A:F,6,FALSE)*(1-$T$3)) -> 1059.01 | E41: =VLOOKUP(A41,Codes!$B:$S,'Data Validation Lists'!$B$1+2,FALSE) -> @TK-DYL-BCL16R | F41: 0 | G41: =IF(AND(B41>0,'Data Validation Lists'!$I$1=1),B41,"") ->  | S41: Furniture
A42: Le Mans Soft Close Attachment LH | C42: =IF($E42="Not Available","",VLOOKUP(E42,Prices!A:F,6,FALSE)*(1-$T$3)) -> 39 | E42: =VLOOKUP(A42,Codes!$B:$S,'Data Validation Lists'!$B$1+2,FALSE) -> TK-ST-LMSCL | F42: 0 | S42: Furniture | U42: =IF(B42="","",SUM(D42/1.2)*(1-$T$2)/(1-$T$3)) -> 
A43: Le Mans Soft Close Attachment RH | C43: =IF($E43="Not Available","",VLOOKUP(E43,Prices!A:F,6,FALSE)*(1-$T$3)) -> 39 | E43: =VLOOKUP(A43,Codes!$B:$S,'Data Validation Lists'!$B$1+2,FALSE) -> TK-ST-LMSCR | F43: 0 | S43: Furniture
A44: Cnr Opt Base Unit 800 - 400 door-SC Full | C44: =IF($E44="Not Available","",VLOOKUP(E44,Prices!A:F,6,FALSE)*(1-$T$3)) -> 863 | E44: =VLOOKUP(A44,Codes!$B:$S,'Data Validation Lists'!$B$1+2,FALSE) -> @TK-DYL-BCO84S | F44: 0 | G44: =IF(AND(B44>0,'Data Validation Lists'!$I$1=1),B44,"") ->  | S44: Furniture
A45: Cnr Opt Base Unit 900 - 450 door - SC Fu | C45: =IF($E45="Not Available","",VLOOKUP(E45,Prices!A:F,6,FALSE)*(1-$T$3)) -> 869 | E45: =VLOOKUP(A45,Codes!$B:$S,'Data Validation Lists'!$B$1+2,FALSE) -> @TK-DYL-BCO945S | F45: =B45 -> 0 | G45: =IF(AND(B45>0,'Data Validation Lists'!$I$1=1),B45,"") ->  | S45: Furniture
A46: Cnr Opt Base Unit 1000-450 door-SC Full | C46: =IF($E46="Not Available","",VLOOKUP(E46,Prices!A:F,6,FALSE)*(1-$T$3)) -> 874.01 | E46: =VLOOKUP(A46,Codes!$B:$S,'Data Validation Lists'!$B$1+2,FALSE) -> @TK-DYL-BCO145S | F46: 0 | G46: =IF(AND(B46>0,'Data Validation Lists'!$I$1=1),B46,"") ->  | S46: Furniture
A47: Cnr Opt Base Unit 1000-500 door-SC Full | C47: =IF($E47="Not Available","",VLOOKUP(E47,Prices!A:F,6,FALSE)*(1-$T$3)) -> 877.01 | E47: =VLOOKUP(A47,Codes!$B:$S,'Data Validation Lists'!$B$1+2,FALSE) -> @TK-DYL-BCO15S | F47: 0 | G47: =IF(AND(B47>0,'Data Validation Lists'!$I$1=1),B47,"") ->  | S47: Furniture
A48: Cnr Opt Base Unit 1000-600 door-SC Full | C48: =IF($E48="Not Available","",VLOOKUP(E48,Prices!A:F,6,FALSE)*(1-$T$3)) -> 882.01 | E48: =VLOOKUP(A48,Codes!$B:$S,'Data Validation Lists'!$B$1+2,FALSE) -> @TK-DYL-BCO16S | F48: 0 | G48: =IF(AND(B48>0,'Data Validation Lists'!$I$1=1),B48,"") ->  | S48: Furniture
A49: 950 HL Cnr L Base -SC Full | C49: =IF($E49="Not Available","",VLOOKUP(E49,Prices!A:F,6,FALSE)*(1-$T$3)) -> 445.01 | E49: =VLOOKUP(A49,Codes!$B:$S,'Data Validation Lists'!$B$1+2,FALSE) -> @TK-DYL-BCL9S | F49: 0 | S49: Furniture
A50: 950 HL 3/4 Carousel Cnr L Base - SC Full | C50: =IF($E50="Not Available","",VLOOKUP(E50,Prices!A:F,6,FALSE)*(1-$T$3)) -> 849.01 | E50: =VLOOKUP(A50,Codes!$B:$S,'Data Validation Lists'!$B$1+2,FALSE) -> @TK-DYL-BCLC9S | F50: 0 | S50: Furniture
A52: Magic Cnr Base Unit 1000 - 500 LH | C52: =IF($E52="Not Available","",VLOOKUP(E52,Prices!A:F,6,FALSE)*(1-$T$3)) -> 1024.01 | D52: =IF(B52="","",B52*C52) ->  | E52: =VLOOKUP(A52,Codes!$B:$S,'Data Validation Lists'!$B$1+2,FALSE) -> @TK-DYL-BCM15L | F52: 0 | G52: =IF(AND(B52>0,'Data Validation Lists'!$I$1=1),B52,"") ->  | S52: Furniture | U52: =IF(B52="","",SUM(D52/1.2)*(1-$T$2)/(1-$T$3)) -> 
A53: Magic Cnr Base Unit 1000 - 500 RH | C53: =IF($E53="Not Available","",VLOOKUP(E53,Prices!A:F,6,FALSE)*(1-$T$3)) -> 1024.01 | E53: =VLOOKUP(A53,Codes!$B:$S,'Data Validation Lists'!$B$1+2,FALSE) -> @TK-DYL-BCM15R | F53: 0 | G53: =IF(AND(B53>0,'Data Validation Lists'!$I$1=1),B53,"") ->  | S53: Furniture
A54: Magic Cnr Base Unit 1000 - 600 LH | C54: =IF($E54="Not Available","",VLOOKUP(E54,Prices!A:F,6,FALSE)*(1-$T$3)) -> 1029.01 | E54: =VLOOKUP(A54,Codes!$B:$S,'Data Validation Lists'!$B$1+2,FALSE) -> @TK-DYL-BCM16L | F54: 0 | G54: =IF(AND(B54>0,'Data Validation Lists'!$I$1=1),B54,"") ->  | S54: Furniture
A55: Magic Cnr Base Unit 1000 - 600 RH | C55: =IF($E55="Not Available","",VLOOKUP(E55,Prices!A:F,6,FALSE)*(1-$T$3)) -> 1029.01 | E55: =VLOOKUP(A55,Codes!$B:$S,'Data Validation Lists'!$B$1+2,FALSE) -> @TK-DYL-BCM16R | F55: 0 | G55: =IF(AND(B55>0,'Data Validation Lists'!$I$1=1),B55,"") ->  | S55: Furniture
F56: 0 | G56: =IF(AND(B56>0,'Data Validation Lists'!$I$1=1),B56,"") -> 
A57: 600 Belfast Sink Unit (450mm High) | C57: =IF($E57="Not Available","",VLOOKUP(E57,Prices!A:F,6,FALSE)*(1-$T$3)) -> 191 | D57: =IF(B57="","",B57*C57) ->  | E57: =VLOOKUP(A57,Codes!$B:$S,'Data Validation Lists'!$B$1+2,FALSE) -> @TK-DYL-BSU6450S | F57: 0 | G57: =IF(AND(B57>0,'Data Validation Lists'!$I$1=1),B57,"") ->  | S57: Furniture | U57: =IF(B57="","",SUM(D57/1.2)*(1-$T$2)/(1-$T$3)) -> 
A58: 600 Belfast Sink Unit (495mm High) | C58: =IF($E58="Not Available","",VLOOKUP(E58,Prices!A:F,6,FALSE)*(1-$T$3)) -> 198 | D58: =IF(B58="","",B58*C58) ->  | E58: =VLOOKUP(A58,Codes!$B:$S,'Data Validation Lists'!$B$1+2,FALSE) -> @TK-DYL-BSU6495S | F58: =B58 -> 0 | G58: =IF(AND(B58>0,'Data Validation Lists'!$I$1=1),B58,"") ->  | S58: Furniture | U58: =IF(B58="","",SUM(D58/1.2)*(1-$T$2)/(1-$T$3)) -> 
F59: 0 | G59: =IF(AND(B59>0,'Data Validation Lists'!$I$1=1),B59,"") -> 
A60: 500 4 Drw Base Unit -SC Full | C60: =IF($E60="Not Available","",VLOOKUP(E60,Prices!A:F,6,FALSE)*(1-$T$3)) -> 448.01 | E60: =VLOOKUP(A60,Codes!$B:$S,'Data Validation Lists'!$B$1+2,FALSE) -> @TK-DYL-BD54S | F60: 0 | G60: =IF(AND(B60>0,'Data Validation Lists'!$I$1=1),B60,"") ->  | S60: Furniture
A61: 500 3 Drw Base Unit -SC Full | C61: =IF($E61="Not Available","",VLOOKUP(E61,Prices!A:F,6,FALSE)*(1-$T$3)) -> 384.01 | E61: =VLOOKUP(A61,Codes!$B:$S,'Data Validation Lists'!$B$1+2,FALSE) -> @TK-DYL-BD53S | F61: 0 | G61: =IF(AND(B61>0,'Data Validation Lists'!$I$1=1),B61,"") ->  | S61: Furniture
A62: 600 3 Drw Base Unit -SC Full | C62: =IF($E62="Not Available","",VLOOKUP(E62,Prices!A:F,6,FALSE)*(1-$T$3)) -> 403.98 | E62: =VLOOKUP(A62,Codes!$B:$S,'Data Validation Lists'!$B$1+2,FALSE) -> @TK-DYL-BD63S | F62: 0 | G62: =IF(AND(B62>0,'Data Validation Lists'!$I$1=1),B62,"") ->  | S62: Furniture
A63: 800 3 Drw Base Unit -SC Full | C63: =IF($E63="Not Available","",VLOOKUP(E63,Prices!A:F,6,FALSE)*(1-$T$3)) -> 484 | E63: =VLOOKUP(A63,Codes!$B:$S,'Data Validation Lists'!$B$1+2,FALSE) -> @TK-DYL-BD83S | F63: 0 | G63: =IF(AND(B63>0,'Data Validation Lists'!$I$1=1),B63,"") ->  | S63: Furniture
A64: 900 3 Drw Base Unit -SC Full | C64: =IF($E64="Not Available","",VLOOKUP(E64,Prices!A:F,6,FALSE)*(1-$T$3)) -> 490.99 | E64: =VLOOKUP(A64,Codes!$B:$S,'Data Validation Lists'!$B$1+2,FALSE) -> @TK-DYL-BD93S | F64: 0 | G64: =IF(AND(B64>0,'Data Validation Lists'!$I$1=1),B64,"") ->  | S64: Furniture
A65: 1000 3 Drw Base Unit -SC Full | C65: =IF($E65="Not Available","",VLOOKUP(E65,Prices!A:F,6,FALSE)*(1-$T$3)) -> 524.99 | E65: =VLOOKUP(A65,Codes!$B:$S,'Data Validation Lists'!$B$1+2,FALSE) -> @TK-DYL-BD13S | F65: 0 | G65: =IF(AND(B65>0,'Data Validation Lists'!$I$1=1),B65,"") ->  | S65: Furniture
F66: 0 | G66: =IF(AND(B66>0,'Data Validation Lists'!$I$1=1),B66,"") -> 
A67: 600 2 Pan Drw Unit -SC Full | C67: =IF($E67="Not Available","",VLOOKUP(E67,Prices!A:F,6,FALSE)*(1-$T$3)) -> 325.99 | D67: =IF(B67="","",B67*C67) ->  | E67: =VLOOKUP(A67,Codes!$B:$S,'Data Validation Lists'!$B$1+2,FALSE) -> @TK-DYL-BD62S | F67: 0 | G67: =IF(AND(B67>0,'Data Validation Lists'!$I$1=1),B67,"") ->  | S67: Furniture
A68: 900 2 Pan Drw Unit -SC Full | C68: =IF($E68="Not Available","",VLOOKUP(E68,Prices!A:F,6,FALSE)*(1-$T$3)) -> 401 | E68: =VLOOKUP(A68,Codes!$B:$S,'Data Validation Lists'!$B$1+2,FALSE) -> @TK-DYL-BD92S | F68: 0 | G68: =IF(AND(B68>0,'Data Validation Lists'!$I$1=1),B68,"") ->  | S68: Furniture
F69: 0 | G69: =IF(AND(B69>0,'Data Validation Lists'!$I$1=1),B69,"") ->  | S69: Furniture | U69: =IF(B69="","",SUM(D69/1.2)*(1-$T$2)/(1-$T$3)) -> 
A70: Wall Units | F70: 0 | G70: =IF(AND(B70>0,'Data Validation Lists'!$I$1=1),B70,"") ->  | S70: Furniture
F71: 0 | G71: =IF(AND(B71>0,'Data Validation Lists'!$I$1=1),B71,"") ->  | S71: Furniture
A72: 150 Wall Unit - SC Full | C72: =IF($E72="Not Available","",VLOOKUP(E72,Prices!A:F,6,FALSE)*(1-$T$3)) -> 150.01 | D72: =IF(B72="","",B72*C72) ->  | E72: =VLOOKUP(A72,Codes!$B:$S,'Data Validation Lists'!$B$1+2,FALSE) -> @TK-DYL-W15S | F72: 0 | G72: =IF(AND(B72>0,'Data Validation Lists'!$I$1=1),B72,"") ->  | S72: Furniture
A73: 300 Wall Unit -SC Full | C73: =IF($E73="Not Available","",VLOOKUP(E73,Prices!A:F,6,FALSE)*(1-$T$3)) -> 156.01 | E73: =VLOOKUP(A73,Codes!$B:$S,'Data Validation Lists'!$B$1+2,FALSE) -> @TK-DYL-W30S | F73: 0 | G73: =IF(AND(B73>0,'Data Validation Lists'!$I$1=1),B73,"") ->  | S73: Furniture
A74: 350 Wall Unit -SC Full | C74: =IF($E74="Not Available","",VLOOKUP(E74,Prices!A:F,6,FALSE)*(1-$T$3)) -> 160.01 | E74: =VLOOKUP(A74,Codes!$B:$S,'Data Validation Lists'!$B$1+2,FALSE) -> @TK-DYL-W35S | F74: 0 | G74: =IF(AND(B74>0,'Data Validation Lists'!$I$1=1),B74,"") ->  | S74: Furniture
A75: 400 Wall Unit -SC Full | C75: =IF($E75="Not Available","",VLOOKUP(E75,Prices!A:F,6,FALSE)*(1-$T$3)) -> 167 | E75: =VLOOKUP(A75,Codes!$B:$S,'Data Validation Lists'!$B$1+2,FALSE) -> @TK-DYL-W40S | F75: 0 | G75: =IF(AND(B75>0,'Data Validation Lists'!$I$1=1),B75,"") ->  | S75: Furniture
A76: 450 Wall Unit -SC Full | C76: =IF($E76="Not Available","",VLOOKUP(E76,Prices!A:F,6,FALSE)*(1-$T$3)) -> 174 | E76: =VLOOKUP(A76,Codes!$B:$S,'Data Validation Lists'!$B$1+2,FALSE) -> @TK-DYL-W45S | F76: 0 | G76: =IF(AND(B76>0,'Data Validation Lists'!$I$1=1),B76,"") ->  | S76: Furniture
A77: 500 Wall Unit -SC Full | C77: =IF($E77="Not Available","",VLOOKUP(E77,Prices!A:F,6,FALSE)*(1-$T$3)) -> 182 | E77: =VLOOKUP(A77,Codes!$B:$S,'Data Validation Lists'!$B$1+2,FALSE) -> @TK-DYL-W50S | F77: 0 | G77: =IF(AND(B77>0,'Data Validation Lists'!$I$1=1),B77,"") ->  | S77: Furniture
A78: 600 Wall Unit -SC Full | C78: =IF($E78="Not Available","",VLOOKUP(E78,Prices!A:F,6,FALSE)*(1-$T$3)) -> 192.01 | E78: =VLOOKUP(A78,Codes!$B:$S,'Data Validation Lists'!$B$1+2,FALSE) -> @TK-DYL-W60S | F78: 0 | G78: =IF(AND(B78>0,'Data Validation Lists'!$I$1=1),B78,"") ->  | S78: Furniture
A79: 700 Wall Unit -SC Full | C79: =IF($E79="Not Available","",VLOOKUP(E79,Prices!A:F,6,FALSE)*(1-$T$3)) -> 261.02 | E79: =VLOOKUP(A79,Codes!$B:$S,'Data Validation Lists'!$B$1+2,FALSE) -> @TK-DYL-W70S | F79: 0 | G79: =IF(AND(B79>0,'Data Validation Lists'!$I$1=1),B79,"") ->  | S79: Furniture
A80: 800 Wall Unit -SC Full | C80: =IF($E80="Not Available","",VLOOKUP(E80,Prices!A:F,6,FALSE)*(1-$T$3)) -> 278 | E80: =VLOOKUP(A80,Codes!$B:$S,'Data Validation Lists'!$B$1+2,FALSE) -> @TK-DYL-W80S | F80: 0 | G80: =IF(AND(B80>0,'Data Validation Lists'!$I$1=1),B80,"") ->  | S80: Furniture
A81: 900 Wall Unit -SC Full | C81: =IF($E81="Not Available","",VLOOKUP(E81,Prices!A:F,6,FALSE)*(1-$T$3)) -> 287 | E81: =VLOOKUP(A81,Codes!$B:$S,'Data Validation Lists'!$B$1+2,FALSE) -> @TK-DYL-W90S | F81: 0 | G81: =IF(AND(B81>0,'Data Validation Lists'!$I$1=1),B81,"") ->  | S81: Furniture
A82: 1000 Wall Unit -SC Full | C82: =IF($E82="Not Available","",VLOOKUP(E82,Prices!A:F,6,FALSE)*(1-$T$3)) -> 297.01 | D82: =IF(B82="","",B82*C82) ->  | E82: =VLOOKUP(A82,Codes!$B:$S,'Data Validation Lists'!$B$1+2,FALSE) -> @TK-DYL-W100S | F82: =B82 -> 0 | G82: =IF(AND(B82>0,'Data Validation Lists'!$I$1=1),B82,"") ->  | S82: Furniture | U82: =IF(B82="","",SUM(D82/1.2)*(1-$T$2)/(1-$T$3)) -> 
F83: 0 | G83: =IF(AND(B83>0,'Data Validation Lists'!$I$1=1),B83,"") -> 
A84: 300 Wall Unit -SC Full-900mm high | C84: =IF($E84="Not Available","",VLOOKUP(E84,Prices!A:F,6,FALSE)*(1-$T$3)) -> 176 | E84: =VLOOKUP(A84,Codes!$B:$S,'Data Validation Lists'!$B$1+2,FALSE) -> @TK-DYL-TW30S | F84: =B84 -> 0 | G84: =IF(AND(B84>0,'Data Validation Lists'!$I$1=1),B84,"") -> 
A85: 400 Wall Unit -SC Full-900mm high | C85: =IF($E85="Not Available","",VLOOKUP(E85,Prices!A:F,6,FALSE)*(1-$T$3)) -> 180 | E85: =VLOOKUP(A85,Codes!$B:$S,'Data Validation Lists'!$B$1+2,FALSE) -> @TK-DYL-TW40S | F85: 0 | G85: =IF(AND(B85>0,'Data Validation Lists'!$I$1=1),B85,"") -> 
A86: 450 Wall Unit -SC Full-900mm high | C86: =IF($E86="Not Available","",VLOOKUP(E86,Prices!A:F,6,FALSE)*(1-$T$3)) -> 194 | E86: =VLOOKUP(A86,Codes!$B:$S,'Data Validation Lists'!$B$1+2,FALSE) -> @TK-DYL-TW45S | F86: 0 | G86: =IF(AND(B86>0,'Data Validation Lists'!$I$1=1),B86,"") -> 
A87: 500 Wall Unit -SC Full-900mm high | C87: =IF($E87="Not Available","",VLOOKUP(E87,Prices!A:F,6,FALSE)*(1-$T$3)) -> 202 | E87: =VLOOKUP(A87,Codes!$B:$S,'Data Validation Lists'!$B$1+2,FALSE) -> @TK-DYL-TW50S | F87: 0 | G87: =IF(AND(B87>0,'Data Validation Lists'!$I$1=1),B87,"") -> 
A88: 600 Wall Unit -SC Full-900mm high | C88: =IF($E88="Not Available","",VLOOKUP(E88,Prices!A:F,6,FALSE)*(1-$T$3)) -> 218 | E88: =VLOOKUP(A88,Codes!$B:$S,'Data Validation Lists'!$B$1+2,FALSE) -> @TK-DYL-TW60S | F88: 0 | G88: =IF(AND(B88>0,'Data Validation Lists'!$I$1=1),B88,"") -> 
A89: 800 Wall Unit -SC Full-900mm high | C89: =IF($E89="Not Available","",VLOOKUP(E89,Prices!A:F,6,FALSE)*(1-$T$3)) -> 308 | E89: =VLOOKUP(A89,Codes!$B:$S,'Data Validation Lists'!$B$1+2,FALSE) -> @TK-DYL-TW80S | F89: 0 | G89: =IF(AND(B89>0,'Data Validation Lists'!$I$1=1),B89,"") -> 
A90: 900 Wall Unit -SC Full-900mm high | C90: =IF($E90="Not Available","",VLOOKUP(E90,Prices!A:F,6,FALSE)*(1-$T$3)) -> 317 | E90: =VLOOKUP(A90,Codes!$B:$S,'Data Validation Lists'!$B$1+2,FALSE) -> @TK-DYL-TW90S | F90: 0 | G90: =IF(AND(B90>0,'Data Validation Lists'!$I$1=1),B90,"") -> 
A91: 1000 Wall Unit -SC Full-900mm high | C91: =IF($E91="Not Available","",VLOOKUP(E91,Prices!A:F,6,FALSE)*(1-$T$3)) -> 327 | E91: =VLOOKUP(A91,Codes!$B:$S,'Data Validation Lists'!$B$1+2,FALSE) -> @TK-DYL-TW100S | F91: 0 | G91: =IF(AND(B91>0,'Data Validation Lists'!$I$1=1),B91,"") -> 
A93: 600 Cnr Wall Unit -SC Full | C93: =IF($E93="Not Available","",VLOOKUP(E93,Prices!A:F,6,FALSE)*(1-$T$3)) -> 210.01 | D93: =IF(B93="","",B93*C93) ->  | E93: =VLOOKUP(A93,Codes!$B:$S,'Data Validation Lists'!$B$1+2,FALSE) -> @TK-DYL-WC6S | F93: 0 | G93: =IF(AND(B93>0,'Data Validation Lists'!$I$1=1),B93,"") ->  | S93: Furniture
A94: 900 Cnr Wall Unit -SC Full | C94: =IF($E94="Not Available","",VLOOKUP(E94,Prices!A:F,6,FALSE)*(1-$T$3)) -> 260 | E94: =VLOOKUP(A94,Codes!$B:$S,'Data Validation Lists'!$B$1+2,FALSE) -> @TK-DYL-WC9S | F94: 0 | G94: =IF(AND(B94>0,'Data Validation Lists'!$I$1=1),B94,"") ->  | S94: Furniture
A95: 650 L Cnr Wall Unit -SC Full | C95: =IF($E95="Not Available","",VLOOKUP(E95,Prices!A:F,6,FALSE)*(1-$T$3)) -> 347 | E95: =VLOOKUP(A95,Codes!$B:$S,'Data Validation Lists'!$B$1+2,FALSE) -> @TK-DYL-WCL65S | F95: 0 | G95: =IF(AND(B95>0,'Data Validation Lists'!$I$1=1),B95,"") ->  | S95: Furniture
A97: 600 Wall Corner Unit -SC Full-900mm high | C97: =IF($E97="Not Available","",VLOOKUP(E97,Prices!A:F,6,FALSE)*(1-$T$3)) -> 233 | E97: =VLOOKUP(A97,Codes!$B:$S,'Data Validation Lists'!$B$1+2,FALSE) -> @TK-DYL-TWC6S | F97: =B97 -> 0 | G97: =IF(AND(B97>0,'Data Validation Lists'!$I$1=1),B97,"") -> 
A98: 900 Wall Corner Unit -SC Full-900mm high | C98: =IF($E98="Not Available","",VLOOKUP(E98,Prices!A:F,6,FALSE)*(1-$T$3)) -> 289 | E98: =VLOOKUP(A98,Codes!$B:$S,'Data Validation Lists'!$B$1+2,FALSE) -> @TK-DYL-TWC9S | F98: 0 | G98: =IF(AND(B98>0,'Data Validation Lists'!$I$1=1),B98,"") -> 
F99: 0
A100: 600 Wall Microwave Unit-SC Full | C100: =IF($E100="Not Available","",VLOOKUP(E100,Prices!A:F,6,FALSE)*(1-$T$3)) -> 205.01 | D100: =IF(B100="","",B100*C100) ->  | E100: =VLOOKUP(A100,Codes!$B:$S,'Data Validation Lists'!$B$1+2,FALSE) -> @TK-DYL-WM60S | F100: 0 | G100: =IF(AND(B100>0,'Data Validation Lists'!$I$1=1),B100,"") ->  | S100: Furniture
A101: 600 Boiler Housing - SC Full | C101: =IF($E101="Not Available","",VLOOKUP(E101,Prices!A:F,6,FALSE)*(1-$T$3)) -> 228.01 | E101: =VLOOKUP(A101,Codes!$B:$S,'Data Validation Lists'!$B$1+2,FALSE) -> @TK-DYL-WBHUS | F101: 0 | S101: Furniture
F102: 0 | G102: =IF(AND(B102>0,'Data Validation Lists'!$I$1=1),B102,"") -> 
A103: 600 Bifold Unit | C103: =IF($E103="Not Available","",VLOOKUP(E103,Prices!A:F,6,FALSE)*(1-$T$3)) -> 469 | D103: =IF(B103="","",B103*C103) ->  | E103: =VLOOKUP(A103,Codes!$B:$S,'Data Validation Lists'!$B$1+2,FALSE) -> @TK-DYL-WBI60 | F103: 0 | G103: =IF(AND(B103>0,'Data Validation Lists'!$I$1=1),B103,"") ->  | S103: Furniture
A104: 900 Bifold Unit | C104: =IF($E104="Not Available","",VLOOKUP(E104,Prices!A:F,6,FALSE)*(1-$T$3)) -> 538 | E104: =VLOOKUP(A104,Codes!$B:$S,'Data Validation Lists'!$B$1+2,FALSE) -> @TK-DYL-WBI90 | F104: 0 | G104: =IF(AND(B104>0,'Data Validation Lists'!$I$1=1),B104,"") ->  | S104: Furniture
A105: 600 Bridging Unit -SC Full | C105: =IF($E105="Not Available","",VLOOKUP(E105,Prices!A:F,6,FALSE)*(1-$T$3)) -> 159 | E105: =VLOOKUP(A105,Codes!$B:$S,'Data Validation Lists'!$B$1+2,FALSE) -> @TK-DYL-WB62S | F105: 0 | G105: =IF(AND(B105>0,'Data Validation Lists'!$I$1=1),B105,"") ->  | S105: Furniture
A106: 800 Bridging Unit -SC Full | C106: =IF($E106="Not Available","",VLOOKUP(E106,Prices!A:F,6,FALSE)*(1-$T$3)) -> 197 | E106: =VLOOKUP(A106,Codes!$B:$S,'Data Validation Lists'!$B$1+2,FALSE) -> @TK-DYL-WB82S | F106: 0 | G106: =IF(AND(B106>0,'Data Validation Lists'!$I$1=1),B106,"") ->  | S106: Furniture
A107: 900 Bridging Unit -SC Full | C107: =IF($E107="Not Available","",VLOOKUP(E107,Prices!A:F,6,FALSE)*(1-$T$3)) -> 206 | E107: =VLOOKUP(A107,Codes!$B:$S,'Data Validation Lists'!$B$1+2,FALSE) -> @TK-DYL-WB92S | F107: 0 | G107: =IF(AND(B107>0,'Data Validation Lists'!$I$1=1),B107,"") ->  | S107: Furniture
A108: 1000 Bridging Unit -SC Full | C108: =IF($E108="Not Available","",VLOOKUP(E108,Prices!A:F,6,FALSE)*(1-$T$3)) -> 216 | E108: =VLOOKUP(A108,Codes!$B:$S,'Data Validation Lists'!$B$1+2,FALSE) -> @TK-DYL-WB12S | F108: 0 | G108: =IF(AND(B108>0,'Data Validation Lists'!$I$1=1),B108,"") ->  | S108: Furniture
F109: 0
A110: Appliance Housings - Complementary 2140mm Side Panels | F110: =B110 -> 0 | S110: Furniture | U110: =IF(B110="","",SUM(D110/1.2)*(1-$T$2)/(1-$T$3)) -> 
F111: 0 | S111: Furniture
A112: 600 50/50 FF Housing Unit - Comp | C112: =IF($E112="Not Available","",VLOOKUP(E112,Prices!A:F,6,FALSE)*(1-$T$3)) -> 636.98 | D112: =IF(B112="","",B112*C112) ->  | E112: =VLOOKUP(A112,Codes!$B:$S,'Data Validation Lists'!$B$1+2,FALSE) -> @TK-DYL-AH-F55 | F112: 0 | S112: Furniture
A113: 600 70/30 FF Housing Unit - Comp | C113: =IF($E113="Not Available","",VLOOKUP(E113,Prices!A:F,6,FALSE)*(1-$T$3)) -> 626.99 | E113: =VLOOKUP(A113,Codes!$B:$S,'Data Validation Lists'!$B$1+2,FALSE) -> @TK-DYL-AH-F73 | F113: 0 | S113: Furniture
F114: 0
A115: 600 Dble Oven Housing - Comp | C115: =IF($E115="Not Available","",VLOOKUP(E115,Prices!A:F,6,FALSE)*(1-$T$3)) -> 660 | D115: =IF(B115="","",B115*C115) ->  | E115: =VLOOKUP(A115,Codes!$B:$S,'Data Validation Lists'!$B$1+2,FALSE) -> @TK-DYL-AH-DOS | F115: 0 | S115: Furniture | U115: =IF(B115="","",SUM(D115/1.2)*(1-$T$2)/(1-$T$3)) -> 
A116: 600 Dble Oven & 2 Drws - Comp | C116: =IF($E116="Not Available","",VLOOKUP(E116,Prices!A:F,6,FALSE)*(1-$T$3)) -> 776.98 | E116: =VLOOKUP(A116,Codes!$B:$S,'Data Validation Lists'!$B$1+2,FALSE) -> @TK-DYL-AH-DO2DS | F116: 0 | S116: Furniture
A117: 600 Double Oven & MW unit - Comp | C117: =IF($E117="Not Available","",VLOOKUP(E117,Prices!A:F,6,FALSE)*(1-$T$3)) -> 739.98 | E117: =VLOOKUP(A117,Codes!$B:$S,'Data Validation Lists'!$B$1+2,FALSE) -> @TK-DYL-AH-DMWS | F117: 0 | S117: Furniture
F118: 0 | S118: Furniture
A119: 600 Single Oven Unit - Comp | C119: =IF($E119="Not Available","",VLOOKUP(E119,Prices!A:F,6,FALSE)*(1-$T$3)) ->  | D119: =IF(B119="","",B119*C119) ->  | E119: =VLOOKUP(A119,Codes!$B:$S,'Data Validation Lists'!$B$1+2,FALSE) -> Not Available | F119: =B119 -> 0 | S119: Furniture | U119: =IF(B119="","",SUM(D119/1.2)*(1-$T$2)/(1-$T$3)) -> 
A120: 600 Single Oven + 1 Drw Unit - Comp | C120: =IF($E120="Not Available","",VLOOKUP(E120,Prices!A:F,6,FALSE)*(1-$T$3)) -> 748 | D120: =IF(B120="","",B120*C120) ->  | E120: =VLOOKUP(A120,Codes!$B:$S,'Data Validation Lists'!$B$1+2,FALSE) -> @TK-DYL-AH-SO1DS | F120: 0 | S120: Furniture
A121: 600 Single Oven + 2 Drws Unit - Comp | C121: =IF($E121="Not Available","",VLOOKUP(E121,Prices!A:F,6,FALSE)*(1-$T$3)) -> 789.98 | E121: =VLOOKUP(A121,Codes!$B:$S,'Data Validation Lists'!$B$1+2,FALSE) -> @TK-DYL-AH-SO2DS | F121: 0 | S121: Furniture
A122: 600 Single Oven + 3 Drws Unit - Comp | C122: =IF($E122="Not Available","",VLOOKUP(E122,Prices!A:F,6,FALSE)*(1-$T$3)) -> 862.98 | E122: =VLOOKUP(A122,Codes!$B:$S,'Data Validation Lists'!$B$1+2,FALSE) -> @TK-DYL-AH-SO3DS | F122: 0 | S122: Furniture
A123: 600 Sgle Oven & MW 2 Door unit - Comp | C123: =IF($E123="Not Available","",VLOOKUP(E123,Prices!A:F,6,FALSE)*(1-$T$3)) -> 701 | E123: =VLOOKUP(A123,Codes!$B:$S,'Data Validation Lists'!$B$1+2,FALSE) -> @TK-DYL-AH-SMWS | F123: 0 | S123: Furniture
A124: 600 Single Oven & MW 2 Drw unit - Comp | C124: =IF($E124="Not Available","",VLOOKUP(E124,Prices!A:F,6,FALSE)*(1-$T$3)) -> 816.98 | E124: =VLOOKUP(A124,Codes!$B:$S,'Data Validation Lists'!$B$1+2,FALSE) -> @TK-DYL-AH-SM2DS | F124: 0 | S124: Furniture
F125: 0 | S125: Furniture
A126: 600 BU Oven Housing | C126: =IF($E126="Not Available","",VLOOKUP(E126,Prices!A:F,6,FALSE)*(1-$T$3)) -> 145.01 | D126: =IF(B126="","",B126*C126) ->  | E126: =VLOOKUP(A126,Codes!$B:$S,'Data Validation Lists'!$B$1+2,FALSE) -> @TK-DYL-BOH6 | F126: 0 | G126: =IF(AND(B126>0,'Data Validation Lists'!$I$1=1),B126,"") ->  | S126: Furniture | U126: =IF(B126="","",SUM(D126/1.2)*(1-$T$2)/(1-$T$3)) -> 
A128: 600 50/50 FF Housing Unit - extra tall | C128: =IF($E128="Not Available","",VLOOKUP(E128,Prices!A:F,6,FALSE)*(1-$T$3)) -> 645 | D128: =IF(B128="","",B128*C128) ->  | E128: =VLOOKUP(A128,Codes!$B:$S,'Data Validation Lists'!$B$1+2,FALSE) -> @TK-DYL-TAH-F55W | F128: =B128 -> 0 | G128: =IF(AND(B128>0,'Data Validation Lists'!$I$1=1),B128,"") -> 
A129: 600 70/30 FF Housing Unit - extra tall | C129: =IF($E129="Not Available","",VLOOKUP(E129,Prices!A:F,6,FALSE)*(1-$T$3)) -> 601 | E129: =VLOOKUP(A129,Codes!$B:$S,'Data Validation Lists'!$B$1+2,FALSE) -> @TK-DYL-TAH-F73W | F129: 0 | G129: =IF(AND(B129>0,'Data Validation Lists'!$I$1=1),B129,"") -> 
F130: 0 | S130: Furniture | U130: =IF(B130="","",SUM(D130/1.2)*(1-$T$2)/(1-$T$3)) -> 
A131: Larders - Complementary 2140mm Side Panels | F131: 0 | S131: Furniture
F132: 0 | S132: Furniture
A133: 300 Larder Unit - Comp | C133: =IF($E133="Not Available","",VLOOKUP(E133,Prices!A:F,6,FALSE)*(1-$T$3)) -> 617.02 | D133: =IF(B133="","",B133*C133) ->  | E133: =VLOOKUP(A133,Codes!$B:$S,'Data Validation Lists'!$B$1+2,FALSE) -> @TK-DYL-L3S | F133: 0 | S133: Furniture
A134: 500 Larder Unit - Comp | C134: =IF($E134="Not Available","",VLOOKUP(E134,Prices!A:F,6,FALSE)*(1-$T$3)) -> 703.01 | D134: =IF(B134="","",B134*C134) ->  | E134: =VLOOKUP(A134,Codes!$B:$S,'Data Validation Lists'!$B$1+2,FALSE) -> @TK-DYL-L5S | F134: =B134 -> 0 | S134: Furniture | U134: =IF(B134="","",SUM(D134/1.2)*(1-$T$2)/(1-$T$3)) -> 
A135: 600 Larder Unit - Comp | C135: =IF($E135="Not Available","",VLOOKUP(E135,Prices!A:F,6,FALSE)*(1-$T$3)) -> 725 | D135: =IF(B135="","",B135*C135) ->  | E135: =VLOOKUP(A135,Codes!$B:$S,'Data Validation Lists'!$B$1+2,FALSE) -> @TK-DYL-L6S | F135: =B135 -> 0 | S135: Furniture | U135: =IF(B135="","",SUM(D135/1.2)*(1-$T$2)/(1-$T$3)) -> 
A137: 300mm Larder Unit & Pullout KB - Comp | C137: =IF($E137="Not Available","",VLOOKUP(E137,Prices!A:F,6,FALSE)*(1-$T$3)) -> 1213 | D137: =IF(B137="","",B137*C137) ->  | E137: =VLOOKUP(A137,Codes!$B:$S,'Data Validation Lists'!$B$1+2,FALSE) -> @TK-DYL-LP3 | F137: =B137 -> 0 | S137: Furniture | U137: =IF(B137="","",SUM(D137/1.2)*(1-$T$2)/(1-$T$3)) -> 
A138: 500mm Larder Unit & Tandem Solo PO Comp | C138: =IF($E138="Not Available","",VLOOKUP(E138,Prices!A:F,6,FALSE)*(1-$T$3)) -> 1438.01 | E138: =VLOOKUP(A138,Codes!$B:$S,'Data Validation Lists'!$B$1+2,FALSE) -> @TK-DYL-LP5TSS | F138: 0 | S138: Furniture
A139: 600mm Larder Unit & Tandem Solo PO Comp | C139: =IF($E139="Not Available","",VLOOKUP(E139,Prices!A:F,6,FALSE)*(1-$T$3)) -> 1503 | E139: =VLOOKUP(A139,Codes!$B:$S,'Data Validation Lists'!$B$1+2,FALSE) -> @TK-DYL-LP6TSS | F139: 0 | S139: Furniture
A140: 600mm Larder Unit & Tandem PO - Comp | C140: =IF($E140="Not Available","",VLOOKUP(E140,Prices!A:F,6,FALSE)*(1-$T$3)) -> 1660.01 | E140: =VLOOKUP(A140,Codes!$B:$S,'Data Validation Lists'!$B$1+2,FALSE) -> @TK-DYL-LP6TS | F140: 0 | S140: Furniture
A142: Appliance Housings - White MFC 1967mm Side Panels | F142: 0 | S142: Furniture | U142: =IF(B142="","",SUM(D142/1.2)*(1-$T$2)/(1-$T$3)) -> 
F143: 0 | S143: Furniture
A144: 600 50/50 FF Housing Unit | C144: =IF($E144="Not Available","",VLOOKUP(E144,Prices!A:F,6,FALSE)*(1-$T$3)) -> 563.99 | D144: =IF(B144="","",B144*C144) ->  | E144: =VLOOKUP(A144,Codes!$B:$S,'Data Validation Lists'!$B$1+2,FALSE) -> @TK-DYL-AH-F55W | F144: 0 | S144: Furniture
A145: 600 70/30 FF Housing Unit | C145: =IF($E145="Not Available","",VLOOKUP(E145,Prices!A:F,6,FALSE)*(1-$T$3)) -> 553.99 | E145: =VLOOKUP(A145,Codes!$B:$S,'Data Validation Lists'!$B$1+2,FALSE) -> @TK-DYL-AH-F73W | F145: 0 | S145: Furniture
F146: 0
A147: 600 Dble Oven Housing | C147: =IF($E147="Not Available","",VLOOKUP(E147,Prices!A:F,6,FALSE)*(1-$T$3)) -> 587 | D147: =IF(B147="","",B147*C147) ->  | E147: =VLOOKUP(A147,Codes!$B:$S,'Data Validation Lists'!$B$1+2,FALSE) -> @TK-DYL-AH-DOW | F147: 0 | S147: Furniture
A148: 600 Dble Oven & 2 Drws | C148: =IF($E148="Not Available","",VLOOKUP(E148,Prices!A:F,6,FALSE)*(1-$T$3)) -> 703.98 | E148: =VLOOKUP(A148,Codes!$B:$S,'Data Validation Lists'!$B$1+2,FALSE) -> @TK-DYL-AH-DO2DW | F148: 0 | S148: Furniture
A149: 600 Double Oven & MW unit | C149: =IF($E149="Not Available","",VLOOKUP(E149,Prices!A:F,6,FALSE)*(1-$T$3)) -> 666.98 | E149: =VLOOKUP(A149,Codes!$B:$S,'Data Validation Lists'!$B$1+2,FALSE) -> @TK-DYL-AH-DMWW | F149: 0 | S149: Furniture
F150: 0 | S150: Furniture
A151: 600 Single Oven Unit | C151: =IF($E151="Not Available","",VLOOKUP(E151,Prices!A:F,6,FALSE)*(1-$T$3)) -> 604.01 | D151: =IF(B151="","",B151*C151) ->  | E151: =VLOOKUP(A151,Codes!$B:$S,'Data Validation Lists'!$B$1+2,FALSE) -> @TK-DYL-AH-SOW | F151: =B151 -> 0 | S151: Furniture | U151: =IF(B151="","",SUM(D151/1.2)*(1-$T$2)/(1-$T$3)) -> 
A152: 600 Single Oven + 1 Drw Unit | C152: =IF($E152="Not Available","",VLOOKUP(E152,Prices!A:F,6,FALSE)*(1-$T$3)) -> 675 | D152: =IF(B152="","",B152*C152) ->  | E152: =VLOOKUP(A152,Codes!$B:$S,'Data Validation Lists'!$B$1+2,FALSE) -> @TK-DYL-AH-SO1DW | F152: 0 | S152: Furniture
A153: 600 Single Oven + 2 Drws Unit | C153: =IF($E153="Not Available","",VLOOKUP(E153,Prices!A:F,6,FALSE)*(1-$T$3)) -> 716.99 | E153: =VLOOKUP(A153,Codes!$B:$S,'Data Validation Lists'!$B$1+2,FALSE) -> @TK-DYL-AH-SO2DW | F153: 0 | S153: Furniture
A154: 600 Single Oven + 3 Drws Unit | C154: =IF($E154="Not Available","",VLOOKUP(E154,Prices!A:F,6,FALSE)*(1-$T$3)) -> 789.98 | E154: =VLOOKUP(A154,Codes!$B:$S,'Data Validation Lists'!$B$1+2,FALSE) -> @TK-DYL-AH-SO3DW | F154: 0 | S154: Furniture
A155: 600 Single Oven & MW 2 Drw unit | C155: =IF($E155="Not Available","",VLOOKUP(E155,Prices!A:F,6,FALSE)*(1-$T$3)) -> 743.99 | E155: =VLOOKUP(A155,Codes!$B:$S,'Data Validation Lists'!$B$1+2,FALSE) -> @TK-DYL-AH-SM2DW | F155: 0 | S155: Furniture
A156: 600 Sgle Oven & MW 2 Door unit | C156: =IF($E156="Not Available","",VLOOKUP(E156,Prices!A:F,6,FALSE)*(1-$T$3)) -> 628.01 | E156: =VLOOKUP(A156,Codes!$B:$S,'Data Validation Lists'!$B$1+2,FALSE) -> @TK-DYL-AH-SMWW | F156: 0 | S156: Furniture
A158: 600 Dble Oven Housing - extra tall | C158: =IF($E158="Not Available","",VLOOKUP(E158,Prices!A:F,6,FALSE)*(1-$T$3)) -> 639 | E158: =VLOOKUP(A158,Codes!$B:$S,'Data Validation Lists'!$B$1+2,FALSE) -> @TK-DYL-TAH-DOW | F158: =B158 -> 0 | G158: =IF(AND(B158>0,'Data Validation Lists'!$I$1=1),B158,"") -> 
A159: 600 Dble Oven & 2 Drws - extra tall | C159: =IF($E159="Not Available","",VLOOKUP(E159,Prices!A:F,6,FALSE)*(1-$T$3)) -> 752 | E159: =VLOOKUP(A159,Codes!$B:$S,'Data Validation Lists'!$B$1+2,FALSE) -> @TK-DYL-TAH-DO2DW | F159: 0 | G159: =IF(AND(B159>0,'Data Validation Lists'!$I$1=1),B159,"") -> 
A160: 600 Single Oven Unit - extra tall | C160: =IF($E160="Not Available","",VLOOKUP(E160,Prices!A:F,6,FALSE)*(1-$T$3)) -> 650 | E160: =VLOOKUP(A160,Codes!$B:$S,'Data Validation Lists'!$B$1+2,FALSE) -> @TK-DYL-TAH-SOW | F160: 0 | G160: =IF(AND(B160>0,'Data Validation Lists'!$I$1=1),B160,"") -> 
A161: 600 Single Oven + 2 Drws Unit - extra tall | C161: =IF($E161="Not Available","",VLOOKUP(E161,Prices!A:F,6,FALSE)*(1-$T$3)) -> 765 | E161: =VLOOKUP(A161,Codes!$B:$S,'Data Validation Lists'!$B$1+2,FALSE) -> @TK-DYL-TAH-SO2DW | F161: 0 | G161: =IF(AND(B161>0,'Data Validation Lists'!$I$1=1),B161,"") -> 
A162: 600 Sgle Oven & MW 2 Door unit - extra tall | C162: =IF($E162="Not Available","",VLOOKUP(E162,Prices!A:F,6,FALSE)*(1-$T$3)) -> 667 | E162: =VLOOKUP(A162,Codes!$B:$S,'Data Validation Lists'!$B$1+2,FALSE) -> @TK-DYL-TAH-SMWW | F162: 0 | G162: =IF(AND(B162>0,'Data Validation Lists'!$I$1=1),B162,"") -> 
A164: Larders - White MFC 1967mm Side Panels | F164: =B164 -> 0 | S164: Furniture | U164: =IF(B164="","",SUM(D164/1.2)*(1-$T$2)/(1-$T$3)) -> 
F165: 0 | S165: Furniture
A166: 300 Larder Unit | C166: =IF($E166="Not Available","",VLOOKUP(E166,Prices!A:F,6,FALSE)*(1-$T$3)) -> 544.02 | D166: =IF(B166="","",B166*C166) ->  | E166: =VLOOKUP(A166,Codes!$B:$S,'Data Validation Lists'!$B$1+2,FALSE) -> @TK-DYL-L3W | F166: 0 | S166: Furniture
A167: 500 Larder Unit | C167: =IF($E167="Not Available","",VLOOKUP(E167,Prices!A:F,6,FALSE)*(1-$T$3)) -> 630.01 | D167: =IF(B167="","",B167*C167) ->  | E167: =VLOOKUP(A167,Codes!$B:$S,'Data Validation Lists'!$B$1+2,FALSE) -> @TK-DYL-L5W | F167: =B167 -> 0 | S167: Furniture | U167: =IF(B167="","",SUM(D167/1.2)*(1-$T$2)/(1-$T$3)) -> 
A168: 600 Larder Unit | C168: =IF($E168="Not Available","",VLOOKUP(E168,Prices!A:F,6,FALSE)*(1-$T$3)) -> 652.01 | D168: =IF(B168="","",B168*C168) ->  | E168: =VLOOKUP(A168,Codes!$B:$S,'Data Validation Lists'!$B$1+2,FALSE) -> @TK-DYL-L6W | F168: =B168 -> 0 | S168: Furniture | U168: =IF(B168="","",SUM(D168/1.2)*(1-$T$2)/(1-$T$3)) -> 
A170: 300 Larder Unit - extra tall | C170: =IF($E170="Not Available","",VLOOKUP(E170,Prices!A:F,6,FALSE)*(1-$T$3)) -> 574 | D170: =IF(B170="","",B170*C170) ->  | E170: =VLOOKUP(A170,Codes!$B:$S,'Data Validation Lists'!$B$1+2,FALSE) -> @TK-DYL-TL3W | F170: =B170 -> 0 | G170: =IF(AND(B170>0,'Data Validation Lists'!$I$1=1),B170,"") -> 
A171: 500 Larder Unit - extra tall | C171: =IF($E171="Not Available","",VLOOKUP(E171,Prices!A:F,6,FALSE)*(1-$T$3)) -> 662 | E171: =VLOOKUP(A171,Codes!$B:$S,'Data Validation Lists'!$B$1+2,FALSE) -> @TK-DYL-TL5W | F171: 0 | G171: =IF(AND(B171>0,'Data Validation Lists'!$I$1=1),B171,"") -> 
A172: 600 Larder Unit - extra tall | C172: =IF($E172="Not Available","",VLOOKUP(E172,Prices!A:F,6,FALSE)*(1-$T$3)) -> 688 | E172: =VLOOKUP(A172,Codes!$B:$S,'Data Validation Lists'!$B$1+2,FALSE) -> @TK-DYL-TL6W | F172: 0 | G172: =IF(AND(B172>0,'Data Validation Lists'!$I$1=1),B172,"") -> 
A174: 300mm Larder Unit & Pullout KB | C174: =IF($E174="Not Available","",VLOOKUP(E174,Prices!A:F,6,FALSE)*(1-$T$3)) -> 1140 | D174: =IF(B174="","",B174*C174) ->  | E174: =VLOOKUP(A174,Codes!$B:$S,'Data Validation Lists'!$B$1+2,FALSE) -> @TK-DYL-LP3W | F174: =B174 -> 0 | S174: Furniture | U174: =IF(B174="","",SUM(D174/1.2)*(1-$T$2)/(1-$T$3)) -> 
A175: 500mm Larder Unit & Tandem Solo PO | C175: =IF($E175="Not Available","",VLOOKUP(E175,Prices!A:F,6,FALSE)*(1-$T$3)) -> 1365.01 | E175: =VLOOKUP(A175,Codes!$B:$S,'Data Validation Lists'!$B$1+2,FALSE) -> @TK-DYL-LP5TSW | F175: 0 | S175: Furniture
A176: 600mm Larder Unit & Tandem Solo PO | C176: =IF($E176="Not Available","",VLOOKUP(E176,Prices!A:F,6,FALSE)*(1-$T$3)) -> 1430 | E176: =VLOOKUP(A176,Codes!$B:$S,'Data Validation Lists'!$B$1+2,FALSE) -> @TK-DYL-LP6TSW | F176: 0 | S176: Furniture
A177: 600mm Larder Unit & Tandem PO | C177: =IF($E177="Not Available","",VLOOKUP(E177,Prices!A:F,6,FALSE)*(1-$T$3)) -> 1587.01 | E177: =VLOOKUP(A177,Codes!$B:$S,'Data Validation Lists'!$B$1+2,FALSE) -> @TK-DYL-LP6TW | F177: 0 | S177: Furniture
A179: 300mm Larder Unit & Pullout KB - extra tall | C179: =IF($E179="Not Available","",VLOOKUP(E179,Prices!A:F,6,FALSE)*(1-$T$3)) -> 1203 | E179: =VLOOKUP(A179,Codes!$B:$S,'Data Validation Lists'!$B$1+2,FALSE) -> @TK-DYL-TLP3W | F179: =B179 -> 0 | G179: =IF(AND(B179>0,'Data Validation Lists'!$I$1=1),B179,"") -> 
A180: 600mm Larder Unit & Tandem PO - extra tall | C180: =IF($E180="Not Available","",VLOOKUP(E180,Prices!A:F,6,FALSE)*(1-$T$3)) -> 1670 | E180: =VLOOKUP(A180,Codes!$B:$S,'Data Validation Lists'!$B$1+2,FALSE) -> @TK-DYL-TLP6TW | F180: 0 | G180: =IF(AND(B180>0,'Data Validation Lists'!$I$1=1),B180,"") -> 
A181: 500mm Larder Unit & Tandem Solo PO - extra tall | C181: =IF($E181="Not Available","",VLOOKUP(E181,Prices!A:F,6,FALSE)*(1-$T$3)) -> 1434 | E181: =VLOOKUP(A181,Codes!$B:$S,'Data Validation Lists'!$B$1+2,FALSE) -> @TK-DYL-TLP5TSW | F181: 0 | G181: =IF(AND(B181>0,'Data Validation Lists'!$I$1=1),B181,"") -> 
A182: 600mm Larder Unit & Tandem Solo PO - extra tall | C182: =IF($E182="Not Available","",VLOOKUP(E182,Prices!A:F,6,FALSE)*(1-$T$3)) -> 1505 | E182: =VLOOKUP(A182,Codes!$B:$S,'Data Validation Lists'!$B$1+2,FALSE) -> @TK-DYL-TLP6TSW | F182: 0 | G182: =IF(AND(B182>0,'Data Validation Lists'!$I$1=1),B182,"") -> 
A184: 1000mm Pantry 4 Doors | C184: =IF($E184="Not Available","",VLOOKUP(E184,Prices!A:F,6,FALSE)*(1-$T$3)) -> 1041.02 | D184: =IF(B184="","",B184*C184) ->  | E184: =VLOOKUP(A184,Codes!$B:$S,'Data Validation Lists'!$B$1+2,FALSE) -> @TK-DYL-LPN14DW | F184: =B184 -> 0 | S184: Furniture | U184: =IF(B184="","",SUM(D184/1.2)*(1-$T$2)/(1-$T$3)) -> 
A185: 1000mm Pantry 2 Doors 3 Drawers | C185: =IF($E185="Not Available","",VLOOKUP(E185,Prices!A:F,6,FALSE)*(1-$T$3)) -> 1241 | E185: =VLOOKUP(A185,Codes!$B:$S,'Data Validation Lists'!$B$1+2,FALSE) -> @TK-DYL-LPN12D3DW | F185: 0 | S185: Furniture | U185: =IF(B185="","",SUM(D185/1.2)*(1-$T$2)/(1-$T$3)) -> 
F186: 0
A187: 1000mm Blind Corner larder 500 | C187: =IF($E187="Not Available","",VLOOKUP(E187,Prices!A:F,6,FALSE)*(1-$T$3)) -> 911 | D187: =IF(B187="","",B187*C187) ->  | E187: =VLOOKUP(A187,Codes!$B:$S,'Data Validation Lists'!$B$1+2,FALSE) -> @TK-DYL-LBC15W | F187: 0 | S187: Furniture | U187: =IF(B187="","",SUM(D187/1.2)*(1-$T$2)/(1-$T$3)) -> 
A188: 1000mm Blind Corner larder 600 | C188: =IF($E188="Not Available","",VLOOKUP(E188,Prices!A:F,6,FALSE)*(1-$T$3)) -> 932 | E188: =VLOOKUP(A188,Codes!$B:$S,'Data Validation Lists'!$B$1+2,FALSE) -> @TK-DYL-LBC16W | F188: 0 | S188: Furniture
F189: 0
A190: 1000 Blind Cnr larder Le Mans 50 LH | C190: =IF($E190="Not Available","",VLOOKUP(E190,Prices!A:F,6,FALSE)*(1-$T$3)) -> 2359.01 | D190: =IF(B190="","",B190*C190) ->  | E190: =VLOOKUP(A190,Codes!$B:$S,'Data Validation Lists'!$B$1+2,FALSE) -> @TK-DYL-LBCLM15LW | F190: 0 | S190: Furniture | U190: =IF(B190="","",SUM(D190/1.2)*(1-$T$2)/(1-$T$3)) -> 
A191: 1000 Blind Cnr larder Le Mans 50 RH | C191: =IF($E191="Not Available","",VLOOKUP(E191,Prices!A:F,6,FALSE)*(1-$T$3)) -> 2359.01 | E191: =VLOOKUP(A191,Codes!$B:$S,'Data Validation Lists'!$B$1+2,FALSE) -> @TK-DYL-LBCLM15RW | F191: 0 | S191: Furniture
A192: 1000 Blind Cnr larder Le Mans 60 LH | C192: =IF($E192="Not Available","",VLOOKUP(E192,Prices!A:F,6,FALSE)*(1-$T$3)) -> 2478 | E192: =VLOOKUP(A192,Codes!$B:$S,'Data Validation Lists'!$B$1+2,FALSE) -> @TK-DYL-LBCLM16LW | F192: 0 | S192: Furniture
A193: 1000 Blind Cnr larder Le Mans 60 RH | C193: =IF($E193="Not Available","",VLOOKUP(E193,Prices!A:F,6,FALSE)*(1-$T$3)) -> 2478 | E193: =VLOOKUP(A193,Codes!$B:$S,'Data Validation Lists'!$B$1+2,FALSE) -> @TK-DYL-LBCLM16RW | F193: 0 | S193: Furniture
A194: Le Mans Soft Close Attachment LH | C194: =IF($E194="Not Available","",VLOOKUP(E194,Prices!A:F,6,FALSE)*(1-$T$3)) -> 39 | E194: =VLOOKUP(A194,Codes!$B:$S,'Data Validation Lists'!$B$1+2,FALSE) -> TK-ST-LMSCL | F194: 0 | S194: Furniture | U194: =IF(B194="","",SUM(D194/1.2)*(1-$T$2)/(1-$T$3)) -> 
A195: Le Mans Soft Close Attachment RH | C195: =IF($E195="Not Available","",VLOOKUP(E195,Prices!A:F,6,FALSE)*(1-$T$3)) -> 39 | E195: =VLOOKUP(A195,Codes!$B:$S,'Data Validation Lists'!$B$1+2,FALSE) -> TK-ST-LMSCR | F195: 0 | S195: Furniture
A197: Appliance Doors | F197: 0 | S197: Furniture
F198: 0 | S198: Furniture
A199: 600 Integrated Extractor Door | C199: =IF($E199="Not Available","",VLOOKUP(E199,Prices!A:F,6,FALSE)*(1-$T$3)) -> 39 | D199: =IF(B199="","",B199*C199) ->  | E199: =VLOOKUP(A199,Codes!$B:$S,'Data Validation Lists'!$B$1+2,FALSE) -> @TK-DYL-AD60ICH | F199: 0 | S199: Furniture
A200: 600 Fridge/Dishwasher Fascia | C200: =IF($E200="Not Available","",VLOOKUP(E200,Prices!A:F,6,FALSE)*(1-$T$3)) -> 57 | E200: =VLOOKUP(A200,Codes!$B:$S,'Data Validation Lists'!$B$1+2,FALSE) -> @TK-DYL-AD60FD | F200: 0 | S200: Furniture
A201: 450 Integrated Dishwasher Fascia | C201: =IF($E201="Not Available","",VLOOKUP(E201,Prices!A:F,6,FALSE)*(1-$T$3)) -> 49 | E201: =VLOOKUP(A201,Codes!$B:$S,'Data Validation Lists'!$B$1+2,FALSE) -> @TK-DYL-AD45I | F201: 0 | S201: Furniture
A202: 600 Semi Int Dishwasher Fascia | C202: =IF($E202="Not Available","",VLOOKUP(E202,Prices!A:F,6,FALSE)*(1-$T$3)) -> 51 | E202: =VLOOKUP(A202,Codes!$B:$S,'Data Validation Lists'!$B$1+2,FALSE) -> @TK-DYL-AD60S | F202: 0 | S202: Furniture
A203: Boiler Door | C203: =IF($E203="Not Available","",VLOOKUP(E203,Prices!A:F,6,FALSE)*(1-$T$3)) -> 95 | D203: =IF(B203="","",B203*C203) ->  | E203: =VLOOKUP(A203,Codes!$B:$S,'Data Validation Lists'!$B$1+2,FALSE) -> @TK-DYL-BLD9 | F203: =B203 -> 0 | S203: Furniture | U203: =IF(B203="","",SUM(D203/1.2)*(1-$T$2)/(1-$T$3)) -> 
F204: 0 | S204: Furniture
F205: 0 | S205: Furniture | U205: =IF(B205="","",SUM(D205/1.2)*(1-$T$2)/(1-$T$3)) -> 
A206: ASSEMBLED | B206: =IF(SUM(G13:G205)>0,SUM(G13:G205),"") ->  | C206: =IF($E206="Not Available","",VLOOKUP(E206,Prices!A:F,6,FALSE)) -> 18 | D206: =IF(B206="","",B206*C206) ->  | E206: =IF('Data Validation Lists'!I1=1,VLOOKUP(A206,Codes!$B:$S,'Data Validation Lists'!$B$1+2,FALSE),"Not Available") -> RIGID BUILD | S206: Furniture | U206: =IF(B206="","",SUM(D206/1.2)) -> 
F207: 0 | S207: Furniture
A208: Handles | F208: 0 | S208: Furniture
F209: =B209 -> 0 | S209: Furniture
A210: H003 Satin Nickel D Handle | C210: =IF($E210="Not Available","",VLOOKUP(E210,Prices!A:F,6,FALSE)*(1-$T$3)) -> 12 | D210: =IF(B210="","",B210*C210) ->  | E210: =VLOOKUP(A210,Codes!$B:$S,'Data Validation Lists'!$B$1+2,FALSE) -> TK-HD-003 | F210: =B210 -> 0 | S210: Furniture | U210: =IF(B210="","",SUM(D210/1.2)*(1-$T$2)/(1-$T$3)) -> 
A211: H1003 Long Chrome Front Fix Puro Handle | C211: =IF($E211="Not Available","",VLOOKUP(E211,Prices!A:F,6,FALSE)*(1-$T$3)) -> 15.996 | E211: =VLOOKUP(A211,Codes!$B:$S,'Data Validation Lists'!$B$1+2,FALSE) -> TK-HD-1003 | F211: 0 | S211: Furniture
A212: H1007 Long Chrome Back Fix Puro Handle | C212: =IF($E212="Not Available","",VLOOKUP(E212,Prices!A:F,6,FALSE)*(1-$T$3)) -> 20.004 | E212: =VLOOKUP(A212,Codes!$B:$S,'Data Validation Lists'!$B$1+2,FALSE) -> TK-HD-1007 | F212: 0 | S212: Furniture
A213: H1009 Pewter Round Knob Handle | C213: =IF($E213="Not Available","",VLOOKUP(E213,Prices!A:F,6,FALSE)*(1-$T$3)) -> 11.004 | E213: =VLOOKUP(A213,Codes!$B:$S,'Data Validation Lists'!$B$1+2,FALSE) -> TK-HD-1009 | F213: 0 | S213: Furniture
A214: H1011 Brushed Nickel Curved End Handle | C214: =IF($E214="Not Available","",VLOOKUP(E214,Prices!A:F,6,FALSE)*(1-$T$3)) -> 18 | E214: =VLOOKUP(A214,Codes!$B:$S,'Data Validation Lists'!$B$1+2,FALSE) -> TK-HD-1011 | F214: 0 | S214: Furniture
A215: H1013 Chrome Curved End Handle | C215: =IF($E215="Not Available","",VLOOKUP(E215,Prices!A:F,6,FALSE)*(1-$T$3)) -> 18 | E215: =VLOOKUP(A215,Codes!$B:$S,'Data Validation Lists'!$B$1+2,FALSE) -> TK-HD-1013 | F215: 0 | S215: Furniture
... 237 more rows

Sheet Summary
A2: YOUR LOGO HERE
B3: Summary Quote
A6: Your Company Name | B6: =TODAY() -> 2025-09-23
A7: Your Address
A8: Your Address
A9: Your Address
A11: Your Telephone
A12: Your Email
A13: Customer Name:
A14: Customer Address:
A18: Tel. Home:
A19: Tel. Mobile:
A20: Email:
A21: Range | B21: Sales Person
A22: Evo Kitchen Collection | B22: NAME
A23: =VLOOKUP('Data Validation Lists'!B1,'Data Validation Lists'!A2:B147,2,FALSE) -> PG1 Greco Gloss Dust
A25: Description | B25: Sub Total
A26: Furniture | B26: =SUMIF(Kitchen!S:S,Summary!A26,Kitchen!D:D) -> 0
A27: Lighting | B27: =SUMIF(Kitchen!S:S,Summary!A27,Kitchen!D:D) -> 0
A28: Other Items | B28: =SUMIF(Kitchen!S:S,Summary!A28,Kitchen!D:D) -> 0
A29: Delivery | B29: =Kitchen!D453 -> 90
A30: Installation
B33: Total (inc VAT)
B34: =SUM(B26:B31) -> 90
A39: This quote is indicative and subject to change. Upon acceptance of this quote a survey will be carried out and any changes required may result in a change to the final costs. The price quoted includes VAT (unless otherwise stated). VAT will be charged at the rate applying at the time of delivery.
A45: To accept this quotation, sign here and return: __________________________________________________________________

Sheet Data Validation Lists (hidden)
B1: 7 | H1: Rigid | I1: 1
A2: 1 | B2: PG1 Devlin Matt Dove | H2: 1 | I2: Yes
A3: 2 | B3: PG1 Devlin Matt Dust | H3: 2 | I3: No
A4: 3 | B4: PG1 Devlin Matt Mussel
A5: 4 | B5: PG1 Devlin Matt Sea Blue
A6: 5 | B6: PG1 Greco Gloss Cashmere | H6: D Box Upgrade | I6: 3
A7: 6 | B7: PG1 Greco Gloss Dove | H7: 1 | I7: Standard
A8: 7 | B8: PG1 Greco Gloss Dust | H8: 2 | I8: Oak
A9: 8 | B9: PG2 Mullan Matt Dove | H9: 3 | I9: Excel Plus
A10: 9 | B10: PG2 Mullan Matt Dust
A11: 10 | B11: PG2 Mullan Matt Fjord
A12: 11 | B12: PG2 Mullan Matt Mussel | H12: Home Delivery | I12: 1
A13: 12 | B13: PG2 Mullan Matt Sea Blue | H13: 1 | I13: Yes
A14: 13 | B14: PG3 Vallo Gloss Cashmere | H14: 2 | I14: No
A15: 14 | B15: PG3 Vallo Gloss Dove
A16: 15 | B16: PG3 Vallo Gloss Dust
A17: 16 | B17: PG3 Vallo Gloss White

Sheet Codes (hidden)
B1: @TK- | C1: TK-C- | D1: 1 | E1: 2 | F1: 3 | G1: 4 | H1: 5 | I1: 6 | J1: 7 | K1: 8 | L1: 9 | M1: 10 | N1: 11 | O1: 12 | P1: 13 | Q1: 14 | R1: 15 | S1: 16
B2: TK-A- | D2: Devlin Matt Dove | E2: Devlin Matt Dust | F2: Devlin Matt Mussel | G2: Devlin Matt Sea Blue | H2: Greco Gloss Cashmere | I2: Greco Gloss Dove | J2: Greco Gloss Dust | K2: Mullan Matt Dove | L2: Mullan Matt Dust | M2: Mullan Matt Fjord | N2: Mullan Matt Mussel | O2: Mullan Matt Sea Blue | P2: Vallo Gloss Cashmere | Q2: Vallo Gloss Dove | R2: Vallo Gloss Dust | S2: Vallo Gloss White
B3: Product Description | C3: BOM / Prod ID | D3: DVM- | E3: DVY- | F3: MUM- | G3: DSE- | H3: KGL- | I3: DGL- | J3: DYL- | K3: DSK- | L3: MDY- | M3: MFJ- | N3: MSK- | O3: MSB- | P3: JKG- | Q3: JDG- | R3: JDY- | S3: JWG-
A4: 150 Hl Pull Out Towel Base | B4: 150 Hl Pull Out Towel Base | C4: BP15TW | D4: @TK-DVM-BP15TW | E4: @TK-DVY-BP15TW | F4: @TK-MUM-BP15TW | G4: @TK-DSE-BP15TW | H4: @TK-KGL-BP15TW | I4: @TK-DGL-BP15TW | J4: @TK-DYL-BP15TW | K4: @TK-DSK-BP15TW | L4: @TK-MDY-BP15TW | M4: @TK-MFJ-BP15TW | N4: @TK-MSK-BP15TW | O4: @TK-MSB-BP15TW | P4: @TK-JKG-BP15TW | Q4: @TK-JDG-BP15TW | R4: @TK-JDY-BP15TW | S4: @TK-JWG-BP15TW
A5: 150 HL Pull Out Tray Base | B5: 150 HL Pull Out Tray Base | C5: BP15TY | D5: @TK-DVM-BP15TY | E5: @TK-DVY-BP15TY | F5: @TK-MUM-BP15TY | G5: @TK-DSE-BP15TY | H5: @TK-KGL-BP15TY | I5: @TK-DGL-BP15TY | J5: @TK-DYL-BP15TY | K5: @TK-DSK-BP15TY | L5: @TK-MDY-BP15TY | M5: @TK-MFJ-BP15TY | N5: @TK-MSK-BP15TY | O5: @TK-MSB-BP15TY | P5: @TK-JKG-BP15TY | Q5: @TK-JDG-BP15TY | R5: @TK-JDY-BP15TY | S5: @TK-JWG-BP15TY
A6: 300 HL Pull Out Tray Base | B6: 300 HL Pull Out Tray Base | C6: BP3TY | D6: @TK-DVM-BP3TY | E6: @TK-DVY-BP3TY | F6: @TK-MUM-BP3TY | G6: @TK-DSE-BP3TY | H6: @TK-KGL-BP3TY | I6: @TK-DGL-BP3TY | J6: @TK-DYL-BP3TY | K6: @TK-DSK-BP3TY | L6: @TK-MDY-BP3TY | M6: @TK-MFJ-BP3TY | N6: @TK-MSK-BP3TY | O6: @TK-MSB-BP3TY | P6: @TK-JKG-BP3TY | Q6: @TK-JDG-BP3TY | R6: @TK-JDY-BP3TY | S6: @TK-JWG-BP3TY
A7: 150 HL Base Unit -SC Full | B7: 150 HL Base Unit -SC Full | C7: BH15S | D7: @TK-DVM-BH15S | E7: @TK-DVY-BH15S | F7: @TK-MUM-BH15S | G7: @TK-DSE-BH15S | H7: @TK-KGL-BH15S | I7: @TK-DGL-BH15S | J7: @TK-DYL-BH15S | K7: @TK-DSK-BH15S | L7: @TK-MDY-BH15S | M7: @TK-MFJ-BH15S | N7: @TK-MSK-BH15S | O7: @TK-MSB-BH15S | P7: @TK-JKG-BH15S | Q7: @TK-JDG-BH15S | R7: @TK-JDY-BH15S | S7: @TK-JWG-BH15S
A8: 300 HL Base Unit -SC Full | B8: 300 HL Base Unit -SC Full | C8: BH30S | D8: @TK-DVM-BH30S | E8: @TK-DVY-BH30S | F8: @TK-MUM-BH30S | G8: @TK-DSE-BH30S | H8: @TK-KGL-BH30S | I8: @TK-DGL-BH30S | J8: @TK-DYL-BH30S | K8: @TK-DSK-BH30S | L8: @TK-MDY-BH30S | M8: @TK-MFJ-BH30S | N8: @TK-MSK-BH30S | O8: @TK-MSB-BH30S | P8: @TK-JKG-BH30S | Q8: @TK-JDG-BH30S | R8: @TK-JDY-BH30S | S8: @TK-JWG-BH30S
A9: 300 HL Base Unit & Bin -SC Full | B9: 300 HL Base Unit & Bin -SC Full | C9: BH3BS | D9: @TK-DVM-BH3BS | E9: @TK-DVY-BH3BS | F9: @TK-MUM-BH3BS | G9: @TK-DSE-BH3BS | H9: @TK-KGL-BH3BS | I9: @TK-DGL-BH3BS | J9: @TK-DYL-BH3BS | K9: @TK-DSK-BH3BS | L9: @TK-MDY-BH3BS | M9: @TK-MFJ-BH3BS | N9: @TK-MSK-BH3BS | O9: @TK-MSB-BH3BS | P9: @TK-JKG-BH3BS | Q9: @TK-JDG-BH3BS | R9: @TK-JDY-BH3BS | S9: @TK-JWG-BH3BS
A10: 350 HL Base Unit -SC Full | B10: 350 HL Base Unit -SC Full | C10: BH35S | D10: @TK-DVM-BH35S | E10: @TK-DVY-BH35S | F10: @TK-MUM-BH35S | G10: @TK-DSE-BH35S | H10: @TK-KGL-BH35S | I10: @TK-DGL-BH35S | J10: @TK-DYL-BH35S | K10: @TK-DSK-BH35S | L10: @TK-MDY-BH35S | M10: @TK-MFJ-BH35S | N10: @TK-MSK-BH35S | O10: @TK-MSB-BH35S | P10: @TK-JKG-BH35S | Q10: @TK-JDG-BH35S | R10: @TK-JDY-BH35S | S10: @TK-JWG-BH35S
A11: 400 HL Base Unit -SC Full | B11: 400 HL Base Unit -SC Full | C11: BH40S | D11: @TK-DVM-BH40S | E11: @TK-DVY-BH40S | F11: @TK-MUM-BH40S | G11: @TK-DSE-BH40S | H11: @TK-KGL-BH40S | I11: @TK-DGL-BH40S | J11: @TK-DYL-BH40S | K11: @TK-DSK-BH40S | L11: @TK-MDY-BH40S | M11: @TK-MFJ-BH40S | N11: @TK-MSK-BH40S | O11: @TK-MSB-BH40S | P11: @TK-JKG-BH40S | Q11: @TK-JDG-BH40S | R11: @TK-JDY-BH40S | S11: @TK-JWG-BH40S
A12: 400 HL Base Unit & Bin -SC Full | B12: 400 HL Base Unit & Bin -SC Full | C12: BH4BS | D12: @TK-DVM-BH4BS | E12: @TK-DVY-BH4BS | F12: @TK-MUM-BH4BS | G12: @TK-DSE-BH4BS | H12: @TK-KGL-BH4BS | I12: @TK-DGL-BH4BS | J12: @TK-DYL-BH4BS | K12: @TK-DSK-BH4BS | L12: @TK-MDY-BH4BS | M12: @TK-MFJ-BH4BS | N12: @TK-MSK-BH4BS | O12: @TK-MSB-BH4BS | P12: @TK-JKG-BH4BS | Q12: @TK-JDG-BH4BS | R12: @TK-JDY-BH4BS | S12: @TK-JWG-BH4BS
A13: 450 HL Base Unit -SC Full | B13: 450 HL Base Unit -SC Full | C13: BH45S | D13: @TK-DVM-BH45S | E13: @TK-DVY-BH45S | F13: @TK-MUM-BH45S | G13: @TK-DSE-BH45S | H13: @TK-KGL-BH45S | I13: @TK-DGL-BH45S | J13: @TK-DYL-BH45S | K13: @TK-DSK-BH45S | L13: @TK-MDY-BH45S | M13: @TK-MFJ-BH45S | N13: @TK-MSK-BH45S | O13: @TK-MSB-BH45S | P13: @TK-JKG-BH45S | Q13: @TK-JDG-BH45S | R13: @TK-JDY-BH45S | S13: @TK-JWG-BH45S
A14: 500 HL Base Unit -SC Full | B14: 500 HL Base Unit -SC Full | C14: BH50S | D14: @TK-DVM-BH50S | E14: @TK-DVY-BH50S | F14: @TK-MUM-BH50S | G14: @TK-DSE-BH50S | H14: @TK-KGL-BH50S | I14: @TK-DGL-BH50S | J14: @TK-DYL-BH50S | K14: @TK-DSK-BH50S | L14: @TK-MDY-BH50S | M14: @TK-MFJ-BH50S | N14: @TK-MSK-BH50S | O14: @TK-MSB-BH50S | P14: @TK-JKG-BH50S | Q14: @TK-JDG-BH50S | R14: @TK-JDY-BH50S | S14: @TK-JWG-BH50S
A15: 600 HL Base Unit -SC Full | B15: 600 HL Base Unit -SC Full | C15: BH60S | D15: @TK-DVM-BH60S | E15: @TK-DVY-BH60S | F15: @TK-MUM-BH60S | G15: @TK-DSE-BH60S | H15: @TK-KGL-BH60S | I15: @TK-DGL-BH60S | J15: @TK-DYL-BH60S | K15: @TK-DSK-BH60S | L15: @TK-MDY-BH60S | M15: @TK-MFJ-BH60S | N15: @TK-MSK-BH60S | O15: @TK-MSB-BH60S | P15: @TK-JKG-BH60S | Q15: @TK-JDG-BH60S | R15: @TK-JDY-BH60S | S15: @TK-JWG-BH60S
A16: 600 HL Base Unit & Bin -SC Full | B16: 600 HL Base Unit & Bin -SC Full | C16: BH6BS | D16: @TK-DVM-BH6BS | E16: @TK-DVY-BH6BS | F16: @TK-MUM-BH6BS | G16: @TK-DSE-BH6BS | H16: @TK-KGL-BH6BS | I16: @TK-DGL-BH6BS | J16: @TK-DYL-BH6BS | K16: @TK-DSK-BH6BS | L16: @TK-MDY-BH6BS | M16: @TK-MFJ-BH6BS | N16: @TK-MSK-BH6BS | O16: @TK-MSB-BH6BS | P16: @TK-JKG-BH6BS | Q16: @TK-JDG-BH6BS | R16: @TK-JDY-BH6BS | S16: @TK-JWG-BH6BS
A17: 700 HL Base Unit -SC Full | B17: 700 HL Base Unit -SC Full | C17: BH70S | D17: @TK-DVM-BH70S | E17: @TK-DVY-BH70S | F17: @TK-MUM-BH70S | G17: @TK-DSE-BH70S | H17: @TK-KGL-BH70S | I17: @TK-DGL-BH70S | J17: @TK-DYL-BH70S | K17: @TK-DSK-BH70S | L17: @TK-MDY-BH70S | M17: @TK-MFJ-BH70S | N17: @TK-MSK-BH70S | O17: @TK-MSB-BH70S | P17: @TK-JKG-BH70S | Q17: @TK-JDG-BH70S | R17: @TK-JDY-BH70S | S17: @TK-JWG-BH70S
A18: 800 HL Base Unit -SC Full | B18: 800 HL Base Unit -SC Full | C18: BH80S | D18: @TK-DVM-BH80S | E18: @TK-DVY-BH80S | F18: @TK-MUM-BH80S | G18: @TK-DSE-BH80S | H18: @TK-KGL-BH80S | I18: @TK-DGL-BH80S | J18: @TK-DYL-BH80S | K18: @TK-DSK-BH80S | L18: @TK-MDY-BH80S | M18: @TK-MFJ-BH80S | N18: @TK-MSK-BH80S | O18: @TK-MSB-BH80S | P18: @TK-JKG-BH80S | Q18: @TK-JDG-BH80S | R18: @TK-JDY-BH80S | S18: @TK-JWG-BH80S
A19: 900 HL Base Unit -SC Full | B19: 900 HL Base Unit -SC Full | C19: BH90S | D19: @TK-DVM-BH90S | E19: @TK-DVY-BH90S | F19: @TK-MUM-BH90S | G19: @TK-DSE-BH90S | H19: @TK-KGL-BH90S | I19: @TK-DGL-BH90S | J19: @TK-DYL-BH90S | K19: @TK-DSK-BH90S | L19: @TK-MDY-BH90S | M19: @TK-MFJ-BH90S | N19: @TK-MSK-BH90S | O19: @TK-MSB-BH90S | P19: @TK-JKG-BH90S | Q19: @TK-JDG-BH90S | R19: @TK-JDY-BH90S | S19: @TK-JWG-BH90S
A20: 1000 HL Base Unit -SC Full | B20: 1000 HL Base Unit -SC Full | C20: BH100S | D20: @TK-DVM-BH100S | E20: @TK-DVY-BH100S | F20: @TK-MUM-BH100S | G20: @TK-DSE-BH100S | H20: @TK-KGL-BH100S | I20: @TK-DGL-BH100S | J20: @TK-DYL-BH100S | K20: @TK-DSK-BH100S | L20: @TK-MDY-BH100S | M20: @TK-MFJ-BH100S | N20: @TK-MSK-BH100S | O20: @TK-MSB-BH100S | P20: @TK-JKG-BH100S | Q20: @TK-JDG-BH100S | R20: @TK-JDY-BH100S | S20: @TK-JWG-BH100S
A21: 800 HL Cnr Base (300 Door) -SC Full | B21: 800 HL Cnr Base (300 Door) -SC Full | C21: BC83S | D21: @TK-DVM-BC83S | E21: @TK-DVY-BC83S | F21: @TK-MUM-BC83S | G21: @TK-DSE-BC83S | H21: @TK-KGL-BC83S | I21: @TK-DGL-BC83S | J21: @TK-DYL-BC83S | K21: @TK-DSK-BC83S | L21: @TK-MDY-BC83S | M21: @TK-MFJ-BC83S | N21: @TK-MSK-BC83S | O21: @TK-MSB-BC83S | P21: @TK-JKG-BC83S | Q21: @TK-JDG-BC83S | R21: @TK-JDY-BC83S | S21: @TK-JWG-BC83S
A22: 800 HL Cnr Base Unit (400 Door) -SC Full | B22: 800 HL Cnr Base Unit (400 Door) -SC Full | C22: BC84S | D22: @TK-DVM-BC84S | E22: @TK-DVY-BC84S | F22: @TK-MUM-BC84S | G22: @TK-DSE-BC84S | H22: @TK-KGL-BC84S | I22: @TK-DGL-BC84S | J22: @TK-DYL-BC84S | K22: @TK-DSK-BC84S | L22: @TK-MDY-BC84S | M22: @TK-MFJ-BC84S | N22: @TK-MSK-BC84S | O22: @TK-MSB-BC84S | P22: @TK-JKG-BC84S | Q22: @TK-JDG-BC84S | R22: @TK-JDY-BC84S | S22: @TK-JWG-BC84S
A23: 800 HL Cnr Base (450 Door) -SC Full | B23: 800 HL Cnr Base (450 Door) -SC Full | C23: BC845S | D23: @TK-DVM-BC845S | E23: @TK-DVY-BC845S | F23: @TK-MUM-BC845S | G23: @TK-DSE-BC845S | H23: @TK-KGL-BC845S | I23: @TK-DGL-BC845S | J23: @TK-DYL-BC845S | K23: @TK-DSK-BC845S | L23: @TK-MDY-BC845S | M23: @TK-MFJ-BC845S | N23: @TK-MSK-BC845S | O23: @TK-MSB-BC845S | P23: @TK-JKG-BC845S | Q23: @TK-JDG-BC845S | R23: @TK-JDY-BC845S | S23: @TK-JWG-BC845S
A24: 900 HL Cnr Base (450 Door) -SC Full | B24: 900 HL Cnr Base (450 Door) -SC Full | C24: BC945S | D24: @TK-DVM-BC945S | E24: @TK-DVY-BC945S | F24: @TK-MUM-BC945S | G24: @TK-DSE-BC945S | H24: @TK-KGL-BC945S | I24: @TK-DGL-BC945S | J24: @TK-DYL-BC945S | K24: @TK-DSK-BC945S | L24: @TK-MDY-BC945S | M24: @TK-MFJ-BC945S | N24: @TK-MSK-BC945S | O24: @TK-MSB-BC945S | P24: @TK-JKG-BC945S | Q24: @TK-JDG-BC945S | R24: @TK-JDY-BC945S | S24: @TK-JWG-BC945S
A25: 1000 HL Cnr Base (450 Door) -SC Full | B25: 1000 HL Cnr Base (450 Door) -SC Full | C25: BC145S | D25: @TK-DVM-BC145S | E25: @TK-DVY-BC145S | F25: @TK-MUM-BC145S | G25: @TK-DSE-BC145S | H25: @TK-KGL-BC145S | I25: @TK-DGL-BC145S | J25: @TK-DYL-BC145S | K25: @TK-DSK-BC145S | L25: @TK-MDY-BC145S | M25: @TK-MFJ-BC145S | N25: @TK-MSK-BC145S | O25: @TK-MSB-BC145S | P25: @TK-JKG-BC145S | Q25: @TK-JDG-BC145S | R25: @TK-JDY-BC145S | S25: @TK-JWG-BC145S
A26: 1000 HL Cnr Base (500 Door) -SC Full | B26: 1000 HL Cnr Base (500 Door) -SC Full | C26: BC15S | D26: @TK-DVM-BC15S | E26: @TK-DVY-BC15S | F26: @TK-MUM-BC15S | G26: @TK-DSE-BC15S | H26: @TK-KGL-BC15S | I26: @TK-DGL-BC15S | J26: @TK-DYL-BC15S | K26: @TK-DSK-BC15S | L26: @TK-MDY-BC15S | M26: @TK-MFJ-BC15S | N26: @TK-MSK-BC15S | O26: @TK-MSB-BC15S | P26: @TK-JKG-BC15S | Q26: @TK-JDG-BC15S | R26: @TK-JDY-BC15S | S26: @TK-JWG-BC15S
A27: 1000 HL Cnr Base (600 Door) -SC Full | B27: 1000 HL Cnr Base (600 Door) -SC Full | C27: BC16S | D27: @TK-DVM-BC16S | E27: @TK-DVY-BC16S | F27: @TK-MUM-BC16S | G27: @TK-DSE-BC16S | H27: @TK-KGL-BC16S | I27: @TK-DGL-BC16S | J27: @TK-DYL-BC16S | K27: @TK-DSK-BC16S | L27: @TK-MDY-BC16S | M27: @TK-MFJ-BC16S | N27: @TK-MSK-BC16S | O27: @TK-MSB-BC16S | P27: @TK-JKG-BC16S | Q27: @TK-JDG-BC16S | R27: @TK-JDY-BC16S | S27: @TK-JWG-BC16S
A28: Le Mans Cnr Base 1000 - 500 RH - SC Hng | B28: Le Mans Cnr Base 1000 - 500 RH - SC Hng | C28: BCL15R | D28: @TK-DVM-BCL15R | E28: @TK-DVY-BCL15R | F28: @TK-MUM-BCL15R | G28: @TK-DSE-BCL15R | H28: @TK-KGL-BCL15R | I28: @TK-DGL-BCL15R | J28: @TK-DYL-BCL15R | K28: @TK-DSK-BCL15R | L28: @TK-MDY-BCL15R | M28: @TK-MFJ-BCL15R | N28: @TK-MSK-BCL15R | O28: @TK-MSB-BCL15R | P28: @TK-JKG-BCL15R | Q28: @TK-JDG-BCL15R | R28: @TK-JDY-BCL15R | S28: @TK-JWG-BCL15R
A29: Le Mans Cnr Base 1000 - 500 LH - SC Hng | B29: Le Mans Cnr Base 1000 - 500 LH - SC Hng | C29: BCL15L | D29: @TK-DVM-BCL15L | E29: @TK-DVY-BCL15L | F29: @TK-MUM-BCL15L | G29: @TK-DSE-BCL15L | H29: @TK-KGL-BCL15L | I29: @TK-DGL-BCL15L | J29: @TK-DYL-BCL15L | K29: @TK-DSK-BCL15L | L29: @TK-MDY-BCL15L | M29: @TK-MFJ-BCL15L | N29: @TK-MSK-BCL15L | O29: @TK-MSB-BCL15L | P29: @TK-JKG-BCL15L | Q29: @TK-JDG-BCL15L | R29: @TK-JDY-BCL15L | S29: @TK-JWG-BCL15L
A30: Le Mans Cnr Base 1000 - 600 RH - SC Hng | B30: Le Mans Cnr Base 1000 - 600 RH - SC Hng | C30: BCL16R | D30: @TK-DVM-BCL16R | E30: @TK-DVY-BCL16R | F30: @TK-MUM-BCL16R | G30: @TK-DSE-BCL16R | H30: @TK-KGL-BCL16R | I30: @TK-DGL-BCL16R | J30: @TK-DYL-BCL16R | K30: @TK-DSK-BCL16R | L30: @TK-MDY-BCL16R | M30: @TK-MFJ-BCL16R | N30: @TK-MSK-BCL16R | O30: @TK-MSB-BCL16R | P30: @TK-JKG-BCL16R | Q30: @TK-JDG-BCL16R | R30: @TK-JDY-BCL16R | S30: @TK-JWG-BCL16R
A31: Le Mans Cnr Base 1000 - 600 LH - SC Hng | B31: Le Mans Cnr Base 1000 - 600 LH - SC Hng | C31: BCL16L | D31: @TK-DVM-BCL16L | E31: @TK-DVY-BCL16L | F31: @TK-MUM-BCL16L | G31: @TK-DSE-BCL16L | H31: @TK-KGL-BCL16L | I31: @TK-DGL-BCL16L | J31: @TK-DYL-BCL16L | K31: @TK-DSK-BCL16L | L31: @TK-MDY-BCL16L | M31: @TK-MFJ-BCL16L | N31: @TK-MSK-BCL16L | O31: @TK-MSB-BCL16L | P31: @TK-JKG-BCL16L | Q31: @TK-JDG-BCL16L | R31: @TK-JDY-BCL16L | S31: @TK-JWG-BCL16L
A32: Magic Cnr Base Unit 1000 - 500 RH | B32: Magic Cnr Base Unit 1000 - 500 RH | C32: BCM15R | D32: @TK-DVM-BCM15R | E32: @TK-DVY-BCM15R | F32: @TK-MUM-BCM15R | G32: @TK-DSE-BCM15R | H32: @TK-KGL-BCM15R | I32: @TK-DGL-BCM15R | J32: @TK-DYL-BCM15R | K32: @TK-DSK-BCM15R | L32: @TK-MDY-BCM15R | M32: @TK-MFJ-BCM15R | N32: @TK-MSK-BCM15R | O32: @TK-MSB-BCM15R | P32: @TK-JKG-BCM15R | Q32: @TK-JDG-BCM15R | R32: @TK-JDY-BCM15R | S32: @TK-JWG-BCM15R
A33: Magic Cnr Base Unit 1000 - 500 LH | B33: Magic Cnr Base Unit 1000 - 500 LH | C33: BCM15L | D33: @TK-DVM-BCM15L | E33: @TK-DVY-BCM15L | F33: @TK-MUM-BCM15L | G33: @TK-DSE-BCM15L | H33: @TK-KGL-BCM15L | I33: @TK-DGL-BCM15L | J33: @TK-DYL-BCM15L | K33: @TK-DSK-BCM15L | L33: @TK-MDY-BCM15L | M33: @TK-MFJ-BCM15L | N33: @TK-MSK-BCM15L | O33: @TK-MSB-BCM15L | P33: @TK-JKG-BCM15L | Q33: @TK-JDG-BCM15L | R33: @TK-JDY-BCM15L | S33: @TK-JWG-BCM15L
A34: Magic Cnr Base Unit 1000 - 600 RH | B34: Magic Cnr Base Unit 1000 - 600 RH | C34: BCM16R | D34: @TK-DVM-BCM16R | E34: @TK-DVY-BCM16R | F34: @TK-MUM-BCM16R | G34: @TK-DSE-BCM16R | H34: @TK-KGL-BCM16R | I34: @TK-DGL-BCM16R | J34: @TK-DYL-BCM16R | K34: @TK-DSK-BCM16R | L34: @TK-MDY-BCM16R | M34: @TK-MFJ-BCM16R | N34: @TK-MSK-BCM16R | O34: @TK-MSB-BCM16R | P34: @TK-JKG-BCM16R | Q34: @TK-JDG-BCM16R | R34: @TK-JDY-BCM16R | S34: @TK-JWG-BCM16R
A35: Magic Cnr Base Unit 1000 - 600 LH | B35: Magic Cnr Base Unit 1000 - 600 LH | C35: BCM16L | D35: @TK-DVM-BCM16L | E35: @TK-DVY-BCM16L | F35: @TK-MUM-BCM16L | G35: @TK-DSE-BCM16L | H35: @TK-KGL-BCM16L | I35: @TK-DGL-BCM16L | J35: @TK-DYL-BCM16L | K35: @TK-DSK-BCM16L | L35: @TK-MDY-BCM16L | M35: @TK-MFJ-BCM16L | N35: @TK-MSK-BCM16L | O35: @TK-MSB-BCM16L | P35: @TK-JKG-BCM16L | Q35: @TK-JDG-BCM16L | R35: @TK-JDY-BCM16L | S35: @TK-JWG-BCM16L
A36: Cnr Opt Base Unit 800 - 400 door-SC Full | B36: Cnr Opt Base Unit 800 - 400 door-SC Full | C36: BCO84S | D36: @TK-DVM-BCO84S | E36: @TK-DVY-BCO84S | F36: @TK-MUM-BCO84S | G36: @TK-DSE-BCO84S | H36: @TK-KGL-BCO84S | I36: @TK-DGL-BCO84S | J36: @TK-DYL-BCO84S | K36: @TK-DSK-BCO84S | L36: @TK-MDY-BCO84S | M36: @TK-MFJ-BCO84S | N36: @TK-MSK-BCO84S | O36: @TK-MSB-BCO84S | P36: @TK-JKG-BCO84S | Q36: @TK-JDG-BCO84S | R36: @TK-JDY-BCO84S | S36: @TK-JWG-BCO84S
A37: Cnr Opt Base Unit 900 - 450 door - SC Fu | B37: Cnr Opt Base Unit 900 - 450 door - SC Fu | C37: BCO945S | D37: @TK-DVM-BCO945S | E37: @TK-DVY-BCO945S | F37: @TK-MUM-BCO945S | G37: @TK-DSE-BCO945S | H37: @TK-KGL-BCO945S | I37: @TK-DGL-BCO945S | J37: @TK-DYL-BCO945S | K37: @TK-DSK-BCO945S | L37: @TK-MDY-BCO945S | M37: @TK-MFJ-BCO945S | N37: @TK-MSK-BCO945S | O37: @TK-MSB-BCO945S | P37: @TK-JKG-BCO945S | Q37: @TK-JDG-BCO945S | R37: @TK-JDY-BCO945S | S37: @TK-JWG-BCO945S
A38: Cnr Opt Base Unit 1000-450 door-SC Full | B38: Cnr Opt Base Unit 1000-450 door-SC Full | C38: BCO145S | D38: @TK-DVM-BCO145S | E38: @TK-DVY-BCO145S | F38: @TK-MUM-BCO145S | G38: @TK-DSE-BCO145S | H38: @TK-KGL-BCO145S | I38: @TK-DGL-BCO145S | J38: @TK-DYL-BCO145S | K38: @TK-DSK-BCO145S | L38: @TK-MDY-BCO145S | M38: @TK-MFJ-BCO145S | N38: @TK-MSK-BCO145S | O38: @TK-MSB-BCO145S | P38: @TK-JKG-BCO145S | Q38: @TK-JDG-BCO145S | R38: @TK-JDY-BCO145S | S38: @TK-JWG-BCO145S
A39: Cnr Opt Base Unit 1000-500 door-SC Full | B39: Cnr Opt Base Unit 1000-500 door-SC Full | C39: BCO15S | D39: @TK-DVM-BCO15S | E39: @TK-DVY-BCO15S | F39: @TK-MUM-BCO15S | G39: @TK-DSE-BCO15S | H39: @TK-KGL-BCO15S | I39: @TK-DGL-BCO15S | J39: @TK-DYL-BCO15S | K39: @TK-DSK-BCO15S | L39: @TK-MDY-BCO15S | M39: @TK-MFJ-BCO15S | N39: @TK-MSK-BCO15S | O39: @TK-MSB-BCO15S | P39: @TK-JKG-BCO15S | Q39: @TK-JDG-BCO15S | R39: @TK-JDY-BCO15S | S39: @TK-JWG-BCO15S
A40: Cnr Opt Base Unit 1000-600 door-SC Full | B40: Cnr Opt Base Unit 1000-600 door-SC Full | C40: BCO16S | D40: @TK-DVM-BCO16S | E40: @TK-DVY-BCO16S | F40: @TK-MUM-BCO16S | G40: @TK-DSE-BCO16S | H40: @TK-KGL-BCO16S | I40: @TK-DGL-BCO16S | J40: @TK-DYL-BCO16S | K40: @TK-DSK-BCO16S | L40: @TK-MDY-BCO16S | M40: @TK-MFJ-BCO16S | N40: @TK-MSK-BCO16S | O40: @TK-MSB-BCO16S | P40: @TK-JKG-BCO16S | Q40: @TK-JDG-BCO16S | R40: @TK-JDY-BCO16S | S40: @TK-JWG-BCO16S
A41: 950 HL Cnr L Base -SC Full | B41: 950 HL Cnr L Base -SC Full | C41: BCL9S | D41: @TK-DVM-BCL9S | E41: @TK-DVY-BCL9S | F41: @TK-MUM-BCL9S | G41: @TK-DSE-BCL9S | H41: @TK-KGL-BCL9S | I41: @TK-DGL-BCL9S | J41: @TK-DYL-BCL9S | K41: @TK-DSK-BCL9S | L41: @TK-MDY-BCL9S | M41: @TK-MFJ-BCL9S | N41: @TK-MSK-BCL9S | O41: @TK-MSB-BCL9S | P41: @TK-JKG-BCL9S | Q41: @TK-JDG-BCL9S | R41: @TK-JDY-BCL9S | S41: @TK-JWG-BCL9S
A42: 950 HL 3/4 Carousel Cnr L Base - SC Full | B42: 950 HL 3/4 Carousel Cnr L Base - SC Full | C42: BCLC9S | D42: @TK-DVM-BCLC9S | E42: @TK-DVY-BCLC9S | F42: @TK-MUM-BCLC9S | G42: @TK-DSE-BCLC9S | H42: @TK-KGL-BCLC9S | I42: @TK-DGL-BCLC9S | J42: @TK-DYL-BCLC9S | K42: @TK-DSK-BCLC9S | L42: @TK-MDY-BCLC9S | M42: @TK-MFJ-BCLC9S | N42: @TK-MSK-BCLC9S | O42: @TK-MSB-BCLC9S | P42: @TK-JKG-BCLC9S | Q42: @TK-JDG-BCLC9S | R42: @TK-JDY-BCLC9S | S42: @TK-JWG-BCLC9S
A43: 600 Belfast Sink Unit (450mm High) | B43: 600 Belfast Sink Unit (450mm High) | C43: BSU6450S | D43: @TK-DVM-BSU6450S | E43: @TK-DVY-BSU6450S | F43: @TK-MUM-BSU6450S | G43: @TK-DSE-BSU6450S | H43: @TK-KGL-BSU6450S | I43: @TK-DGL-BSU6450S | J43: @TK-DYL-BSU6450S | K43: @TK-DSK-BSU6450S | L43: @TK-MDY-BSU6450S | M43: @TK-MFJ-BSU6450S | N43: @TK-MSK-BSU6450S | O43: @TK-MSB-BSU6450S | P43: @TK-JKG-BSU6450S | Q43: @TK-JDG-BSU6450S | R43: @TK-JDY-BSU6450S | S43: @TK-JWG-BSU6450S
A44: 600 Belfast Sink Unit (495mm High) | B44: 600 Belfast Sink Unit (495mm High) | C44: BSU6495S | D44: @TK-DVM-BSU6495S | E44: @TK-DVY-BSU6495S | F44: @TK-MUM-BSU6495S | G44: @TK-DSE-BSU6495S | H44: @TK-KGL-BSU6495S | I44: @TK-DGL-BSU6495S | J44: @TK-DYL-BSU6495S | K44: @TK-DSK-BSU6495S | L44: @TK-MDY-BSU6495S | M44: @TK-MFJ-BSU6495S | N44: @TK-MSK-BSU6495S | O44: @TK-MSB-BSU6495S | P44: @TK-JKG-BSU6495S | Q44: @TK-JDG-BSU6495S | R44: @TK-JDY-BSU6495S | S44: @TK-JWG-BSU6495S
A45: 500 4 Drw Base Unit -SC Full | B45: 500 4 Drw Base Unit -SC Full | C45: BD54S | D45: @TK-DVM-BD54S | E45: @TK-DVY-BD54S | F45: @TK-MUM-BD54S | G45: @TK-DSE-BD54S | H45: @TK-KGL-BD54S | I45: @TK-DGL-BD54S | J45: @TK-DYL-BD54S | K45: @TK-DSK-BD54S | L45: @TK-MDY-BD54S | M45: @TK-MFJ-BD54S | N45: @TK-MSK-BD54S | O45: @TK-MSB-BD54S | P45: @TK-JKG-BD54S | Q45: @TK-JDG-BD54S | R45: @TK-JDY-BD54S | S45: @TK-JWG-BD54S
A46: 500 3 Drw Base Unit -SC Full | B46: 500 3 Drw Base Unit -SC Full | C46: BD53S | D46: @TK-DVM-BD53S | E46: @TK-DVY-BD53S | F46: @TK-MUM-BD53S | G46: @TK-DSE-BD53S | H46: @TK-KGL-BD53S | I46: @TK-DGL-BD53S | J46: @TK-DYL-BD53S | K46: @TK-DSK-BD53S | L46: @TK-MDY-BD53S | M46: @TK-MFJ-BD53S | N46: @TK-MSK-BD53S | O46: @TK-MSB-BD53S | P46: @TK-JKG-BD53S | Q46: @TK-JDG-BD53S | R46: @TK-JDY-BD53S | S46: @TK-JWG-BD53S
A47: 600 3 Drw Base Unit -SC Full | B47: 600 3 Drw Base Unit -SC Full | C47: BD63S | D47: @TK-DVM-BD63S | E47: @TK-DVY-BD63S | F47: @TK-MUM-BD63S | G47: @TK-DSE-BD63S | H47: @TK-KGL-BD63S | I47: @TK-DGL-BD63S | J47: @TK-DYL-BD63S | K47: @TK-DSK-BD63S | L47: @TK-MDY-BD63S | M47: @TK-MFJ-BD63S | N47: @TK-MSK-BD63S | O47: @TK-MSB-BD63S | P47: @TK-JKG-BD63S | Q47: @TK-JDG-BD63S | R47: @TK-JDY-BD63S | S47: @TK-JWG-BD63S
A48: 800 3 Drw Base Unit -SC Full | B48: 800 3 Drw Base Unit -SC Full | C48: BD83S | D48: @TK-DVM-BD83S | E48: @TK-DVY-BD83S | F48: @TK-MUM-BD83S | G48: @TK-DSE-BD83S | H48: @TK-KGL-BD83S | I48: @TK-DGL-BD83S | J48: @TK-DYL-BD83S | K48: @TK-DSK-BD83S | L48: @TK-MDY-BD83S | M48: @TK-MFJ-BD83S | N48: @TK-MSK-BD83S | O48: @TK-MSB-BD83S | P48: @TK-JKG-BD83S | Q48: @TK-JDG-BD83S | R48: @TK-JDY-BD83S | S48: @TK-JWG-BD83S
A49: 900 3 Drw Base Unit -SC Full | B49: 900 3 Drw Base Unit -SC Full | C49: BD93S | D49: @TK-DVM-BD93S | E49: @TK-DVY-BD93S | F49: @TK-MUM-BD93S | G49: @TK-DSE-BD93S | H49: @TK-KGL-BD93S | I49: @TK-DGL-BD93S | J49: @TK-DYL-BD93S | K49: @TK-DSK-BD93S | L49: @TK-MDY-BD93S | M49: @TK-MFJ-BD93S | N49: @TK-MSK-BD93S | O49: @TK-MSB-BD93S | P49: @TK-JKG-BD93S | Q49: @TK-JDG-BD93S | R49: @TK-JDY-BD93S | S49: @TK-JWG-BD93S
A50: 1000 3 Drw Base Unit -SC Full | B50: 1000 3 Drw Base Unit -SC Full | C50: BD13S | D50: @TK-DVM-BD13S | E50: @TK-DVY-BD13S | F50: @TK-MUM-BD13S | G50: @TK-DSE-BD13S | H50: @TK-KGL-BD13S | I50: @TK-DGL-BD13S | J50: @TK-DYL-BD13S | K50: @TK-DSK-BD13S | L50: @TK-MDY-BD13S | M50: @TK-MFJ-BD13S | N50: @TK-MSK-BD13S | O50: @TK-MSB-BD13S | P50: @TK-JKG-BD13S | Q50: @TK-JDG-BD13S | R50: @TK-JDY-BD13S | S50: @TK-JWG-BD13S
A51: 600 2 Pan Drw Unit -SC Full | B51: 600 2 Pan Drw Unit -SC Full | C51: BD62S | D51: @TK-DVM-BD62S | E51: @TK-DVY-BD62S | F51: @TK-MUM-BD62S | G51: @TK-DSE-BD62S | H51: @TK-KGL-BD62S | I51: @TK-DGL-BD62S | J51: @TK-DYL-BD62S | K51: @TK-DSK-BD62S | L51: @TK-MDY-BD62S | M51: @TK-MFJ-BD62S | N51: @TK-MSK-BD62S | O51: @TK-MSB-BD62S | P51: @TK-JKG-BD62S | Q51: @TK-JDG-BD62S | R51: @TK-JDY-BD62S | S51: @TK-JWG-BD62S
A52: 900 2 Pan Drw Unit -SC Full | B52: 900 2 Pan Drw Unit -SC Full | C52: BD92S | D52: @TK-DVM-BD92S | E52: @TK-DVY-BD92S | F52: @TK-MUM-BD92S | G52: @TK-DSE-BD92S | H52: @TK-KGL-BD92S | I52: @TK-DGL-BD92S | J52: @TK-DYL-BD92S | K52: @TK-DSK-BD92S | L52: @TK-MDY-BD92S | M52: @TK-MFJ-BD92S | N52: @TK-MSK-BD92S | O52: @TK-MSB-BD92S | P52: @TK-JKG-BD92S | Q52: @TK-JDG-BD92S | R52: @TK-JDY-BD92S | S52: @TK-JWG-BD92S
A53: 150 Wall Unit - SC Full | B53: 150 Wall Unit - SC Full | C53: W15S | D53: @TK-DVM-W15S | E53: @TK-DVY-W15S | F53: @TK-MUM-W15S | G53: @TK-DSE-W15S | H53: @TK-KGL-W15S | I53: @TK-DGL-W15S | J53: @TK-DYL-W15S | K53: @TK-DSK-W15S | L53: @TK-MDY-W15S | M53: @TK-MFJ-W15S | N53: @TK-MSK-W15S | O53: @TK-MSB-W15S | P53: @TK-JKG-W15S | Q53: @TK-JDG-W15S | R53: @TK-JDY-W15S | S53: @TK-JWG-W15S
A54: 300 Wall Unit -SC Full | B54: 300 Wall Unit -SC Full | C54: W30S | D54: @TK-DVM-W30S | E54: @TK-DVY-W30S | F54: @TK-MUM-W30S | G54: @TK-DSE-W30S | H54: @TK-KGL-W30S | I54: @TK-DGL-W30S | J54: @TK-DYL-W30S | K54: @TK-DSK-W30S | L54: @TK-MDY-W30S | M54: @TK-MFJ-W30S | N54: @TK-MSK-W30S | O54: @TK-MSB-W30S | P54: @TK-JKG-W30S | Q54: @TK-JDG-W30S | R54: @TK-JDY-W30S | S54: @TK-JWG-W30S
A55: 350 Wall Unit -SC Full | B55: 350 Wall Unit -SC Full | C55: W35S | D55: @TK-DVM-W35S | E55: @TK-DVY-W35S | F55: @TK-MUM-W35S | G55: @TK-DSE-W35S | H55: @TK-KGL-W35S | I55: @TK-DGL-W35S | J55: @TK-DYL-W35S | K55: @TK-DSK-W35S | L55: @TK-MDY-W35S | M55: @TK-MFJ-W35S | N55: @TK-MSK-W35S | O55: @TK-MSB-W35S | P55: @TK-JKG-W35S | Q55: @TK-JDG-W35S | R55: @TK-JDY-W35S | S55: @TK-JWG-W35S
A56: 400 Wall Unit -SC Full | B56: 400 Wall Unit -SC Full | C56: W40S | D56: @TK-DVM-W40S | E56: @TK-DVY-W40S | F56: @TK-MUM-W40S | G56: @TK-DSE-W40S | H56: @TK-KGL-W40S | I56: @TK-DGL-W40S | J56: @TK-DYL-W40S | K56: @TK-DSK-W40S | L56: @TK-MDY-W40S | M56: @TK-MFJ-W40S | N56: @TK-MSK-W40S | O56: @TK-MSB-W40S | P56: @TK-JKG-W40S | Q56: @TK-JDG-W40S | R56: @TK-JDY-W40S | S56: @TK-JWG-W40S
A57: 450 Wall Unit -SC Full | B57: 450 Wall Unit -SC Full | C57: W45S | D57: @TK-DVM-W45S | E57: @TK-DVY-W45S | F57: @TK-MUM-W45S | G57: @TK-DSE-W45S | H57: @TK-KGL-W45S | I57: @TK-DGL-W45S | J57: @TK-DYL-W45S | K57: @TK-DSK-W45S | L57: @TK-MDY-W45S | M57: @TK-MFJ-W45S | N57: @TK-MSK-W45S | O57: @TK-MSB-W45S | P57: @TK-JKG-W45S | Q57: @TK-JDG-W45S | R57: @TK-JDY-W45S | S57: @TK-JWG-W45S
A58: 500 Wall Unit -SC Full | B58: 500 Wall Unit -SC Full | C58: W50S | D58: @TK-DVM-W50S | E58: @TK-DVY-W50S | F58: @TK-MUM-W50S | G58: @TK-DSE-W50S | H58: @TK-KGL-W50S | I58: @TK-DGL-W50S | J58: @TK-DYL-W50S | K58: @TK-DSK-W50S | L58: @TK-MDY-W50S | M58: @TK-MFJ-W50S | N58: @TK-MSK-W50S | O58: @TK-MSB-W50S | P58: @TK-JKG-W50S | Q58: @TK-JDG-W50S | R58: @TK-JDY-W50S | S58: @TK-JWG-W50S
A59: 600 Wall Unit -SC Full | B59: 600 Wall Unit -SC Full | C59: W60S | D59: @TK-DVM-W60S | E59: @TK-DVY-W60S | F59: @TK-MUM-W60S | G59: @TK-DSE-W60S | H59: @TK-KGL-W60S | I59: @TK-DGL-W60S | J59: @TK-DYL-W60S | K59: @TK-DSK-W60S | L59: @TK-MDY-W60S | M59: @TK-MFJ-W60S | N59: @TK-MSK-W60S | O59: @TK-MSB-W60S | P59: @TK-JKG-W60S | Q59: @TK-JDG-W60S | R59: @TK-JDY-W60S | S59: @TK-JWG-W60S
A60: 700 Wall Unit -SC Full | B60: 700 Wall Unit -SC Full | C60: W70S | D60: @TK-DVM-W70S | E60: @TK-DVY-W70S | F60: @TK-MUM-W70S | G60: @TK-DSE-W70S | H60: @TK-KGL-W70S | I60: @TK-DGL-W70S | J60: @TK-DYL-W70S | K60: @TK-DSK-W70S | L60: @TK-MDY-W70S | M60: @TK-MFJ-W70S | N60: @TK-MSK-W70S | O60: @TK-MSB-W70S | P60: @TK-JKG-W70S | Q60: @TK-JDG-W70S | R60: @TK-JDY-W70S | S60: @TK-JWG-W70S
A61: 800 Wall Unit -SC Full | B61: 800 Wall Unit -SC Full | C61: W80S | D61: @TK-DVM-W80S | E61: @TK-DVY-W80S | F61: @TK-MUM-W80S | G61: @TK-DSE-W80S | H61: @TK-KGL-W80S | I61: @TK-DGL-W80S | J61: @TK-DYL-W80S | K61: @TK-DSK-W80S | L61: @TK-MDY-W80S | M61: @TK-MFJ-W80S | N61: @TK-MSK-W80S | O61: @TK-MSB-W80S | P61: @TK-JKG-W80S | Q61: @TK-JDG-W80S | R61: @TK-JDY-W80S | S61: @TK-JWG-W80S
A62: 900 Wall Unit -SC Full | B62: 900 Wall Unit -SC Full | C62: W90S | D62: @TK-DVM-W90S | E62: @TK-DVY-W90S | F62: @TK-MUM-W90S | G62: @TK-DSE-W90S | H62: @TK-KGL-W90S | I62: @TK-DGL-W90S | J62: @TK-DYL-W90S | K62: @TK-DSK-W90S | L62: @TK-MDY-W90S | M62: @TK-MFJ-W90S | N62: @TK-MSK-W90S | O62: @TK-MSB-W90S | P62: @TK-JKG-W90S | Q62: @TK-JDG-W90S | R62: @TK-JDY-W90S | S62: @TK-JWG-W90S
A63: 1000 Wall Unit -SC Full | B63: 1000 Wall Unit -SC Full | C63: W100S | D63: @TK-DVM-W100S | E63: @TK-DVY-W100S | F63: @TK-MUM-W100S | G63: @TK-DSE-W100S | H63: @TK-KGL-W100S | I63: @TK-DGL-W100S | J63: @TK-DYL-W100S | K63: @TK-DSK-W100S | L63: @TK-MDY-W100S | M63: @TK-MFJ-W100S | N63: @TK-MSK-W100S | O63: @TK-MSB-W100S | P63: @TK-JKG-W100S | Q63: @TK-JDG-W100S | R63: @TK-JDY-W100S | S63: @TK-JWG-W100S
A64: 600 Cnr Wall Unit -SC Full | B64: 600 Cnr Wall Unit -SC Full | C64: WC6S | D64: @TK-DVM-WC6S | E64: @TK-DVY-WC6S | F64: @TK-MUM-WC6S | G64: @TK-DSE-WC6S | H64: @TK-KGL-WC6S | I64: @TK-DGL-WC6S | J64: @TK-DYL-WC6S | K64: @TK-DSK-WC6S | L64: @TK-MDY-WC6S | M64: @TK-MFJ-WC6S | N64: @TK-MSK-WC6S | O64: @TK-MSB-WC6S | P64: @TK-JKG-WC6S | Q64: @TK-JDG-WC6S | R64: @TK-JDY-WC6S | S64: @TK-JWG-WC6S
A65: 900 Cnr Wall Unit -SC Full | B65: 900 Cnr Wall Unit -SC Full | C65: WC9S | D65: @TK-DVM-WC9S | E65: @TK-DVY-WC9S | F65: @TK-MUM-WC9S | G65: @TK-DSE-WC9S | H65: @TK-KGL-WC9S | I65: @TK-DGL-WC9S | J65: @TK-DYL-WC9S | K65: @TK-DSK-WC9S | L65: @TK-MDY-WC9S | M65: @TK-MFJ-WC9S | N65: @TK-MSK-WC9S | O65: @TK-MSB-WC9S | P65: @TK-JKG-WC9S | Q65: @TK-JDG-WC9S | R65: @TK-JDY-WC9S | S65: @TK-JWG-WC9S
A66: 650 L Cnr Wall Unit -SC Full | B66: 650 L Cnr Wall Unit -SC Full | C66: WCL65S | D66: @TK-DVM-WCL65S | E66: @TK-DVY-WCL65S | F66: @TK-MUM-WCL65S | G66: @TK-DSE-WCL65S | H66: @TK-KGL-WCL65S | I66: @TK-DGL-WCL65S | J66: @TK-DYL-WCL65S | K66: @TK-DSK-WCL65S | L66: @TK-MDY-WCL65S | M66: @TK-MFJ-WCL65S | N66: @TK-MSK-WCL65S | O66: @TK-MSB-WCL65S | P66: @TK-JKG-WCL65S | Q66: @TK-JDG-WCL65S | R66: @TK-JDY-WCL65S | S66: @TK-JWG-WCL65S
A67: 600 Wall Microwave Unit-SC Full | B67: 600 Wall Microwave Unit-SC Full | C67: WM60S | D67: @TK-DVM-WM60S | E67: @TK-DVY-WM60S | F67: @TK-MUM-WM60S | G67: @TK-DSE-WM60S | H67: @TK-KGL-WM60S | I67: @TK-DGL-WM60S | J67: @TK-DYL-WM60S | K67: @TK-DSK-WM60S | L67: @TK-MDY-WM60S | M67: @TK-MFJ-WM60S | N67: @TK-MSK-WM60S | O67: @TK-MSB-WM60S | P67: @TK-JKG-WM60S | Q67: @TK-JDG-WM60S | R67: @TK-JDY-WM60S | S67: @TK-JWG-WM60S
A68: 600 Boiler Housing - SC Full | B68: 600 Boiler Housing - SC Full | C68: WBHUS | D68: @TK-DVM-WBHUS | E68: @TK-DVY-WBHUS | F68: @TK-MUM-WBHUS | G68: @TK-DSE-WBHUS | H68: @TK-KGL-WBHUS | I68: @TK-DGL-WBHUS | J68: @TK-DYL-WBHUS | K68: @TK-DSK-WBHUS | L68: @TK-MDY-WBHUS | M68: @TK-MFJ-WBHUS | N68: @TK-MSK-WBHUS | O68: @TK-MSB-WBHUS | P68: @TK-JKG-WBHUS | Q68: @TK-JDG-WBHUS | R68: @TK-JDY-WBHUS | S68: @TK-JWG-WBHUS
A69: 600 Bifold Unit | B69: 600 Bifold Unit | C69: WBI60 | D69: @TK-DVM-WBI60 | E69: @TK-DVY-WBI60 | F69: @TK-MUM-WBI60 | G69: @TK-DSE-WBI60 | H69: @TK-KGL-WBI60 | I69: @TK-DGL-WBI60 | J69: @TK-DYL-WBI60 | K69: @TK-DSK-WBI60 | L69: @TK-MDY-WBI60 | M69: @TK-MFJ-WBI60 | N69: @TK-MSK-WBI60 | O69: @TK-MSB-WBI60 | P69: @TK-JKG-WBI60 | Q69: @TK-JDG-WBI60 | R69: @TK-JDY-WBI60 | S69: @TK-JWG-WBI60
A70: 900 Bifold Unit | B70: 900 Bifold Unit | C70: WBI90 | D70: @TK-DVM-WBI90 | E70: @TK-DVY-WBI90 | F70: @TK-MUM-WBI90 | G70: @TK-DSE-WBI90 | H70: @TK-KGL-WBI90 | I70: @TK-DGL-WBI90 | J70: @TK-DYL-WBI90 | K70: @TK-DSK-WBI90 | L70: @TK-MDY-WBI90 | M70: @TK-MFJ-WBI90 | N70: @TK-MSK-WBI90 | O70: @TK-MSB-WBI90 | P70: @TK-JKG-WBI90 | Q70: @TK-JDG-WBI90 | R70: @TK-JDY-WBI90 | S70: @TK-JWG-WBI90
A71: 600 Bridging Unit -SC Full | B71: 600 Bridging Unit -SC Full | C71: WB62S | D71: @TK-DVM-WB62S | E71: @TK-DVY-WB62S | F71: @TK-MUM-WB62S | G71: @TK-DSE-WB62S | H71: @TK-KGL-WB62S | I71: @TK-DGL-WB62S | J71: @TK-DYL-WB62S | K71: @TK-DSK-WB62S | L71: @TK-MDY-WB62S | M71: @TK-MFJ-WB62S | N71: @TK-MSK-WB62S | O71: @TK-MSB-WB62S | P71: @TK-JKG-WB62S | Q71: @TK-JDG-WB62S | R71: @TK-JDY-WB62S | S71: @TK-JWG-WB62S
A72: 800 Bridging Unit -SC Full | B72: 800 Bridging Unit -SC Full | C72: WB82S | D72: @TK-DVM-WB82S | E72: @TK-DVY-WB82S | F72: @TK-MUM-WB82S | G72: @TK-DSE-WB82S | H72: @TK-KGL-WB82S | I72: @TK-DGL-WB82S | J72: @TK-DYL-WB82S | K72: @TK-DSK-WB82S | L72: @TK-MDY-WB82S | M72: @TK-MFJ-WB82S | N72: @TK-MSK-WB82S | O72: @TK-MSB-WB82S | P72: @TK-JKG-WB82S | Q72: @TK-JDG-WB82S | R72: @TK-JDY-WB82S | S72: @TK-JWG-WB82S
A73: 900 Bridging Unit -SC Full | B73: 900 Bridging Unit -SC Full | C73: WB92S | D73: @TK-DVM-WB92S | E73: @TK-DVY-WB92S | F73: @TK-MUM-WB92S | G73: @TK-DSE-WB92S | H73: @TK-KGL-WB92S | I73: @TK-DGL-WB92S | J73: @TK-DYL-WB92S | K73: @TK-DSK-WB92S | L73: @TK-MDY-WB92S | M73: @TK-MFJ-WB92S | N73: @TK-MSK-WB92S | O73: @TK-MSB-WB92S | P73: @TK-JKG-WB92S | Q73: @TK-JDG-WB92S | R73: @TK-JDY-WB92S | S73: @TK-JWG-WB92S
A74: 1000 Bridging Unit -SC Full | B74: 1000 Bridging Unit -SC Full | C74: WB12S | D74: @TK-DVM-WB12S | E74: @TK-DVY-WB12S | F74: @TK-MUM-WB12S | G74: @TK-DSE-WB12S | H74: @TK-KGL-WB12S | I74: @TK-DGL-WB12S | J74: @TK-DYL-WB12S | K74: @TK-DSK-WB12S | L74: @TK-MDY-WB12S | M74: @TK-MFJ-WB12S | N74: @TK-MSK-WB12S | O74: @TK-MSB-WB12S | P74: @TK-JKG-WB12S | Q74: @TK-JDG-WB12S | R74: @TK-JDY-WB12S | S74: @TK-JWG-WB12S
A75: 300 Larder Unit -SC Full | B75: 300 Larder Unit - Comp | C75: L3S | D75: @TK-DVM-L3S | E75: @TK-DVY-L3S | F75: @TK-MUM-L3S | G75: @TK-DSE-L3S | H75: @TK-KGL-L3S | I75: @TK-DGL-L3S | J75: @TK-DYL-L3S | K75: @TK-DSK-L3S | L75: @TK-MDY-L3S | M75: @TK-MFJ-L3S | N75: @TK-MSK-L3S | O75: @TK-MSB-L3S | P75: @TK-JKG-L3S | Q75: @TK-JDG-L3S | R75: @TK-JDY-L3S | S75: @TK-JWG-L3S
A76: 500 Larder Unit -SC Full | B76: 500 Larder Unit - Comp | C76: L5S | D76: @TK-DVM-L5S | E76: @TK-DVY-L5S | F76: @TK-MUM-L5S | G76: @TK-DSE-L5S | H76: @TK-KGL-L5S | I76: @TK-DGL-L5S | J76: @TK-DYL-L5S | K76: @TK-DSK-L5S | L76: @TK-MDY-L5S | M76: @TK-MFJ-L5S | N76: @TK-MSK-L5S | O76: @TK-MSB-L5S | P76: @TK-JKG-L5S | Q76: @TK-JDG-L5S | R76: @TK-JDY-L5S | S76: @TK-JWG-L5S
A77: 600 Larder Unit -SC Full | B77: 600 Larder Unit - Comp | C77: L6S | D77: @TK-DVM-L6S | E77: @TK-DVY-L6S | F77: @TK-MUM-L6S | G77: @TK-DSE-L6S | H77: @TK-KGL-L6S | I77: @TK-DGL-L6S | J77: @TK-DYL-L6S | K77: @TK-DSK-L6S | L77: @TK-MDY-L6S | M77: @TK-MFJ-L6S | N77: @TK-MSK-L6S | O77: @TK-MSB-L6S | P77: @TK-JKG-L6S | Q77: @TK-JDG-L6S | R77: @TK-JDY-L6S | S77: @TK-JWG-L6S
A78: 300mm Larder Unit & Pullout KB | B78: 300mm Larder Unit & Pullout KB - Comp | C78: LP3 | D78: @TK-DVM-LP3 | E78: @TK-DVY-LP3 | F78: @TK-MUM-LP3 | G78: @TK-DSE-LP3 | H78: @TK-KGL-LP3 | I78: @TK-DGL-LP3 | J78: @TK-DYL-LP3 | K78: @TK-DSK-LP3 | L78: @TK-MDY-LP3 | M78: @TK-MFJ-LP3 | N78: @TK-MSK-LP3 | O78: @TK-MSB-LP3 | P78: @TK-JKG-LP3 | Q78: @TK-JDG-LP3 | R78: @TK-JDY-LP3 | S78: @TK-JWG-LP3
A79: 600mm Larder Unit & Tandem PO - SC Full | B79: 600mm Larder Unit & Tandem PO - Comp | C79: LP6TS | D79: @TK-DVM-LP6TS | E79: @TK-DVY-LP6TS | F79: @TK-MUM-LP6TS | G79: @TK-DSE-LP6TS | H79: @TK-KGL-LP6TS | I79: @TK-DGL-LP6TS | J79: @TK-DYL-LP6TS | K79: @TK-DSK-LP6TS | L79: @TK-MDY-LP6TS | M79: @TK-MFJ-LP6TS | N79: @TK-MSK-LP6TS | O79: @TK-MSB-LP6TS | P79: @TK-JKG-LP6TS | Q79: @TK-JDG-LP6TS | R79: @TK-JDY-LP6TS | S79: @TK-JWG-LP6TS
A80: 500mm Larder Unit & Tandem Solo -SC Full | B80: 500mm Larder Unit & Tandem Solo PO Comp | C80: LP5TSS | D80: @TK-DVM-LP5TSS | E80: @TK-DVY-LP5TSS | F80: @TK-MUM-LP5TSS | G80: @TK-DSE-LP5TSS | H80: @TK-KGL-LP5TSS | I80: @TK-DGL-LP5TSS | J80: @TK-DYL-LP5TSS | K80: @TK-DSK-LP5TSS | L80: @TK-MDY-LP5TSS | M80: @TK-MFJ-LP5TSS | N80: @TK-MSK-LP5TSS | O80: @TK-MSB-LP5TSS | P80: @TK-JKG-LP5TSS | Q80: @TK-JDG-LP5TSS | R80: @TK-JDY-LP5TSS | S80: @TK-JWG-LP5TSS
A81: 600mm Larder Unit & Tandem Solo - SC Ful | B81: 600mm Larder Unit & Tandem Solo PO Comp | C81: LP6TSS | D81: @TK-DVM-LP6TSS | E81: @TK-DVY-LP6TSS | F81: @TK-MUM-LP6TSS | G81: @TK-DSE-LP6TSS | H81: @TK-KGL-LP6TSS | I81: @TK-DGL-LP6TSS | J81: @TK-DYL-LP6TSS | K81: @TK-DSK-LP6TSS | L81: @TK-MDY-LP6TSS | M81: @TK-MFJ-LP6TSS | N81: @TK-MSK-LP6TSS | O81: @TK-MSB-LP6TSS | P81: @TK-JKG-LP6TSS | Q81: @TK-JDG-LP6TSS | R81: @TK-JDY-LP6TSS | S81: @TK-JWG-LP6TSS
A82: 600 BU Oven Housing | B82: 600 BU Oven Housing | C82: BOH6 | D82: @TK-DVM-BOH6 | E82: @TK-DVY-BOH6 | F82: @TK-MUM-BOH6 | G82: @TK-DSE-BOH6 | H82: @TK-KGL-BOH6 | I82: @TK-DGL-BOH6 | J82: @TK-DYL-BOH6 | K82: @TK-DSK-BOH6 | L82: @TK-MDY-BOH6 | M82: @TK-MFJ-BOH6 | N82: @TK-MSK-BOH6 | O82: @TK-MSB-BOH6 | P82: @TK-JKG-BOH6 | Q82: @TK-JDG-BOH6 | R82: @TK-JDY-BOH6 | S82: @TK-JWG-BOH6
A83: 600 50/50 FF Housing Unit | B83: 600 50/50 FF Housing Unit - Comp | C83: AH-F55 | D83: @TK-DVM-AH-F55 | E83: @TK-DVY-AH-F55 | F83: @TK-MUM-AH-F55 | G83: @TK-DSE-AH-F55 | H83: @TK-KGL-AH-F55 | I83: @TK-DGL-AH-F55 | J83: @TK-DYL-AH-F55 | K83: @TK-DSK-AH-F55 | L83: @TK-MDY-AH-F55 | M83: @TK-MFJ-AH-F55 | N83: @TK-MSK-AH-F55 | O83: @TK-MSB-AH-F55 | P83: @TK-JKG-AH-F55 | Q83: @TK-JDG-AH-F55 | R83: @TK-JDY-AH-F55 | S83: @TK-JWG-AH-F55
A84: 600 70/30 FF Housing Unit | B84: 600 70/30 FF Housing Unit - Comp | C84: AH-F73 | D84: @TK-DVM-AH-F73 | E84: @TK-DVY-AH-F73 | F84: @TK-MUM-AH-F73 | G84: @TK-DSE-AH-F73 | H84: @TK-KGL-AH-F73 | I84: @TK-DGL-AH-F73 | J84: @TK-DYL-AH-F73 | K84: @TK-DSK-AH-F73 | L84: @TK-MDY-AH-F73 | M84: @TK-MFJ-AH-F73 | N84: @TK-MSK-AH-F73 | O84: @TK-MSB-AH-F73 | P84: @TK-JKG-AH-F73 | Q84: @TK-JDG-AH-F73 | R84: @TK-JDY-AH-F73 | S84: @TK-JWG-AH-F73
A85: 600 Dble Oven Housing -SC Full | B85: 600 Dble Oven Housing - Comp | C85: AH-DOS | D85: @TK-DVM-AH-DOS | E85: @TK-DVY-AH-DOS | F85: @TK-MUM-AH-DOS | G85: @TK-DSE-AH-DOS | H85: @TK-KGL-AH-DOS | I85: @TK-DGL-AH-DOS | J85: @TK-DYL-AH-DOS | K85: @TK-DSK-AH-DOS | L85: @TK-MDY-AH-DOS | M85: @TK-MFJ-AH-DOS | N85: @TK-MSK-AH-DOS | O85: @TK-MSB-AH-DOS | P85: @TK-JKG-AH-DOS | Q85: @TK-JDG-AH-DOS | R85: @TK-JDY-AH-DOS | S85: @TK-JWG-AH-DOS
A86: 600 Dble Oven & 2 Drws -SC Full | B86: 600 Dble Oven & 2 Drws - Comp | C86: AH-DO2DS | D86: @TK-DVM-AH-DO2DS | E86: @TK-DVY-AH-DO2DS | F86: @TK-MUM-AH-DO2DS | G86: @TK-DSE-AH-DO2DS | H86: @TK-KGL-AH-DO2DS | I86: @TK-DGL-AH-DO2DS | J86: @TK-DYL-AH-DO2DS | K86: @TK-DSK-AH-DO2DS | L86: @TK-MDY-AH-DO2DS | M86: @TK-MFJ-AH-DO2DS | N86: @TK-MSK-AH-DO2DS | O86: @TK-MSB-AH-DO2DS | P86: @TK-JKG-AH-DO2DS | Q86: @TK-JDG-AH-DO2DS | R86: @TK-JDY-AH-DO2DS | S86: @TK-JWG-AH-DO2DS
A87: 600 Double Oven & MW unit -SC Full | B87: 600 Double Oven & MW unit - Comp | C87: AH-DMWS | D87: @TK-DVM-AH-DMWS | E87: @TK-DVY-AH-DMWS | F87: @TK-MUM-AH-DMWS | G87: @TK-DSE-AH-DMWS | H87: @TK-KGL-AH-DMWS | I87: @TK-DGL-AH-DMWS | J87: @TK-DYL-AH-DMWS | K87: @TK-DSK-AH-DMWS | L87: @TK-MDY-AH-DMWS | M87: @TK-MFJ-AH-DMWS | N87: @TK-MSK-AH-DMWS | O87: @TK-MSB-AH-DMWS | P87: @TK-JKG-AH-DMWS | Q87: @TK-JDG-AH-DMWS | R87: @TK-JDY-AH-DMWS | S87: @TK-JWG-AH-DMWS
A88: 600 Single Oven -SC Full | B88: 600 Single Oven Unit - Comp | C88: AH-SOS | D88: Not Available | E88: Not Available | F88: Not Available | G88: Not Available | H88: Not Available | I88: Not Available | J88: Not Available | K88: Not Available | L88: Not Available | M88: Not Available | N88: Not Available | O88: Not Available | P88: Not Available | Q88: Not Available | R88: Not Available | S88: Not Available
A89: 600 Single Oven + 1 Drw Unit -SC Full | B89: 600 Single Oven + 1 Drw Unit - Comp | C89: AH-SO1DS | D89: @TK-DVM-AH-SO1DS | E89: @TK-DVY-AH-SO1DS | F89: @TK-MUM-AH-SO1DS | G89: @TK-DSE-AH-SO1DS | H89: @TK-KGL-AH-SO1DS | I89: @TK-DGL-AH-SO1DS | J89: @TK-DYL-AH-SO1DS | K89: @TK-DSK-AH-SO1DS | L89: @TK-MDY-AH-SO1DS | M89: @TK-MFJ-AH-SO1DS | N89: @TK-MSK-AH-SO1DS | O89: @TK-MSB-AH-SO1DS | P89: @TK-JKG-AH-SO1DS | Q89: @TK-JDG-AH-SO1DS | R89: @TK-JDY-AH-SO1DS | S89: @TK-JWG-AH-SO1DS
A90: 600 Single Oven + 2 Drws Unit -SC Full | B90: 600 Single Oven + 2 Drws Unit - Comp | C90: AH-SO2DS | D90: @TK-DVM-AH-SO2DS | E90: @TK-DVY-AH-SO2DS | F90: @TK-MUM-AH-SO2DS | G90: @TK-DSE-AH-SO2DS | H90: @TK-KGL-AH-SO2DS | I90: @TK-DGL-AH-SO2DS | J90: @TK-DYL-AH-SO2DS | K90: @TK-DSK-AH-SO2DS | L90: @TK-MDY-AH-SO2DS | M90: @TK-MFJ-AH-SO2DS | N90: @TK-MSK-AH-SO2DS | O90: @TK-MSB-AH-SO2DS | P90: @TK-JKG-AH-SO2DS | Q90: @TK-JDG-AH-SO2DS | R90: @TK-JDY-AH-SO2DS | S90: @TK-JWG-AH-SO2DS
A91: 600 Single Oven + 3 Drws Unit - SC Full | B91: 600 Single Oven + 3 Drws Unit - Comp | C91: AH-SO3DS | D91: @TK-DVM-AH-SO3DS | E91: @TK-DVY-AH-SO3DS | F91: @TK-MUM-AH-SO3DS | G91: @TK-DSE-AH-SO3DS | H91: @TK-KGL-AH-SO3DS | I91: @TK-DGL-AH-SO3DS | J91: @TK-DYL-AH-SO3DS | K91: @TK-DSK-AH-SO3DS | L91: @TK-MDY-AH-SO3DS | M91: @TK-MFJ-AH-SO3DS | N91: @TK-MSK-AH-SO3DS | O91: @TK-MSB-AH-SO3DS | P91: @TK-JKG-AH-SO3DS | Q91: @TK-JDG-AH-SO3DS | R91: @TK-JDY-AH-SO3DS | S91: @TK-JWG-AH-SO3DS
A92: 600 Sgle Oven & MW 2 Door unit -SC Full | B92: 600 Sgle Oven & MW 2 Door unit - Comp | C92: AH-SMWS | D92: @TK-DVM-AH-SMWS | E92: @TK-DVY-AH-SMWS | F92: @TK-MUM-AH-SMWS | G92: @TK-DSE-AH-SMWS | H92: @TK-KGL-AH-SMWS | I92: @TK-DGL-AH-SMWS | J92: @TK-DYL-AH-SMWS | K92: @TK-DSK-AH-SMWS | L92: @TK-MDY-AH-SMWS | M92: @TK-MFJ-AH-SMWS | N92: @TK-MSK-AH-SMWS | O92: @TK-MSB-AH-SMWS | P92: @TK-JKG-AH-SMWS | Q92: @TK-JDG-AH-SMWS | R92: @TK-JDY-AH-SMWS | S92: @TK-JWG-AH-SMWS
A93: 600 Single Oven & MW 2 Drw unit -SC Full | B93: 600 Single Oven & MW 2 Drw unit - Comp | C93: AH-SM2DS | D93: @TK-DVM-AH-SM2DS | E93: @TK-DVY-AH-SM2DS | F93: @TK-MUM-AH-SM2DS | G93: @TK-DSE-AH-SM2DS | H93: @TK-KGL-AH-SM2DS | I93: @TK-DGL-AH-SM2DS | J93: @TK-DYL-AH-SM2DS | K93: @TK-DSK-AH-SM2DS | L93: @TK-MDY-AH-SM2DS | M93: @TK-MFJ-AH-SM2DS | N93: @TK-MSK-AH-SM2DS | O93: @TK-MSB-AH-SM2DS | P93: @TK-JKG-AH-SM2DS | Q93: @TK-JDG-AH-SM2DS | R93: @TK-JDY-AH-SM2DS | S93: @TK-JWG-AH-SM2DS
A94: 600 Integrated Extractor Door | B94: 600 Integrated Extractor Door | C94: AD60ICH | D94: @TK-DVM-AD60ICH | E94: @TK-DVY-AD60ICH | F94: @TK-MUM-AD60ICH | G94: @TK-DSE-AD60ICH | H94: @TK-KGL-AD60ICH | I94: @TK-DGL-AD60ICH | J94: @TK-DYL-AD60ICH | K94: @TK-DSK-AD60ICH | L94: @TK-MDY-AD60ICH | M94: @TK-MFJ-AD60ICH | N94: @TK-MSK-AD60ICH | O94: @TK-MSB-AD60ICH | P94: @TK-JKG-AD60ICH | Q94: @TK-JDG-AD60ICH | R94: @TK-JDY-AD60ICH | S94: @TK-JWG-AD60ICH
A95: 600 Fridge/Dishwasher Fascia | B95: 600 Fridge/Dishwasher Fascia | C95: AD60FD | D95: @TK-DVM-AD60FD | E95: @TK-DVY-AD60FD | F95: @TK-MUM-AD60FD | G95: @TK-DSE-AD60FD | H95: @TK-KGL-AD60FD | I95: @TK-DGL-AD60FD | J95: @TK-DYL-AD60FD | K95: @TK-DSK-AD60FD | L95: @TK-MDY-AD60FD | M95: @TK-MFJ-AD60FD | N95: @TK-MSK-AD60FD | O95: @TK-MSB-AD60FD | P95: @TK-JKG-AD60FD | Q95: @TK-JDG-AD60FD | R95: @TK-JDY-AD60FD | S95: @TK-JWG-AD60FD
A96: 450 Integrated Dishwasher Fascia | B96: 450 Integrated Dishwasher Fascia | C96: AD45I | D96: @TK-DVM-AD45I | E96: @TK-DVY-AD45I | F96: @TK-MUM-AD45I | G96: @TK-DSE-AD45I | H96: @TK-KGL-AD45I | I96: @TK-DGL-AD45I | J96: @TK-DYL-AD45I | K96: @TK-DSK-AD45I | L96: @TK-MDY-AD45I | M96: @TK-MFJ-AD45I | N96: @TK-MSK-AD45I | O96: @TK-MSB-AD45I | P96: @TK-JKG-AD45I | Q96: @TK-JDG-AD45I | R96: @TK-JDY-AD45I | S96: @TK-JWG-AD45I
A97: 600 Semi Int Dishwasher Fascia | B97: 600 Semi Int Dishwasher Fascia | C97: AD60S | D97: @TK-DVM-AD60S | E97: @TK-DVY-AD60S | F97: @TK-MUM-AD60S | G97: @TK-DSE-AD60S | H97: @TK-KGL-AD60S | I97: @TK-DGL-AD60S | J97: @TK-DYL-AD60S | K97: @TK-DSK-AD60S | L97: @TK-MDY-AD60S | M97: @TK-MFJ-AD60S | N97: @TK-MSK-AD60S | O97: @TK-MSB-AD60S | P97: @TK-JKG-AD60S | Q97: @TK-JDG-AD60S | R97: @TK-JDY-AD60S | S97: @TK-JWG-AD60S
A98: Boiler Door | B98: Boiler Door | C98: BLD9 | D98: @TK-DVM-BLD9 | E98: @TK-DVY-BLD9 | F98: @TK-MUM-BLD9 | G98: @TK-DSE-BLD9 | H98: @TK-KGL-BLD9 | I98: @TK-DGL-BLD9 | J98: @TK-DYL-BLD9 | K98: @TK-DSK-BLD9 | L98: @TK-MDY-BLD9 | M98: @TK-MFJ-BLD9 | N98: @TK-MSK-BLD9 | O98: @TK-MSB-BLD9 | P98: @TK-JKG-BLD9 | Q98: @TK-JDG-BLD9 | R98: @TK-JDY-BLD9 | S98: @TK-JWG-BLD9
A99: 300 Larder Unit | B99: 300 Larder Unit | C99: L3W | D99: @TK-DVM-L3W | E99: @TK-DVY-L3W | F99: @TK-MUM-L3W | G99: @TK-DSE-L3W | H99: @TK-KGL-L3W | I99: @TK-DGL-L3W | J99: @TK-DYL-L3W | K99: @TK-DSK-L3W | L99: @TK-MDY-L3W | M99: @TK-MFJ-L3W | N99: @TK-MSK-L3W | O99: @TK-MSB-L3W | P99: @TK-JKG-L3W | Q99: @TK-JDG-L3W | R99: @TK-JDY-L3W | S99: @TK-JWG-L3W
A100: 500 Larder Unit | B100: 500 Larder Unit | C100: L5W | D100: @TK-DVM-L5W | E100: @TK-DVY-L5W | F100: @TK-MUM-L5W | G100: @TK-DSE-L5W | H100: @TK-KGL-L5W | I100: @TK-DGL-L5W | J100: @TK-DYL-L5W | K100: @TK-DSK-L5W | L100: @TK-MDY-L5W | M100: @TK-MFJ-L5W | N100: @TK-MSK-L5W | O100: @TK-MSB-L5W | P100: @TK-JKG-L5W | Q100: @TK-JDG-L5W | R100: @TK-JDY-L5W | S100: @TK-JWG-L5W
A101: 600 Larder Unit | B101: 600 Larder Unit | C101: L6W | D101: @TK-DVM-L6W | E101: @TK-DVY-L6W | F101: @TK-MUM-L6W | G101: @TK-DSE-L6W | H101: @TK-KGL-L6W | I101: @TK-DGL-L6W | J101: @TK-DYL-L6W | K101: @TK-DSK-L6W | L101: @TK-MDY-L6W | M101: @TK-MFJ-L6W | N101: @TK-MSK-L6W | O101: @TK-MSB-L6W | P101: @TK-JKG-L6W | Q101: @TK-JDG-L6W | R101: @TK-JDY-L6W | S101: @TK-JWG-L6W
A102: 300mm Larder Unit & Pullout KB | B102: 300mm Larder Unit & Pullout KB | C102: LP3W | D102: @TK-DVM-LP3W | E102: @TK-DVY-LP3W | F102: @TK-MUM-LP3W | G102: @TK-DSE-LP3W | H102: @TK-KGL-LP3W | I102: @TK-DGL-LP3W | J102: @TK-DYL-LP3W | K102: @TK-DSK-LP3W | L102: @TK-MDY-LP3W | M102: @TK-MFJ-LP3W | N102: @TK-MSK-LP3W | O102: @TK-MSB-LP3W | P102: @TK-JKG-LP3W | Q102: @TK-JDG-LP3W | R102: @TK-JDY-LP3W | S102: @TK-JWG-LP3W
A103: 600mm Larder Unit & Tandem PO | B103: 600mm Larder Unit & Tandem PO | C103: LP6TW | D103: @TK-DVM-LP6TW | E103: @TK-DVY-LP6TW | F103: @TK-MUM-LP6TW | G103: @TK-DSE-LP6TW | H103: @TK-KGL-LP6TW | I103: @TK-DGL-LP6TW | J103: @TK-DYL-LP6TW | K103: @TK-DSK-LP6TW | L103: @TK-MDY-LP6TW | M103: @TK-MFJ-LP6TW | N103: @TK-MSK-LP6TW | O103: @TK-MSB-LP6TW | P103: @TK-JKG-LP6TW | Q103: @TK-JDG-LP6TW | R103: @TK-JDY-LP6TW | S103: @TK-JWG-LP6TW
A104: 500mm Larder Unit & Tandem Solo PO | B104: 500mm Larder Unit & Tandem Solo PO | C104: LP5TSW | D104: @TK-DVM-LP5TSW | E104: @TK-DVY-LP5TSW | F104: @TK-MUM-LP5TSW | G104: @TK-DSE-LP5TSW | H104: @TK-KGL-LP5TSW | I104: @TK-DGL-LP5TSW | J104: @TK-DYL-LP5TSW | K104: @TK-DSK-LP5TSW | L104: @TK-MDY-LP5TSW | M104: @TK-MFJ-LP5TSW | N104: @TK-MSK-LP5TSW | O104: @TK-MSB-LP5TSW | P104: @TK-JKG-LP5TSW | Q104: @TK-JDG-LP5TSW | R104: @TK-JDY-LP5TSW | S104: @TK-JWG-LP5TSW
A105: 600mm Larder Unit & Tandem Solo PO | B105: 600mm Larder Unit & Tandem Solo PO | C105: LP6TSW | D105: @TK-DVM-LP6TSW | E105: @TK-DVY-LP6TSW | F105: @TK-MUM-LP6TSW | G105: @TK-DSE-LP6TSW | H105: @TK-KGL-LP6TSW | I105: @TK-DGL-LP6TSW | J105: @TK-DYL-LP6TSW | K105: @TK-DSK-LP6TSW | L105: @TK-MDY-LP6TSW | M105: @TK-MFJ-LP6TSW | N105: @TK-MSK-LP6TSW | O105: @TK-MSB-LP6TSW | P105: @TK-JKG-LP6TSW | Q105: @TK-JDG-LP6TSW | R105: @TK-JDY-LP6TSW | S105: @TK-JWG-LP6TSW
A106: 1000mm Pantry 4 Doors | B106: 1000mm Pantry 4 Doors | C106: LPN14DW | D106: @TK-DVM-LPN14DW | E106: @TK-DVY-LPN14DW | F106: @TK-MUM-LPN14DW | G106: @TK-DSE-LPN14DW | H106: @TK-KGL-LPN14DW | I106: @TK-DGL-LPN14DW | J106: @TK-DYL-LPN14DW | K106: @TK-DSK-LPN14DW | L106: @TK-MDY-LPN14DW | M106: @TK-MFJ-LPN14DW | N106: @TK-MSK-LPN14DW | O106: @TK-MSB-LPN14DW | P106: @TK-JKG-LPN14DW | Q106: @TK-JDG-LPN14DW | R106: @TK-JDY-LPN14DW | S106: @TK-JWG-LPN14DW
A107: 1000mm Pantry 2 Doors 3 Drawers | B107: 1000mm Pantry 2 Doors 3 Drawers | C107: LPN12D3DW | D107: @TK-DVM-LPN12D3DW | E107: @TK-DVY-LPN12D3DW | F107: @TK-MUM-LPN12D3DW | G107: @TK-DSE-LPN12D3DW | H107: @TK-KGL-LPN12D3DW | I107: @TK-DGL-LPN12D3DW | J107: @TK-DYL-LPN12D3DW | K107: @TK-DSK-LPN12D3DW | L107: @TK-MDY-LPN12D3DW | M107: @TK-MFJ-LPN12D3DW | N107: @TK-MSK-LPN12D3DW | O107: @TK-MSB-LPN12D3DW | P107: @TK-JKG-LPN12D3DW | Q107: @TK-JDG-LPN12D3DW | R107: @TK-JDY-LPN12D3DW | S107: @TK-JWG-LPN12D3DW
A108: 1000mm Blind Corner larder 500 | B108: 1000mm Blind Corner larder 500 | C108: LBC15W | D108: @TK-DVM-LBC15W | E108: @TK-DVY-LBC15W | F108: @TK-MUM-LBC15W | G108: @TK-DSE-LBC15W | H108: @TK-KGL-LBC15W | I108: @TK-DGL-LBC15W | J108: @TK-DYL-LBC15W | K108: @TK-DSK-LBC15W | L108: @TK-MDY-LBC15W | M108: @TK-MFJ-LBC15W | N108: @TK-MSK-LBC15W | O108: @TK-MSB-LBC15W | P108: @TK-JKG-LBC15W | Q108: @TK-JDG-LBC15W | R108: @TK-JDY-LBC15W | S108: @TK-JWG-LBC15W
A109: 1000mm Blind Corner larder 600 | B109: 1000mm Blind Corner larder 600 | C109: LBC16W | D109: @TK-DVM-LBC16W | E109: @TK-DVY-LBC16W | F109: @TK-MUM-LBC16W | G109: @TK-DSE-LBC16W | H109: @TK-KGL-LBC16W | I109: @TK-DGL-LBC16W | J109: @TK-DYL-LBC16W | K109: @TK-DSK-LBC16W | L109: @TK-MDY-LBC16W | M109: @TK-MFJ-LBC16W | N109: @TK-MSK-LBC16W | O109: @TK-MSB-LBC16W | P109: @TK-JKG-LBC16W | Q109: @TK-JDG-LBC16W | R109: @TK-JDY-LBC16W | S109: @TK-JWG-LBC16W
A110: 1000 Blind Cnr larder Le Mans 50 LH | B110: 1000 Blind Cnr larder Le Mans 50 LH | C110: LBCLM15LW | D110: @TK-DVM-LBCLM15LW | E110: @TK-DVY-LBCLM15LW | F110: @TK-MUM-LBCLM15LW | G110: @TK-DSE-LBCLM15LW | H110: @TK-KGL-LBCLM15LW | I110: @TK-DGL-LBCLM15LW | J110: @TK-DYL-LBCLM15LW | K110: @TK-DSK-LBCLM15LW | L110: @TK-MDY-LBCLM15LW | M110: @TK-MFJ-LBCLM15LW | N110: @TK-MSK-LBCLM15LW | O110: @TK-MSB-LBCLM15LW | P110: @TK-JKG-LBCLM15LW | Q110: @TK-JDG-LBCLM15LW | R110: @TK-JDY-LBCLM15LW | S110: @TK-JWG-LBCLM15LW
A111: 1000 Blind Cnr larder Le Mans 50 RH | B111: 1000 Blind Cnr larder Le Mans 50 RH | C111: LBCLM15RW | D111: @TK-DVM-LBCLM15RW | E111: @TK-DVY-LBCLM15RW | F111: @TK-MUM-LBCLM15RW | G111: @TK-DSE-LBCLM15RW | H111: @TK-KGL-LBCLM15RW | I111: @TK-DGL-LBCLM15RW | J111: @TK-DYL-LBCLM15RW | K111: @TK-DSK-LBCLM15RW | L111: @TK-MDY-LBCLM15RW | M111: @TK-MFJ-LBCLM15RW | N111: @TK-MSK-LBCLM15RW | O111: @TK-MSB-LBCLM15RW | P111: @TK-JKG-LBCLM15RW | Q111: @TK-JDG-LBCLM15RW | R111: @TK-JDY-LBCLM15RW | S111: @TK-JWG-LBCLM15RW
A112: 1000 Blind Cnr larder Le Mans 60 LH | B112: 1000 Blind Cnr larder Le Mans 60 LH | C112: LBCLM16LW | D112: @TK-DVM-LBCLM16LW | E112: @TK-DVY-LBCLM16LW | F112: @TK-MUM-LBCLM16LW | G112: @TK-DSE-LBCLM16LW | H112: @TK-KGL-LBCLM16LW | I112: @TK-DGL-LBCLM16LW | J112: @TK-DYL-LBCLM16LW | K112: @TK-DSK-LBCLM16LW | L112: @TK-MDY-LBCLM16LW | M112: @TK-MFJ-LBCLM16LW | N112: @TK-MSK-LBCLM16LW | O112: @TK-MSB-LBCLM16LW | P112: @TK-JKG-LBCLM16LW | Q112: @TK-JDG-LBCLM16LW | R112: @TK-JDY-LBCLM16LW | S112: @TK-JWG-LBCLM16LW
A113: 1000 Blind Cnr larder Le Mans 60 RH | B113: 1000 Blind Cnr larder Le Mans 60 RH | C113: LBCLM16RW | D113: @TK-DVM-LBCLM16RW | E113: @TK-DVY-LBCLM16RW | F113: @TK-MUM-LBCLM16RW | G113: @TK-DSE-LBCLM16RW | H113: @TK-KGL-LBCLM16RW | I113: @TK-DGL-LBCLM16RW | J113: @TK-DYL-LBCLM16RW | K113: @TK-DSK-LBCLM16RW | L113: @TK-MDY-LBCLM16RW | M113: @TK-MFJ-LBCLM16RW | N113: @TK-MSK-LBCLM16RW | O113: @TK-MSB-LBCLM16RW | P113: @TK-JKG-LBCLM16RW | Q113: @TK-JDG-LBCLM16RW | R113: @TK-JDY-LBCLM16RW | S113: @TK-JWG-LBCLM16RW
D114: Not Available | E114: Not Available | F114: Not Available | G114: Not Available | H114: Not Available | I114: Not Available | J114: Not Available | K114: Not Available | L114: Not Available | M114: Not Available | N114: Not Available | O114: Not Available | P114: Not Available | Q114: Not Available | R114: Not Available | S114: Not Available
A115: 600 50/50 FF Housing Unit | B115: 600 50/50 FF Housing Unit | C115: AH-F55W | D115: @TK-DVM-AH-F55W | E115: @TK-DVY-AH-F55W | F115: @TK-MUM-AH-F55W | G115: @TK-DSE-AH-F55W | H115: @TK-KGL-AH-F55W | I115: @TK-DGL-AH-F55W | J115: @TK-DYL-AH-F55W | K115: @TK-DSK-AH-F55W | L115: @TK-MDY-AH-F55W | M115: @TK-MFJ-AH-F55W | N115: @TK-MSK-AH-F55W | O115: @TK-MSB-AH-F55W | P115: @TK-JKG-AH-F55W | Q115: @TK-JDG-AH-F55W | R115: @TK-JDY-AH-F55W | S115: @TK-JWG-AH-F55W
A116: 600 70/30 FF Housing Unit | B116: 600 70/30 FF Housing Unit | C116: AH-F73W | D116: @TK-DVM-AH-F73W | E116: @TK-DVY-AH-F73W | F116: @TK-MUM-AH-F73W | G116: @TK-DSE-AH-F73W | H116: @TK-KGL-AH-F73W | I116: @TK-DGL-AH-F73W | J116: @TK-DYL-AH-F73W | K116: @TK-DSK-AH-F73W | L116: @TK-MDY-AH-F73W | M116: @TK-MFJ-AH-F73W | N116: @TK-MSK-AH-F73W | O116: @TK-MSB-AH-F73W | P116: @TK-JKG-AH-F73W | Q116: @TK-JDG-AH-F73W | R116: @TK-JDY-AH-F73W | S116: @TK-JWG-AH-F73W
A117: 600 Dble Oven Housing | B117: 600 Dble Oven Housing | C117: AH-DOW | D117: @TK-DVM-AH-DOW | E117: @TK-DVY-AH-DOW | F117: @TK-MUM-AH-DOW | G117: @TK-DSE-AH-DOW | H117: @TK-KGL-AH-DOW | I117: @TK-DGL-AH-DOW | J117: @TK-DYL-AH-DOW | K117: @TK-DSK-AH-DOW | L117: @TK-MDY-AH-DOW | M117: @TK-MFJ-AH-DOW | N117: @TK-MSK-AH-DOW | O117: @TK-MSB-AH-DOW | P117: @TK-JKG-AH-DOW | Q117: @TK-JDG-AH-DOW | R117: @TK-JDY-AH-DOW | S117: @TK-JWG-AH-DOW
A118: 600 Dble Oven & 2 Drws | B118: 600 Dble Oven & 2 Drws | C118: AH-DO2DW | D118: @TK-DVM-AH-DO2DW | E118: @TK-DVY-AH-DO2DW | F118: @TK-MUM-AH-DO2DW | G118: @TK-DSE-AH-DO2DW | H118: @TK-KGL-AH-DO2DW | I118: @TK-DGL-AH-DO2DW | J118: @TK-DYL-AH-DO2DW | K118: @TK-DSK-AH-DO2DW | L118: @TK-MDY-AH-DO2DW | M118: @TK-MFJ-AH-DO2DW | N118: @TK-MSK-AH-DO2DW | O118: @TK-MSB-AH-DO2DW | P118: @TK-JKG-AH-DO2DW | Q118: @TK-JDG-AH-DO2DW | R118: @TK-JDY-AH-DO2DW | S118: @TK-JWG-AH-DO2DW
A119: 600 Double Oven & MW unit | B119: 600 Double Oven & MW unit | C119: AH-DMWW | D119: @TK-DVM-AH-DMWW | E119: @TK-DVY-AH-DMWW | F119: @TK-MUM-AH-DMWW | G119: @TK-DSE-AH-DMWW | H119: @TK-KGL-AH-DMWW | I119: @TK-DGL-AH-DMWW | J119: @TK-DYL-AH-DMWW | K119: @TK-DSK-AH-DMWW | L119: @TK-MDY-AH-DMWW | M119: @TK-MFJ-AH-DMWW | N119: @TK-MSK-AH-DMWW | O119: @TK-MSB-AH-DMWW | P119: @TK-JKG-AH-DMWW | Q119: @TK-JDG-AH-DMWW | R119: @TK-JDY-AH-DMWW | S119: @TK-JWG-AH-DMWW
A120: 600 Single Oven Unit | B120: 600 Single Oven Unit | C120: AH-SOW | D120: @TK-DVM-AH-SOW | E120: @TK-DVY-AH-SOW | F120: @TK-MUM-AH-SOW | G120: @TK-DSE-AH-SOW | H120: @TK-KGL-AH-SOW | I120: @TK-DGL-AH-SOW | J120: @TK-DYL-AH-SOW | K120: @TK-DSK-AH-SOW | L120: @TK-MDY-AH-SOW | M120: @TK-MFJ-AH-SOW | N120: @TK-MSK-AH-SOW | O120: @TK-MSB-AH-SOW | P120: @TK-JKG-AH-SOW | Q120: @TK-JDG-AH-SOW | R120: @TK-JDY-AH-SOW | S120: @TK-JWG-AH-SOW
A121: 600 Single Oven + 1 Drw Unit | B121: 600 Single Oven + 1 Drw Unit | C121: AH-SO1DW | D121: @TK-DVM-AH-SO1DW | E121: @TK-DVY-AH-SO1DW | F121: @TK-MUM-AH-SO1DW | G121: @TK-DSE-AH-SO1DW | H121: @TK-KGL-AH-SO1DW | I121: @TK-DGL-AH-SO1DW | J121: @TK-DYL-AH-SO1DW | K121: @TK-DSK-AH-SO1DW | L121: @TK-MDY-AH-SO1DW | M121: @TK-MFJ-AH-SO1DW | N121: @TK-MSK-AH-SO1DW | O121: @TK-MSB-AH-SO1DW | P121: @TK-JKG-AH-SO1DW | Q121: @TK-JDG-AH-SO1DW | R121: @TK-JDY-AH-SO1DW | S121: @TK-JWG-AH-SO1DW
A122: 600 Single Oven + 2 Drws Unit | B122: 600 Single Oven + 2 Drws Unit | C122: AH-SO2DW | D122: @TK-DVM-AH-SO2DW | E122: @TK-DVY-AH-SO2DW | F122: @TK-MUM-AH-SO2DW | G122: @TK-DSE-AH-SO2DW | H122: @TK-KGL-AH-SO2DW | I122: @TK-DGL-AH-SO2DW | J122: @TK-DYL-AH-SO2DW | K122: @TK-DSK-AH-SO2DW | L122: @TK-MDY-AH-SO2DW | M122: @TK-MFJ-AH-SO2DW | N122: @TK-MSK-AH-SO2DW | O122: @TK-MSB-AH-SO2DW | P122: @TK-JKG-AH-SO2DW | Q122: @TK-JDG-AH-SO2DW | R122: @TK-JDY-AH-SO2DW | S122: @TK-JWG-AH-SO2DW
A123: 600 Single Oven + 3 Drws Unit | B123: 600 Single Oven + 3 Drws Unit | C123: AH-SO3DW | D123: @TK-DVM-AH-SO3DW | E123: @TK-DVY-AH-SO3DW | F123: @TK-MUM-AH-SO3DW | G123: @TK-DSE-AH-SO3DW | H123: @TK-KGL-AH-SO3DW | I123: @TK-DGL-AH-SO3DW | J123: @TK-DYL-AH-SO3DW | K123: @TK-DSK-AH-SO3DW | L123: @TK-MDY-AH-SO3DW | M123: @TK-MFJ-AH-SO3DW | N123: @TK-MSK-AH-SO3DW | O123: @TK-MSB-AH-SO3DW | P123: @TK-JKG-AH-SO3DW | Q123: @TK-JDG-AH-SO3DW | R123: @TK-JDY-AH-SO3DW | S123: @TK-JWG-AH-SO3DW
A124: 600 Single Oven & MW 2 Drw unit | B124: 600 Single Oven & MW 2 Drw unit | C124: AH-SM2DW | D124: @TK-DVM-AH-SM2DW | E124: @TK-DVY-AH-SM2DW | F124: @TK-MUM-AH-SM2DW | G124: @TK-DSE-AH-SM2DW | H124: @TK-KGL-AH-SM2DW | I124: @TK-DGL-AH-SM2DW | J124: @TK-DYL-AH-SM2DW | K124: @TK-DSK-AH-SM2DW | L124: @TK-MDY-AH-SM2DW | M124: @TK-MFJ-AH-SM2DW | N124: @TK-MSK-AH-SM2DW | O124: @TK-MSB-AH-SM2DW | P124: @TK-JKG-AH-SM2DW | Q124: @TK-JDG-AH-SM2DW | R124: @TK-JDY-AH-SM2DW | S124: @TK-JWG-AH-SM2DW
A125: 600 Sgle Oven & MW 2 Door unit | B125: 600 Sgle Oven & MW 2 Door unit | C125: AH-SMWW | D125: @TK-DVM-AH-SMWW | E125: @TK-DVY-AH-SMWW | F125: @TK-MUM-AH-SMWW | G125: @TK-DSE-AH-SMWW | H125: @TK-KGL-AH-SMWW | I125: @TK-DGL-AH-SMWW | J125: @TK-DYL-AH-SMWW | K125: @TK-DSK-AH-SMWW | L125: @TK-MDY-AH-SMWW | M125: @TK-MFJ-AH-SMWW | N125: @TK-MSK-AH-SMWW | O125: @TK-MSB-AH-SMWW | P125: @TK-JKG-AH-SMWW | Q125: @TK-JDG-AH-SMWW | R125: @TK-JDY-AH-SMWW | S125: @TK-JWG-AH-SMWW
A127: 300 Wall Unit -SC Full-900mm high | B127: 300 Wall Unit -SC Full-900mm high | C127: TW30S | D127: @TK-DVM-TW30S | E127: @TK-DVY-TTW30S | F127: @TK-MUM-TTW30S | G127: @TK-DSE-TW30S | H127: @TK-KGL-TW30S | I127: @TK-DGL-TW30S | J127: @TK-DYL-TW30S | K127: @TK-DSK-TW30S | L127: @TK-MDY-TW30S | M127: @TK-MFJ-TW30S | N127: @TK-MSK-TW30S | O127: @TK-MSB-TW30S | P127: @TK-JKG-TW30S | Q127: @TK-JDG-TW30S | R127: @TK-JDY-TW30S | S127: @TK-JWG-TW30S
A128: 400 Wall Unit -SC Full-900mm high | B128: 400 Wall Unit -SC Full-900mm high | C128: TW40S | D128: @TK-DVM-TW40S | E128: @TK-DVY-TTW40S | F128: @TK-MUM-TTW40S | G128: @TK-DSE-TW40S | H128: @TK-KGL-TW40S | I128: @TK-DGL-TW40S | J128: @TK-DYL-TW40S | K128: @TK-DSK-TW40S | L128: @TK-MDY-TW40S | M128: @TK-MFJ-TW40S | N128: @TK-MSK-TW40S | O128: @TK-MSB-TW40S | P128: @TK-JKG-TW40S | Q128: @TK-JDG-TW40S | R128: @TK-JDY-TW40S | S128: @TK-JWG-TW40S
A129: 450 Wall Unit -SC Full-900mm high | B129: 450 Wall Unit -SC Full-900mm high | C129: TW45S | D129: @TK-DVM-TW45S | E129: @TK-DVY-TTW45S | F129: @TK-MUM-TTW45S | G129: @TK-DSE-TW45S | H129: @TK-KGL-TW45S | I129: @TK-DGL-TW45S | J129: @TK-DYL-TW45S | K129: @TK-DSK-TW45S | L129: @TK-MDY-TW45S | M129: @TK-MFJ-TW45S | N129: @TK-MSK-TW45S | O129: @TK-MSB-TW45S | P129: @TK-JKG-TW45S | Q129: @TK-JDG-TW45S | R129: @TK-JDY-TW45S | S129: @TK-JWG-TW45S
A130: 500 Wall Unit -SC Full-900mm high | B130: 500 Wall Unit -SC Full-900mm high | C130: TW50S | D130: @TK-DVM-TW50S | E130: @TK-DVY-TTW50S | F130: @TK-MUM-TTW50S | G130: @TK-DSE-TW50S | H130: @TK-KGL-TW50S | I130: @TK-DGL-TW50S | J130: @TK-DYL-TW50S | K130: @TK-DSK-TW50S | L130: @TK-MDY-TW50S | M130: @TK-MFJ-TW50S | N130: @TK-MSK-TW50S | O130: @TK-MSB-TW50S | P130: @TK-JKG-TW50S | Q130: @TK-JDG-TW50S | R130: @TK-JDY-TW50S | S130: @TK-JWG-TW50S
A131: 600 Wall Unit -SC Full-900mm high | B131: 600 Wall Unit -SC Full-900mm high | C131: TW60S | D131: @TK-DVM-TW60S | E131: @TK-DVY-TTW60S | F131: @TK-MUM-TTW60S | G131: @TK-DSE-TW60S | H131: @TK-KGL-TW60S | I131: @TK-DGL-TW60S | J131: @TK-DYL-TW60S | K131: @TK-DSK-TW60S | L131: @TK-MDY-TW60S | M131: @TK-MFJ-TW60S | N131: @TK-MSK-TW60S | O131: @TK-MSB-TW60S | P131: @TK-JKG-TW60S | Q131: @TK-JDG-TW60S | R131: @TK-JDY-TW60S | S131: @TK-JWG-TW60S
A132: 800 Wall Unit -SC Full-900mm high | B132: 800 Wall Unit -SC Full-900mm high | C132: TW80S | D132: @TK-DVM-TW80S | E132: @TK-DVY-TTW80S | F132: @TK-MUM-TTW80S | G132: @TK-DSE-TW80S | H132: @TK-KGL-TW80S | I132: @TK-DGL-TW80S | J132: @TK-DYL-TW80S | K132: @TK-DSK-TW80S | L132: @TK-MDY-TW80S | M132: @TK-MFJ-TW80S | N132: @TK-MSK-TW80S | O132: @TK-MSB-TW80S | P132: @TK-JKG-TW80S | Q132: @TK-JDG-TW80S | R132: @TK-JDY-TW80S | S132: @TK-JWG-TW80S
A133: 900 Wall Unit -SC Full-900mm high | B133: 900 Wall Unit -SC Full-900mm high | C133: TW90S | D133: @TK-DVM-TW90S | E133: @TK-DVY-TTW90S | F133: @TK-MUM-TTW90S | G133: @TK-DSE-TW90S | H133: @TK-KGL-TW90S | I133: @TK-DGL-TW90S | J133: @TK-DYL-TW90S | K133: @TK-DSK-TW90S | L133: @TK-MDY-TW90S | M133: @TK-MFJ-TW90S | N133: @TK-MSK-TW90S | O133: @TK-MSB-TW90S | P133: @TK-JKG-TW90S | Q133: @TK-JDG-TW90S | R133: @TK-JDY-TW90S | S133: @TK-JWG-TW90S
A134: 1000 Wall Unit -SC Full-900mm high | B134: 1000 Wall Unit -SC Full-900mm high | C134: TW100S | D134: @TK-DVM-TW100S | E134: @TK-DVY-TTW100S | F134: @TK-MUM-TTW100S | G134: @TK-DSE-TW100S | H134: @TK-KGL-TW100S | I134: @TK-DGL-TW100S | J134: @TK-DYL-TW100S | K134: @TK-DSK-TW100S | L134: @TK-MDY-TW100S | M134: @TK-MFJ-TW100S | N134: @TK-MSK-TW100S | O134: @TK-MSB-TW100S | P134: @TK-JKG-TW100S | Q134: @TK-JDG-TW100S | R134: @TK-JDY-TW100S | S134: @TK-JWG-TW100S
A135: 600 Wall Corner Unit -SC Full-900mm high | B135: 600 Wall Corner Unit -SC Full-900mm high | C135: TWC6S | D135: @TK-DVM-TWC6S | E135: @TK-DVY-TTWC6S | F135: @TK-MUM-TTWC6S | G135: @TK-DSE-TWC6S | H135: @TK-KGL-TWC6S | I135: @TK-DGL-TWC6S | J135: @TK-DYL-TWC6S | K135: @TK-DSK-TWC6S | L135: @TK-MDY-TWC6S | M135: @TK-MFJ-TWC6S | N135: @TK-MSK-TWC6S | O135: @TK-MSB-TWC6S | P135: @TK-JKG-TWC6S | Q135: @TK-JDG-TWC6S | R135: @TK-JDY-TWC6S | S135: @TK-JWG-TWC6S
A136: 900 Wall Corner Unit -SC Full-900mm high | B136: 900 Wall Corner Unit -SC Full-900mm high | C136: TWC9S | D136: @TK-DVM-TWC9S | E136: @TK-DVY-TTWC9S | F136: @TK-MUM-TTWC9S | G136: @TK-DSE-TWC9S | H136: @TK-KGL-TWC9S | I136: @TK-DGL-TWC9S | J136: @TK-DYL-TWC9S | K136: @TK-DSK-TWC9S | L136: @TK-MDY-TWC9S | M136: @TK-MFJ-TWC9S | N136: @TK-MSK-TWC9S | O136: @TK-MSB-TWC9S | P136: @TK-JKG-TWC9S | Q136: @TK-JDG-TWC9S | R136: @TK-JDY-TWC9S | S136: @TK-JWG-TWC9S
A138: 600 50/50 FF Housing Unit - extra tall | B138: 600 50/50 FF Housing Unit - extra tall | C138: TAH-F55W | D138: @TK-DVM-TAH-F55W | E138: @TK-DVY-TAH-F55W | F138: @TK-MUM-TAH-F55W | G138: @TK-DSE-TAH-F55W | H138: @TK-KGL-TAH-F55W | I138: @TK-DGL-TAH-F55W | J138: @TK-DYL-TAH-F55W | K138: @TK-DSK-TAH-F55W | L138: @TK-MDY-TAH-F55W | M138: @TK-MFJ-TAH-F55W | N138: @TK-MSK-TAH-F55W | O138: @TK-MSB-TAH-F55W | P138: @TK-JKG-TAH-F55W | Q138: @TK-JDG-TAH-F55W | R138: @TK-JDY-TAH-F55W | S138: @TK-JWG-TAH-F55W
A139: 600 70/30 FF Housing Unit - extra tall | B139: 600 70/30 FF Housing Unit - extra tall | C139: TAH-F73W | D139: @TK-DVM-TAH-F73W | E139: @TK-DVY-TAH-F73W | F139: @TK-MUM-TAH-F73W | G139: @TK-DSE-TAH-F73W | H139: @TK-KGL-TAH-F73W | I139: @TK-DGL-TAH-F73W | J139: @TK-DYL-TAH-F73W | K139: @TK-DSK-TAH-F73W | L139: @TK-MDY-TAH-F73W | M139: @TK-MFJ-TAH-F73W | N139: @TK-MSK-TAH-F73W | O139: @TK-MSB-TAH-F73W | P139: @TK-JKG-TAH-F73W | Q139: @TK-JDG-TAH-F73W | R139: @TK-JDY-TAH-F73W | S139: @TK-JWG-TAH-F73W
A140: 600 Dble Oven Housing - extra tall | B140: 600 Dble Oven Housing - extra tall | C140: TAH-DOW | D140: @TK-DVM-TAH-DOW | E140: @TK-DVY-TAH-DOW | F140: @TK-MUM-TAH-DOW | G140: @TK-DSE-TAH-DOW | H140: @TK-KGL-TAH-DOW | I140: @TK-DGL-TAH-DOW | J140: @TK-DYL-TAH-DOW | K140: @TK-DSK-TAH-DOW | L140: @TK-MDY-TAH-DOW | M140: @TK-MFJ-TAH-DOW | N140: @TK-MSK-TAH-DOW | O140: @TK-MSB-TAH-DOW | P140: @TK-JKG-TAH-DOW | Q140: @TK-JDG-TAH-DOW | R140: @TK-JDY-TAH-DOW | S140: @TK-JWG-TAH-DOW
A141: 600 Dble Oven & 2 Drws - extra tall | B141: 600 Dble Oven & 2 Drws - extra tall | C141: TAH-DO2DW | D141: @TK-DVM-TAH-DO2DW | E141: @TK-DVY-TAH-DO2DW | F141: @TK-MUM-TAH-DO2DW | G141: @TK-DSE-TAH-DO2DW | H141: @TK-KGL-TAH-DO2DW | I141: @TK-DGL-TAH-DO2DW | J141: @TK-DYL-TAH-DO2DW | K141: @TK-DSK-TAH-DO2DW | L141: @TK-MDY-TAH-DO2DW | M141: @TK-MFJ-TAH-DO2DW | N141: @TK-MSK-TAH-DO2DW | O141: @TK-MSB-TAH-DO2DW | P141: @TK-JKG-TAH-DO2DW | Q141: @TK-JDG-TAH-DO2DW | R141: @TK-JDY-TAH-DO2DW | S141: @TK-JWG-TAH-DO2DW
A142: 600 Single Oven Unit - extra tall | B142: 600 Single Oven Unit - extra tall | C142: TAH-SOW | D142: @TK-DVM-TAH-SOW | E142: @TK-DVY-TAH-SOW | F142: @TK-MUM-TAH-SOW | G142: @TK-DSE-TAH-SOW | H142: @TK-KGL-TAH-SOW | I142: @TK-DGL-TAH-SOW | J142: @TK-DYL-TAH-SOW | K142: @TK-DSK-TAH-SOW | L142: @TK-MDY-TAH-SOW | M142: @TK-MFJ-TAH-SOW | N142: @TK-MSK-TAH-SOW | O142: @TK-MSB-TAH-SOW | P142: @TK-JKG-TAH-SOW | Q142: @TK-JDG-TAH-SOW | R142: @TK-JDY-TAH-SOW | S142: @TK-JWG-TAH-SOW
A143: 600 Single Oven + 2 Drws Unit - extra tall | B143: 600 Single Oven + 2 Drws Unit - extra tall | C143: TAH-SO2DW | D143: @TK-DVM-TAH-SO2DW | E143: @TK-DVY-TAH-SO2DW | F143: @TK-MUM-TAH-SO2DW | G143: @TK-DSE-TAH-SO2DW | H143: @TK-KGL-TAH-SO2DW | I143: @TK-DGL-TAH-SO2DW | J143: @TK-DYL-TAH-SO2DW | K143: @TK-DSK-TAH-SO2DW | L143: @TK-MDY-TAH-SO2DW | M143: @TK-MFJ-TAH-SO2DW | N143: @TK-MSK-TAH-SO2DW | O143: @TK-MSB-TAH-SO2DW | P143: @TK-JKG-TAH-SO2DW | Q143: @TK-JDG-TAH-SO2DW | R143: @TK-JDY-TAH-SO2DW | S143: @TK-JWG-TAH-SO2DW
A144: 600 Sgle Oven & MW 2 Door unit - extra tall | B144: 600 Sgle Oven & MW 2 Door unit - extra tall | C144: TAH-SMWW | D144: @TK-DVM-TAH-SMWW | E144: @TK-DVY-TAH-SMWW | F144: @TK-MUM-TAH-SMWW | G144: @TK-DSE-TAH-SMWW | H144: @TK-KGL-TAH-SMWW | I144: @TK-DGL-TAH-SMWW | J144: @TK-DYL-TAH-SMWW | K144: @TK-DSK-TAH-SMWW | L144: @TK-MDY-TAH-SMWW | M144: @TK-MFJ-TAH-SMWW | N144: @TK-MSK-TAH-SMWW | O144: @TK-MSB-TAH-SMWW | P144: @TK-JKG-TAH-SMWW | Q144: @TK-JDG-TAH-SMWW | R144: @TK-JDY-TAH-SMWW | S144: @TK-JWG-TAH-SMWW
A146: 300 Larder Unit - extra tall | B146: 300 Larder Unit - extra tall | C146: TL3W | D146: @TK-DVM-TL3W | E146: @TK-DVY-TL3W | F146: @TK-MUM-TL3W | G146: @TK-DSE-TL3W | H146: @TK-KGL-TL3W | I146: @TK-DGL-TL3W | J146: @TK-DYL-TL3W | K146: @TK-DSK-TL3W | L146: @TK-MDY-TL3W | M146: @TK-MFJ-TL3W | N146: @TK-MSK-TL3W | O146: @TK-MSB-TL3W | P146: @TK-JKG-TL3W | Q146: @TK-JDG-TL3W | R146: @TK-JDY-TL3W | S146: @TK-JWG-TL3W
A147: 500 Larder Unit - extra tall | B147: 500 Larder Unit - extra tall | C147: TL5W | D147: @TK-DVM-TL5W | E147: @TK-DVY-TL5W | F147: @TK-MUM-TL5W | G147: @TK-DSE-TL5W | H147: @TK-KGL-TL5W | I147: @TK-DGL-TL5W | J147: @TK-DYL-TL5W | K147: @TK-DSK-TL5W | L147: @TK-MDY-TL5W | M147: @TK-MFJ-TL5W | N147: @TK-MSK-TL5W | O147: @TK-MSB-TL5W | P147: @TK-JKG-TL5W | Q147: @TK-JDG-TL5W | R147: @TK-JDY-TL5W | S147: @TK-JWG-TL5W
A148: 600 Larder Unit - extra tall | B148: 600 Larder Unit - extra tall | C148: TL6W | D148: @TK-DVM-TL6W | E148: @TK-DVY-TL6W | F148: @TK-MUM-TL6W | G148: @TK-DSE-TL6W | H148: @TK-KGL-TL6W | I148: @TK-DGL-TL6W | J148: @TK-DYL-TL6W | K148: @TK-DSK-TL6W | L148: @TK-MDY-TL6W | M148: @TK-MFJ-TL6W | N148: @TK-MSK-TL6W | O148: @TK-MSB-TL6W | P148: @TK-JKG-TL6W | Q148: @TK-JDG-TL6W | R148: @TK-JDY-TL6W | S148: @TK-JWG-TL6W
A149: 300mm Larder Unit & Pullout KB - extra tall | B149: 300mm Larder Unit & Pullout KB - extra tall | C149: TLP3W | D149: @TK-DVM-TLP3W | E149: @TK-DVY-TLP3W | F149: @TK-MUM-TLP3W | G149: @TK-DSE-TLP3W | H149: @TK-KGL-TLP3W | I149: @TK-DGL-TLP3W | J149: @TK-DYL-TLP3W | K149: @TK-DSK-TLP3W | L149: @TK-MDY-TLP3W | M149: @TK-MFJ-TLP3W | N149: @TK-MSK-TLP3W | O149: @TK-MSB-TLP3W | P149: @TK-JKG-TLP3W | Q149: @TK-JDG-TLP3W | R149: @TK-JDY-TLP3W | S149: @TK-JWG-TLP3W
A150: 600mm Larder Unit & Tandem PO - extra tall | B150: 600mm Larder Unit & Tandem PO - extra tall | C150: TLP6TW | D150: @TK-DVM-TLP6TW | E150: @TK-DVY-TLP6TW | F150: @TK-MUM-TLP6TW | G150: @TK-DSE-TLP6TW | H150: @TK-KGL-TLP6TW | I150: @TK-DGL-TLP6TW | J150: @TK-DYL-TLP6TW | K150: @TK-DSK-TLP6TW | L150: @TK-MDY-TLP6TW | M150: @TK-MFJ-TLP6TW | N150: @TK-MSK-TLP6TW | O150: @TK-MSB-TLP6TW | P150: @TK-JKG-TLP6TW | Q150: @TK-JDG-TLP6TW | R150: @TK-JDY-TLP6TW | S150: @TK-JWG-TLP6TW
A151: 500mm Larder Unit & Tandem Solo PO - extra tall | B151: 500mm Larder Unit & Tandem Solo PO - extra tall | C151: TLP5TSW | D151: @TK-DVM-TLP5TSW | E151: @TK-DVY-TLP5TSW | F151: @TK-MUM-TLP5TSW | G151: @TK-DSE-TLP5TSW | H151: @TK-KGL-TLP5TSW | I151: @TK-DGL-TLP5TSW | J151: @TK-DYL-TLP5TSW | K151: @TK-DSK-TLP5TSW | L151: @TK-MDY-TLP5TSW | M151: @TK-MFJ-TLP5TSW | N151: @TK-MSK-TLP5TSW | O151: @TK-MSB-TLP5TSW | P151: @TK-JKG-TLP5TSW | Q151: @TK-JDG-TLP5TSW | R151: @TK-JDY-TLP5TSW | S151: @TK-JWG-TLP5TSW
A152: 600mm Larder Unit & Tandem Solo PO - extra tall | B152: 600mm Larder Unit & Tandem Solo PO - extra tall | C152: TLP6TSW | D152: @TK-DVM-TLP6TSW | E152: @TK-DVY-TLP6TSW | F152: @TK-MUM-TLP6TSW | G152: @TK-DSE-TLP6TSW | H152: @TK-KGL-TLP6TSW | I152: @TK-DGL-TLP6TSW | J152: @TK-DYL-TLP6TSW | K152: @TK-DSK-TLP6TSW | L152: @TK-MDY-TLP6TSW | M152: @TK-MFJ-TLP6TSW | N152: @TK-MSK-TLP6TSW | O152: @TK-MSB-TLP6TSW | P152: @TK-JKG-TLP6TSW | Q152: @TK-JDG-TLP6TSW | R152: @TK-JDY-TLP6TSW | S152: @TK-JWG-TLP6TSW
B154: 720 Wall Rep end Panel | C154: WREP72 | D154: TK-A-DVM-WREP72 | E154: TK-A-DVY-WREP72 | F154: TK-A-MUM-WREP72 | G154: TK-A-DSE-WREP72 | H154: TK-A-KGL-WREP72 | I154: TK-A-DGL-WREP72 | J154: TK-A-DYL-WREP72 | K154: TK-A-DSK-WREP72 | L154: TK-A-MDY-WREP72 | M154: TK-A-MFJ-WREP72 | N154: TK-A-MSK-WREP72 | O154: TK-A-MSB-WREP72 | P154: TK-A-JKG-WREP72 | Q154: TK-A-JDG-WREP72 | R154: TK-A-JDY-WREP72 | S154: TK-A-JWG-WREP72
B155: End Support / Plant on Base Panel | C155: ESP | D155: TK-A-DVM-ESP | E155: TK-A-DVY-ESP | F155: TK-A-MUM-ESP | G155: TK-A-DSE-ESP | H155: TK-A-KGL-ESP | I155: TK-A-DGL-ESP | J155: TK-A-DYL-ESP | K155: TK-A-DSK-ESP | L155: TK-A-MDY-ESP | M155: TK-A-MFJ-ESP | N155: TK-A-MSK-ESP | O155: TK-A-MSB-ESP | P155: TK-A-JKG-ESP | Q155: TK-A-JDG-ESP | R155: TK-A-JDY-ESP | S155: TK-A-JWG-ESP
B156: Rep Base end Panel LH | C156: REP9L | D156: TK-A-DVM-REP9L | E156: TK-A-DVY-REP9L | F156: TK-A-MUM-REP9L | G156: TK-A-DSE-REP9L | H156: TK-A-KGL-REP9L | I156: TK-A-DGL-REP9L | J156: TK-A-DYL-REP9L | K156: TK-A-DSK-REP9L | L156: TK-A-MDY-REP9L | M156: TK-A-MFJ-REP9L | N156: TK-A-MSK-REP9L | O156: TK-A-MSB-REP9L | P156: TK-A-JKG-REP9L | Q156: TK-A-JDG-REP9L | R156: TK-A-JDY-REP9L | S156: TK-A-JWG-REP9L
B157: Rep Base end Panel RH | C157: REP9R | D157: TK-A-DVM-REP9R | E157: TK-A-DVY-REP9R | F157: TK-A-MUM-REP9R | G157: TK-A-DSE-REP9R | H157: TK-A-KGL-REP9R | I157: TK-A-DGL-REP9R | J157: TK-A-DYL-REP9R | K157: TK-A-DSK-REP9R | L157: TK-A-MDY-REP9R | M157: TK-A-MFJ-REP9R | N157: TK-A-MSK-REP9R | O157: TK-A-MSB-REP9R | P157: TK-A-JKG-REP9R | Q157: TK-A-JDG-REP9R | R157: TK-A-JDY-REP9R | S157: TK-A-JWG-REP9R
B158: Feature End Panel L 715x385 | C158: FEP73 | D158: Not Available | E158: Not Available | F158: Not Available | G158: Not Available | H158: Not Available | I158: Not Available | J158: Not Available | K158: Not Available | L158: Not Available | M158: Not Available | N158: Not Available | O158: Not Available | P158: TK-A-JKG-FEP73 | Q158: TK-A-JDG-FEP73 | R158: TK-A-JDY-FEP73 | S158: TK-A-JWG-FEP73
B159: Feature End Panel L 893x625 | C159: FEP86 | D159: Not Available | E159: Not Available | F159: Not Available | G159: Not Available | H159: Not Available | I159: Not Available | J159: Not Available | K159: Not Available | L159: Not Available | M159: Not Available | N159: Not Available | O159: Not Available | P159: TK-A-JKG-FEP86 | Q159: TK-A-JDG-FEP86 | R159: TK-A-JDY-FEP86 | S159: TK-A-JWG-FEP86
B160: Feature End Panel L 893x882 | C160: FEP88 | D160: Not Available | E160: Not Available | F160: Not Available | G160: Not Available | H160: Not Available | I160: Not Available | J160: Not Available | K160: Not Available | L160: Not Available | M160: Not Available | N160: Not Available | O160: Not Available | P160: TK-A-JKG-FEP88 | Q160: TK-A-JDG-FEP88 | R160: TK-A-JDY-FEP88 | S160: TK-A-JWG-FEP88
B161: Large Universal Panel 2200x900mm | C161: LUP | D161: TK-A-DVM-LUP | E161: TK-A-DVY-LUP | F161: TK-A-MUM-LUP | G161: TK-A-DSE-LUP | H161: TK-A-KGL-LUP | I161: TK-A-DGL-LUP | J161: TK-A-DYL-LUP | K161: TK-A-DSK-LUP | L161: TK-A-MDY-LUP | M161: TK-A-MFJ-LUP | N161: TK-A-MSK-LUP | O161: TK-A-MSB-LUP | P161: TK-A-JKG-LUP | Q161: TK-A-JDG-LUP | R161: TK-A-JDY-LUP | S161: TK-A-JWG-LUP
B162: Modern Sq Bul Pelmet / Cornice 2.4m | C162: BLPEL | D162: TK-A-DVM-BLPEL | E162: TK-A-DVY-BLPEL | F162: TK-A-MUM-BLPEL | G162: TK-A-DSE-BLPEL | H162: TK-A-KGL-BLPEL | I162: TK-A-DGL-BLPEL | J162: TK-A-DYL-BLPEL | K162: TK-A-DSK-BLPEL | L162: TK-A-MDY-BLPEL | M162: TK-A-MFJ-BLPEL | N162: TK-A-MSK-BLPEL | O162: TK-A-MSB-BLPEL | P162: TK-A-JKG-BLPEL | Q162: TK-A-JDG-BLPEL | R162: TK-A-JDY-BLPEL | S162: TK-A-JWG-BLPEL
B163: Plant on Tall End Panel 2200x630 | C163: PTEP | D163: TK-A-DVM-PTEP | E163: TK-A-DVY-PTEP | F163: TK-A-MUM-PTEP | G163: TK-A-DSE-PTEP | H163: TK-A-KGL-PTEP | I163: TK-A-DGL-PTEP | J163: TK-A-DYL-PTEP | K163: TK-A-DSK-PTEP | L163: TK-A-MDY-PTEP | M163: TK-A-MFJ-PTEP | N163: TK-A-MSK-PTEP | O163: TK-A-MSB-PTEP | P163: TK-A-JKG-PTEP | Q163: TK-A-JDG-PTEP | R163: TK-A-JDY-PTEP | S163: TK-A-JWG-PTEP
B164: Plant on Wall end Panel 900x600 | C164: PWEP9 | D164: TK-A-DVM-PWEP9 | E164: TK-A-DVY-PWEP9 | F164: TK-A-MUM-PWEP9 | G164: TK-A-DSE-PWEP9 | H164: TK-A-KGL-PWEP9 | I164: TK-A-DGL-PWEP9 | J164: TK-A-DYL-PWEP9 | K164: TK-A-DSK-PWEP9 | L164: TK-A-MDY-PWEP9 | M164: TK-A-MFJ-PWEP9 | N164: TK-A-MSK-PWEP9 | O164: TK-A-MSB-PWEP9 | P164: TK-A-JKG-PWEP9 | Q164: TK-A-JDG-PWEP9 | R164: TK-A-JDY-PWEP9 | S164: TK-A-JWG-PWEP9
B165: Plinth 2.4m | C165: PL | D165: TK-A-DVM-PL | E165: TK-A-DVY-PL | F165: TK-A-MUM-PL | G165: TK-A-DSE-PL | H165: TK-A-KGL-PL | I165: TK-A-DGL-PL | J165: TK-A-DYL-PL | K165: TK-A-DSK-PL | L165: TK-A-MDY-PL | M165: TK-A-MFJ-PL | N165: TK-A-MSK-PL | O165: TK-A-MSB-PL | P165: TK-A-JKG-PL | Q165: TK-A-JDG-PL | R165: TK-A-JDY-PL | S165: TK-A-JWG-PL
B166: 22mm Edging | C166: ET | D166: TK-A-DVM-ET | E166: TK-A-DVY-ET | F166: TK-A-MUM-ET | G166: TK-A-DSE-ET | H166: TK-A-KGL-ET | I166: TK-A-DGL-ET | J166: Not Available | K166: TK-A-DSK-ET | L166: TK-A-MDY-ET | M166: TK-A-MFJ-ET | N166: TK-A-MSK-ET | O166: TK-A-MSB-ET | P166: TK-A-JKG-ET | Q166: Not Available | R166: Not Available | S166: Not Available
B167: Filler Panel 2200x170 | C167: UP | D167: Not Available | E167: Not Available | F167: Not Available | G167: Not Available | H167: Not Available | I167: Not Available | J167: Not Available | K167: Not Available | L167: Not Available | M167: Not Available | N167: Not Available | O167: Not Available | P167: TK-A-JKG-UP | Q167: TK-A-JDG-UP | R167: TK-A-JDY-UP | S167: TK-A-JWG-UP
B170: ASSEMBLED | D170: RIGID BUILD | E170: RIGID BUILD | F170: RIGID BUILD | G170: RIGID BUILD | H170: RIGID BUILD | I170: RIGID BUILD | J170: RIGID BUILD | K170: RIGID BUILD | L170: RIGID BUILD | M170: RIGID BUILD | N170: RIGID BUILD | O170: RIGID BUILD | P170: RIGID BUILD | Q170: RIGID BUILD | R170: RIGID BUILD | S170: RIGID BUILD
B172: H003 Satin Nickel D Handle | D172: TK-HD-003 | E172: TK-HD-003 | F172: TK-HD-003 | G172: TK-HD-003 | H172: TK-HD-003 | I172: TK-HD-003 | J172: TK-HD-003 | K172: TK-HD-003 | L172: TK-HD-003 | M172: TK-HD-003 | N172: TK-HD-003 | O172: TK-HD-003 | P172: TK-HD-003 | Q172: TK-HD-003 | R172: TK-HD-003 | S172: TK-HD-003
B173: H1003 Long Chrome Front Fix Puro Handle | D173: TK-HD-1003 | E173: TK-HD-1003 | F173: TK-HD-1003 | G173: TK-HD-1003 | H173: TK-HD-1003 | I173: TK-HD-1003 | J173: TK-HD-1003 | K173: TK-HD-1003 | L173: TK-HD-1003 | M173: TK-HD-1003 | N173: TK-HD-1003 | O173: TK-HD-1003 | P173: TK-HD-1003 | Q173: TK-HD-1003 | R173: TK-HD-1003 | S173: TK-HD-1003
B174: H1007 Long Chrome Back Fix Puro Handle | D174: TK-HD-1007 | E174: TK-HD-1007 | F174: TK-HD-1007 | G174: TK-HD-1007 | H174: TK-HD-1007 | I174: TK-HD-1007 | J174: TK-HD-1007 | K174: TK-HD-1007 | L174: TK-HD-1007 | M174: TK-HD-1007 | N174: TK-HD-1007 | O174: TK-HD-1007 | P174: TK-HD-1007 | Q174: TK-HD-1007 | R174: TK-HD-1007 | S174: TK-HD-1007
B175: H1009 Pewter Round Knob Handle | D175: TK-HD-1009 | E175: TK-HD-1009 | F175: TK-HD-1009 | G175: TK-HD-1009 | H175: TK-HD-1009 | I175: TK-HD-1009 | J175: TK-HD-1009 | K175: TK-HD-1009 | L175: TK-HD-1009 | M175: TK-HD-1009 | N175: TK-HD-1009 | O175: TK-HD-1009 | P175: TK-HD-1009 | Q175: TK-HD-1009 | R175: TK-HD-1009 | S175: TK-HD-1009
B176: H1011 Brushed Nickel Curved End Handle | D176: TK-HD-1011 | E176: TK-HD-1011 | F176: TK-HD-1011 | G176: TK-HD-1011 | H176: TK-HD-1011 | I176: TK-HD-1011 | J176: TK-HD-1011 | K176: TK-HD-1011 | L176: TK-HD-1011 | M176: TK-HD-1011 | N176: TK-HD-1011 | O176: TK-HD-1011 | P176: TK-HD-1011 | Q176: TK-HD-1011 | R176: TK-HD-1011 | S176: TK-HD-1011
B177: H1013 Chrome Curved End Handle | D177: TK-HD-1013 | E177: TK-HD-1013 | F177: TK-HD-1013 | G177: TK-HD-1013 | H177: TK-HD-1013 | I177: TK-HD-1013 | J177: TK-HD-1013 | K177: TK-HD-1013 | L177: TK-HD-1013 | M177: TK-HD-1013 | N177: TK-HD-1013 | O177: TK-HD-1013 | P177: TK-HD-1013 | Q177: TK-HD-1013 | R177: TK-HD-1013 | S177: TK-HD-1013
B178: H1015 Copper Curved End Handle | D178: TK-HD-1015 | E178: TK-HD-1015 | F178: TK-HD-1015 | G178: TK-HD-1015 | H178: TK-HD-1015 | I178: TK-HD-1015 | J178: TK-HD-1015 | K178: TK-HD-1015 | L178: TK-HD-1015 | M178: TK-HD-1015 | N178: TK-HD-1015 | O178: TK-HD-1015 | P178: TK-HD-1015 | Q178: TK-HD-1015 | R178: TK-HD-1015 | S178: TK-HD-1015
B179: H1018 Stainless Steel D Handle | D179: TK-HD-1018 | E179: TK-HD-1018 | F179: TK-HD-1018 | G179: TK-HD-1018 | H179: TK-HD-1018 | I179: TK-HD-1018 | J179: TK-HD-1018 | K179: TK-HD-1018 | L179: TK-HD-1018 | M179: TK-HD-1018 | N179: TK-HD-1018 | O179: TK-HD-1018 | P179: TK-HD-1018 | Q179: TK-HD-1018 | R179: TK-HD-1018 | S179: TK-HD-1018
B180: H1019 Black Chrome D Handle | D180: TK-HD-1019 | E180: TK-HD-1019 | F180: TK-HD-1019 | G180: TK-HD-1019 | H180: TK-HD-1019 | I180: TK-HD-1019 | J180: TK-HD-1019 | K180: TK-HD-1019 | L180: TK-HD-1019 | M180: TK-HD-1019 | N180: TK-HD-1019 | O180: TK-HD-1019 | P180: TK-HD-1019 | Q180: TK-HD-1019 | R180: TK-HD-1019 | S180: TK-HD-1019
B181: H1020 Chrome Cup Handle | D181: TK-HD-1020 | E181: TK-HD-1020 | F181: TK-HD-1020 | G181: TK-HD-1020 | H181: TK-HD-1020 | I181: TK-HD-1020 | J181: TK-HD-1020 | K181: TK-HD-1020 | L181: TK-HD-1020 | M181: TK-HD-1020 | N181: TK-HD-1020 | O181: TK-HD-1020 | P181: TK-HD-1020 | Q181: TK-HD-1020 | R181: TK-HD-1020 | S181: TK-HD-1020
B182: H1022 Chrome Cup Handle | D182: TK-HD-1022 | E182: TK-HD-1022 | F182: TK-HD-1022 | G182: TK-HD-1022 | H182: TK-HD-1022 | I182: TK-HD-1022 | J182: TK-HD-1022 | K182: TK-HD-1022 | L182: TK-HD-1022 | M182: TK-HD-1022 | N182: TK-HD-1022 | O182: TK-HD-1022 | P182: TK-HD-1022 | Q182: TK-HD-1022 | R182: TK-HD-1022 | S182: TK-HD-1022
B183: H1024 Black Satin Cup Handle | D183: TK-HD-1024 | E183: TK-HD-1024 | F183: TK-HD-1024 | G183: TK-HD-1024 | H183: TK-HD-1024 | I183: TK-HD-1024 | J183: TK-HD-1024 | K183: TK-HD-1024 | L183: TK-HD-1024 | M183: TK-HD-1024 | N183: TK-HD-1024 | O183: TK-HD-1024 | P183: TK-HD-1024 | Q183: TK-HD-1024 | R183: TK-HD-1024 | S183: TK-HD-1024
B184: H1025 Chrome Round Knob Handle | D184: TK-HD-1025 | E184: TK-HD-1025 | F184: TK-HD-1025 | G184: TK-HD-1025 | H184: TK-HD-1025 | I184: TK-HD-1025 | J184: TK-HD-1025 | K184: TK-HD-1025 | L184: TK-HD-1025 | M184: TK-HD-1025 | N184: TK-HD-1025 | O184: TK-HD-1025 | P184: TK-HD-1025 | Q184: TK-HD-1025 | R184: TK-HD-1025 | S184: TK-HD-1025
B185: H1026 Black Satin Round Knob Handle | D185: TK-HD-1026 | E185: TK-HD-1026 | F185: TK-HD-1026 | G185: TK-HD-1026 | H185: TK-HD-1026 | I185: TK-HD-1026 | J185: TK-HD-1026 | K185: TK-HD-1026 | L185: TK-HD-1026 | M185: TK-HD-1026 | N185: TK-HD-1026 | O185: TK-HD-1026 | P185: TK-HD-1026 | Q185: TK-HD-1026 | R185: TK-HD-1026 | S185: TK-HD-1026
B186: H1027 Chrome Square Knob Handle | D186: TK-HD-1027 | E186: TK-HD-1027 | F186: TK-HD-1027 | G186: TK-HD-1027 | H186: TK-HD-1027 | I186: TK-HD-1027 | J186: TK-HD-1027 | K186: TK-HD-1027 | L186: TK-HD-1027 | M186: TK-HD-1027 | N186: TK-HD-1027 | O186: TK-HD-1027 | P186: TK-HD-1027 | Q186: TK-HD-1027 | R186: TK-HD-1027 | S186: TK-HD-1027
B187: H1028 Black Satin Square Knob Handle | D187: TK-HD-1028 | E187: TK-HD-1028 | F187: TK-HD-1028 | G187: TK-HD-1028 | H187: TK-HD-1028 | I187: TK-HD-1028 | J187: TK-HD-1028 | K187: TK-HD-1028 | L187: TK-HD-1028 | M187: TK-HD-1028 | N187: TK-HD-1028 | O187: TK-HD-1028 | P187: TK-HD-1028 | Q187: TK-HD-1028 | R187: TK-HD-1028 | S187: TK-HD-1028
B188: H1030 Antique Bronze Cup Handle | D188: TK-HD-1030 | E188: TK-HD-1030 | F188: TK-HD-1030 | G188: TK-HD-1030 | H188: TK-HD-1030 | I188: TK-HD-1030 | J188: TK-HD-1030 | K188: TK-HD-1030 | L188: TK-HD-1030 | M188: TK-HD-1030 | N188: TK-HD-1030 | O188: TK-HD-1030 | P188: TK-HD-1030 | Q188: TK-HD-1030 | R188: TK-HD-1030 | S188: TK-HD-1030
B189: H1031 Antique Bronze Knob Handle | D189: TK-HD-1031 | E189: TK-HD-1031 | F189: TK-HD-1031 | G189: TK-HD-1031 | H189: TK-HD-1031 | I189: TK-HD-1031 | J189: TK-HD-1031 | K189: TK-HD-1031 | L189: TK-HD-1031 | M189: TK-HD-1031 | N189: TK-HD-1031 | O189: TK-HD-1031 | P189: TK-HD-1031 | Q189: TK-HD-1031 | R189: TK-HD-1031 | S189: TK-HD-1031
B190: H146 Satin Nickel D Handle | D190: TK-HD-146 | E190: TK-HD-146 | F190: TK-HD-146 | G190: TK-HD-146 | H190: TK-HD-146 | I190: TK-HD-146 | J190: TK-HD-146 | K190: TK-HD-146 | L190: TK-HD-146 | M190: TK-HD-146 | N190: TK-HD-146 | O190: TK-HD-146 | P190: TK-HD-146 | Q190: TK-HD-146 | R190: TK-HD-146 | S190: TK-HD-146
B191: H149 Chrome Knob Handle | D191: TK-HD-149 | E191: TK-HD-149 | F191: TK-HD-149 | G191: TK-HD-149 | H191: TK-HD-149 | I191: TK-HD-149 | J191: TK-HD-149 | K191: TK-HD-149 | L191: TK-HD-149 | M191: TK-HD-149 | N191: TK-HD-149 | O191: TK-HD-149 | P191: TK-HD-149 | Q191: TK-HD-149 | R191: TK-HD-149 | S191: TK-HD-149
B192: H150 Chrome Cup Handle | D192: TK-HD-150 | E192: TK-HD-150 | F192: TK-HD-150 | G192: TK-HD-150 | H192: TK-HD-150 | I192: TK-HD-150 | J192: TK-HD-150 | K192: TK-HD-150 | L192: TK-HD-150 | M192: TK-HD-150 | N192: TK-HD-150 | O192: TK-HD-150 | P192: TK-HD-150 | Q192: TK-HD-150 | R192: TK-HD-150 | S192: TK-HD-150
B193: H222 Stainless Steel Bar Handle | D193: TK-HD-222 | E193: TK-HD-222 | F193: TK-HD-222 | G193: TK-HD-222 | H193: TK-HD-222 | I193: TK-HD-222 | J193: TK-HD-222 | K193: TK-HD-222 | L193: TK-HD-222 | M193: TK-HD-222 | N193: TK-HD-222 | O193: TK-HD-222 | P193: TK-HD-222 | Q193: TK-HD-222 | R193: TK-HD-222 | S193: TK-HD-222
B194: H264 Steel Arch End Handle | D194: TK-HD-264 | E194: TK-HD-264 | F194: TK-HD-264 | G194: TK-HD-264 | H194: TK-HD-264 | I194: TK-HD-264 | J194: TK-HD-264 | K194: TK-HD-264 | L194: TK-HD-264 | M194: TK-HD-264 | N194: TK-HD-264 | O194: TK-HD-264 | P194: TK-HD-264 | Q194: TK-HD-264 | R194: TK-HD-264 | S194: TK-HD-264
B195: H318 Stainless Steel Bar Handle | D195: TK-HD-318 | E195: TK-HD-318 | F195: TK-HD-318 | G195: TK-HD-318 | H195: TK-HD-318 | I195: TK-HD-318 | J195: TK-HD-318 | K195: TK-HD-318 | L195: TK-HD-318 | M195: TK-HD-318 | N195: TK-HD-318 | O195: TK-HD-318 | P195: TK-HD-318 | Q195: TK-HD-318 | R195: TK-HD-318 | S195: TK-HD-318
B196: H363 Pewter Effect D Handle | D196: TK-HD-363 | E196: TK-HD-363 | F196: TK-HD-363 | G196: TK-HD-363 | H196: TK-HD-363 | I196: TK-HD-363 | J196: TK-HD-363 | K196: TK-HD-363 | L196: TK-HD-363 | M196: TK-HD-363 | N196: TK-HD-363 | O196: TK-HD-363 | P196: TK-HD-363 | Q196: TK-HD-363 | R196: TK-HD-363 | S196: TK-HD-363
B197: H504 Antique Bronze Handle | D197: TK-HD-504 | E197: TK-HD-504 | F197: TK-HD-504 | G197: TK-HD-504 | H197: TK-HD-504 | I197: TK-HD-504 | J197: TK-HD-504 | K197: TK-HD-504 | L197: TK-HD-504 | M197: TK-HD-504 | N197: TK-HD-504 | O197: TK-HD-504 | P197: TK-HD-504 | Q197: TK-HD-504 | R197: TK-HD-504 | S197: TK-HD-504
B198: H820 Steel Collar Handle | D198: TK-HD-820 | E198: TK-HD-820 | F198: TK-HD-820 | G198: TK-HD-820 | H198: TK-HD-820 | I198: TK-HD-820 | J198: TK-HD-820 | K198: TK-HD-820 | L198: TK-HD-820 | M198: TK-HD-820 | N198: TK-HD-820 | O198: TK-HD-820 | P198: TK-HD-820 | Q198: TK-HD-820 | R198: TK-HD-820 | S198: TK-HD-820
B199: H917 Stainless Steel D Handle | D199: TK-HD-917 | E199: TK-HD-917 | F199: TK-HD-917 | G199: TK-HD-917 | H199: TK-HD-917 | I199: TK-HD-917 | J199: TK-HD-917 | K199: TK-HD-917 | L199: TK-HD-917 | M199: TK-HD-917 | N199: TK-HD-917 | O199: TK-HD-917 | P199: TK-HD-917 | Q199: TK-HD-917 | R199: TK-HD-917 | S199: TK-HD-917
B200: H918 Satin Nickel D Handle | D200: TK-HD-918 | E200: TK-HD-918 | F200: TK-HD-918 | G200: TK-HD-918 | H200: TK-HD-918 | I200: TK-HD-918 | J200: TK-HD-918 | K200: TK-HD-918 | L200: TK-HD-918 | M200: TK-HD-918 | N200: TK-HD-918 | O200: TK-HD-918 | P200: TK-HD-918 | Q200: TK-HD-918 | R200: TK-HD-918 | S200: TK-HD-918
B201: H931 Satin Nickel D Handle | D201: TK-HD-931 | E201: TK-HD-931 | F201: TK-HD-931 | G201: TK-HD-931 | H201: TK-HD-931 | I201: TK-HD-931 | J201: TK-HD-931 | K201: TK-HD-931 | L201: TK-HD-931 | M201: TK-HD-931 | N201: TK-HD-931 | O201: TK-HD-931 | P201: TK-HD-931 | Q201: TK-HD-931 | R201: TK-HD-931 | S201: TK-HD-931
B202: H932 Satin Nickel Strap Handle | D202: TK-HD-932 | E202: TK-HD-932 | F202: TK-HD-932 | G202: TK-HD-932 | H202: TK-HD-932 | I202: TK-HD-932 | J202: TK-HD-932 | K202: TK-HD-932 | L202: TK-HD-932 | M202: TK-HD-932 | N202: TK-HD-932 | O202: TK-HD-932 | P202: TK-HD-932 | Q202: TK-HD-932 | R202: TK-HD-932 | S202: TK-HD-932
B203: H933 Satin Nickel D Handle | D203: TK-HD-933 | E203: TK-HD-933 | F203: TK-HD-933 | G203: TK-HD-933 | H203: TK-HD-933 | I203: TK-HD-933 | J203: TK-HD-933 | K203: TK-HD-933 | L203: TK-HD-933 | M203: TK-HD-933 | N203: TK-HD-933 | O203: TK-HD-933 | P203: TK-HD-933 | Q203: TK-HD-933 | R203: TK-HD-933 | S203: TK-HD-933
B204: H941 Chrome D Handle | D204: TK-HD-941 | E204: TK-HD-941 | F204: TK-HD-941 | G204: TK-HD-941 | H204: TK-HD-941 | I204: TK-HD-941 | J204: TK-HD-941 | K204: TK-HD-941 | L204: TK-HD-941 | M204: TK-HD-941 | N204: TK-HD-941 | O204: TK-HD-941 | P204: TK-HD-941 | Q204: TK-HD-941 | R204: TK-HD-941 | S204: TK-HD-941
B205: H942 Antique Effect D Handle | D205: TK-HD-942 | E205: TK-HD-942 | F205: TK-HD-942 | G205: TK-HD-942 | H205: TK-HD-942 | I205: TK-HD-942 | J205: TK-HD-942 | K205: TK-HD-942 | L205: TK-HD-942 | M205: TK-HD-942 | N205: TK-HD-942 | O205: TK-HD-942 | P205: TK-HD-942 | Q205: TK-HD-942 | R205: TK-HD-942 | S205: TK-HD-942
B206: H943 Antique Effect Cup Handle | D206: TK-HD-943 | E206: TK-HD-943 | F206: TK-HD-943 | G206: TK-HD-943 | H206: TK-HD-943 | I206: TK-HD-943 | J206: TK-HD-943 | K206: TK-HD-943 | L206: TK-HD-943 | M206: TK-HD-943 | N206: TK-HD-943 | O206: TK-HD-943 | P206: TK-HD-943 | Q206: TK-HD-943 | R206: TK-HD-943 | S206: TK-HD-943
B207: H947 Chrome D Handle | D207: TK-HD-947 | E207: TK-HD-947 | F207: TK-HD-947 | G207: TK-HD-947 | H207: TK-HD-947 | I207: TK-HD-947 | J207: TK-HD-947 | K207: TK-HD-947 | L207: TK-HD-947 | M207: TK-HD-947 | N207: TK-HD-947 | O207: TK-HD-947 | P207: TK-HD-947 | Q207: TK-HD-947 | R207: TK-HD-947 | S207: TK-HD-947
... 326 more rows

Sheet Prices (hidden)
A1: BOM Code | B1: BOM Description | C1: Range | F1: RRP
A2: @TK-DVM-AD45I | B2: 450 Integrated Dishwasher Fascia | C2: Devlin Matt Dove | D2: =MID(A2,9,20) -> AD45I | F2: 49
A3: @TK-DVM-AD60FD | B3: 600 Fridge/Dishwasher Fascia | C3: Devlin Matt Dove | D3: AD60FD | F3: 57
A4: @TK-DVM-AD60ICH | B4: 600 Integrated Extractor Door | C4: Devlin Matt Dove | D4: AD60ICH | F4: 39
A5: @TK-DVM-AD60S | B5: 600 Semi Int Dishwasher Fascia | C5: Devlin Matt Dove | D5: AD60S | F5: 51
A6: @TK-DVM-AH-DMWS | B6: 600 Double Oven & MW unit -SC Full | C6: Devlin Matt Dove | D6: AH-DMWS | F6: 737.99
A7: @TK-DVM-AH-DMWW | B7: 600 Double Oven & MW unit | C7: Devlin Matt Dove | D7: AH-DMWW | F7: 666.98
A8: @TK-DVM-AH-DO2DS | B8: 600 Dble Oven & 2 Drws -SC Full | C8: Devlin Matt Dove | D8: AH-DO2DS | F8: 774.98
A9: @TK-DVM-AH-DO2DW | B9: 600 Dble Oven & 2 Drws | C9: Devlin Matt Dove | D9: AH-DO2DW | F9: 703.98
A10: @TK-DVM-AH-DOS | B10: 600 Dble Oven Housing -SC Full | C10: Devlin Matt Dove | D10: AH-DOS | F10: 658.01
A11: @TK-DVM-AH-DOW | B11: 600 Dble Oven Housing | C11: Devlin Matt Dove | D11: AH-DOW | F11: 587
A12: @TK-DVM-AH-F55 | B12: 600 50/50 FF Housing Unit | C12: Devlin Matt Dove | D12: AH-F55 | F12: 634.99
A13: @TK-DVM-AH-F55W | B13: 600 50/50 FF Housing Unit | C13: Devlin Matt Dove | D13: AH-F55W | F13: 563.99
A14: @TK-DVM-AH-F73 | B14: 600 70/30 FF Housing Unit | C14: Devlin Matt Dove | D14: AH-F73 | F14: 625
A15: @TK-DVM-AH-F73W | B15: 600 70/30 FF Housing Unit | C15: Devlin Matt Dove | D15: AH-F73W | F15: 553.99
A16: @TK-DVM-AH-SM2DS | B16: 600 Single Oven & MW 2 Drw unit -SC Full | C16: Devlin Matt Dove | D16: AH-SM2DS | F16: 814.99
A17: @TK-DVM-AH-SM2DW | B17: 600 Single Oven & MW 2 Drw unit | C17: Devlin Matt Dove | D17: AH-SM2DW | F17: 743.99
A18: @TK-DVM-AH-SMWS | B18: 600 Sgle Oven & MW 2 Door unit -SC Full | C18: Devlin Matt Dove | D18: AH-SMWS | F18: 699.01
A19: @TK-DVM-AH-SMWW | B19: 600 Sgle Oven & MW 2 Door unit | C19: Devlin Matt Dove | D19: AH-SMWW | F19: 628.01
A20: @TK-DVM-AH-SO | B20: 600 Single Oven Unit -SC Full | C20: Devlin Matt Dove | D20: AH-SO | F20: 675.01
A21: @TK-DVM-AH-SO1DS | B21: 600 Single Oven + 1 Drw Unit -SC Full | C21: Devlin Matt Dove | D21: AH-SO1DS | F21: 746
A22: @TK-DVM-AH-SO1DW | B22: 600 Single Oven + 1 Drw Unit | C22: Devlin Matt Dove | D22: AH-SO1DW | F22: 675
A23: @TK-DVM-AH-SO2DS | B23: 600 Single Oven + 2 Drws Unit -SC Full | C23: Devlin Matt Dove | D23: AH-SO2DS | F23: 787.99
A24: @TK-DVM-AH-SO2DW | B24: 600 Single Oven + 2 Drws Unit | C24: Devlin Matt Dove | D24: AH-SO2DW | F24: 716.99
A25: @TK-DVM-AH-SO3DS | B25: 600 Single Oven + 3 Drws Unit - SC Full | C25: Devlin Matt Dove | D25: AH-SO3DS | F25: 860.99
A26: @TK-DVM-AH-SO3DW | B26: 600 Single Oven + 3 Drws Unit | C26: Devlin Matt Dove | D26: AH-SO3DW | F26: 789.98
A27: @TK-DVM-AH-SOW | B27: 600 Single Oven Unit | C27: Devlin Matt Dove | D27: AH-SOW | F27: 604.01
A28: @TK-DVM-BC145S | B28: 1000 HL Cnr Base (450 Door) -SC Full | C28: Devlin Matt Dove | D28: BC145S | F28: 320
A29: @TK-DVM-BC15S | B29: 1000 HL Cnr Base (500 Door) -SC Full | C29: Devlin Matt Dove | D29: BC15S | F29: 323
A30: @TK-DVM-BC16S | B30: 1000 HL Cnr Base (600 Door) -SC Full | C30: Devlin Matt Dove | D30: BC16S | F30: 328.01
A31: @TK-DVM-BC83S | B31: 800 HL Cnr Base (300 Door) -SC Full | C31: Devlin Matt Dove | D31: BC83S | F31: 302
A32: @TK-DVM-BC845S | B32: 800 HL Cnr Base (450 Door) -SC Full | C32: Devlin Matt Dove | D32: BC845S | F32: 312
A33: @TK-DVM-BC84S | B33: 800 HL Cnr Base Unit (400 Door) -SC Full | C33: Devlin Matt Dove | D33: BC84S | F33: 309
A34: @TK-DVM-BC945S | B34: 900 HL Cnr Base (450 Door) -SC Full | C34: Devlin Matt Dove | D34: =MID(A34,9,20) -> BC945S | F34: 315
A35: @TK-DVM-BCL15L | B35: Le Mans Cnr Base 1000 - 500 LH - SC Hng | C35: Devlin Matt Dove | D35: BCL15L | F35: 1004
A36: @TK-DVM-BCL15R | B36: Le Mans Cnr Base 1000 - 500 RH - SC Hng | C36: Devlin Matt Dove | D36: BCL15R | F36: 1004
A37: @TK-DVM-BCL16L | B37: Le Mans Cnr Base 1000 - 600 LH - SC Hng | C37: Devlin Matt Dove | D37: BCL16L | F37: 1058
A38: @TK-DVM-BCL16R | B38: Le Mans Cnr Base 1000 - 600 RH - SC Hng | C38: Devlin Matt Dove | D38: BCL16R | F38: 1058
A39: @TK-DVM-BCL9S | B39: 950 HL Cnr L Base -SC Full | C39: Devlin Matt Dove | D39: BCL9S | F39: 444.01
A40: @TK-DVM-BCLC9S | B40: 950 HL 3/4 Carousel Cnr L Base - SC Full | C40: Devlin Matt Dove | D40: BCLC9S | F40: 848.02
A41: @TK-DVM-BCM15L | B41: Magic Cnr Base Unit 1000 - 500 LH | C41: Devlin Matt Dove | D41: BCM15L | F41: 1023
A42: @TK-DVM-BCM15R | B42: Magic Cnr Base Unit 1000 - 500 RH | C42: Devlin Matt Dove | D42: BCM15R | F42: 1023
A43: @TK-DVM-BCM16L | B43: Magic Cnr Base Unit 1000 - 600 LH | C43: Devlin Matt Dove | D43: BCM16L | F43: 1028
A44: @TK-DVM-BCM16R | B44: Magic Cnr Base Unit 1000 - 600 RH | C44: Devlin Matt Dove | D44: BCM16R | F44: 1028
A45: @TK-DVM-BCO145S | B45: Cnr Opt Base Unit 1000-450 door-SC Full | C45: Devlin Matt Dove | D45: BCO145S | F45: 873
A46: @TK-DVM-BCO15S | B46: Cnr Opt Base Unit 1000-500 door-SC Full | C46: Devlin Matt Dove | D46: BCO15S | F46: 876
A47: @TK-DVM-BCO16S | B47: Cnr Opt Base Unit 1000-600 door-SC Full | C47: Devlin Matt Dove | D47: BCO16S | F47: 881
A48: @TK-DVM-BCO84S | B48: Cnr Opt Base Unit 800 - 400 door-SC Full | C48: Devlin Matt Dove | D48: BCO84S | F48: 862
A49: @TK-DVM-BCO945S | B49: Cnr Opt Base Unit 900 - 450 door - SC Fu | C49: Devlin Matt Dove | D49: BCO945S | F49: 868
A50: @TK-DVM-BD13S | B50: 1000 3 Drw Base Unit -SC Full | C50: Devlin Matt Dove | D50: BD13S | F50: 524.99
A51: @TK-DVM-BD53S | B51: 500 3 Drw Base Unit -SC Full | C51: Devlin Matt Dove | D51: BD53S | F51: 384.01
A52: @TK-DVM-BD54S | B52: 500 4 Drw Base Unit -SC Full | C52: Devlin Matt Dove | D52: BD54S | F52: 448.01
A53: @TK-DVM-BD62S | B53: 600 2 Pan Drw Unit -SC Full | C53: Devlin Matt Dove | D53: BD62S | F53: 325.99
A54: @TK-DVM-BD63S | B54: 600 3 Drw Base Unit -SC Full | C54: Devlin Matt Dove | D54: BD63S | F54: 403.98
A55: @TK-DVM-BD83S | B55: 800 3 Drw Base Unit -SC Full | C55: Devlin Matt Dove | D55: BD83S | F55: 484
A56: @TK-DVM-BD92S | B56: 900 2 Pan Drw Unit -SC Full | C56: Devlin Matt Dove | D56: BD92S | F56: 401
A57: @TK-DVM-BD93S | B57: 900 3 Drw Base Unit -SC Full | C57: Devlin Matt Dove | D57: BD93S | F57: 490.99
A58: @TK-DVM-BH100S | B58: 1000 HL Base Unit -SC Full | C58: Devlin Matt Dove | D58: BH100S | F58: 310.01
A59: @TK-DVM-BH15S | B59: 150 HL Base Unit -SC Full | C59: Devlin Matt Dove | D59: BH15S | F59: 164
A60: @TK-DVM-BH30S | B60: 300 HL Base Unit -SC Full | C60: Devlin Matt Dove | D60: BH30S | F60: 170
A61: @TK-DVM-BH35S | B61: 350 HL Base Unit -SC Full | C61: Devlin Matt Dove | D61: BH35S | F61: 173.02
A62: @TK-DVM-BH3BS | B62: 300 HL Base Unit & Bin -SC Full | C62: Devlin Matt Dove | D62: BH3BS | F62: 322.01
A63: @TK-DVM-BH40S | B63: 400 HL Base Unit -SC Full | C63: Devlin Matt Dove | D63: BH40S | F63: 181.01
A64: @TK-DVM-BH45S | B64: 450 HL Base Unit -SC Full | C64: Devlin Matt Dove | D64: BH45S | F64: 188
A65: @TK-DVM-BH4BS | B65: 400 HL Base Unit & Bin -SC Full | C65: Devlin Matt Dove | D65: BH4BS | F65: 388.01
A66: @TK-DVM-BH50S | B66: 500 HL Base Unit -SC Full | C66: Devlin Matt Dove | D66: =MID(A66,9,20) -> BH50S | F66: 193.01
A67: @TK-DVM-BH60S | B67: 600 HL Base Unit -SC Full | C67: Devlin Matt Dove | D67: BH60S | F67: 209
A68: @TK-DVM-BH6BS | B68: 600 HL Base Unit & Bin -SC Full | C68: Devlin Matt Dove | D68: BH6BS | F68: 634.01
A69: @TK-DVM-BH70S | B69: 700 HL Base Unit -SC Full | C69: Devlin Matt Dove | D69: BH70S | F69: 275.03
A70: @TK-DVM-BH80S | B70: 800 HL Base Unit -SC Full | C70: Devlin Matt Dove | D70: BH80S | F70: 290
A71: @TK-DVM-BH90S | B71: 900 HL Base Unit -SC Full | C71: Devlin Matt Dove | D71: BH90S | F71: 299
A72: @TK-DVM-BLD9 | B72: Boiler Door | C72: Devlin Matt Dove | D72: BLD9 | F72: 95
A73: @TK-DVM-BOH6 | B73: 600 BU Oven Housing | C73: Devlin Matt Dove | D73: BOH6 | F73: 145.01
A74: @TK-DVM-BP15TW | B74: 150 Hl Pull Out Towel Base | C74: Devlin Matt Dove | D74: BP15TW | F74: 298
A75: @TK-DVM-BP15TY | B75: 150 HL Pull Out Tray Base | C75: Devlin Matt Dove | D75: BP15TY | F75: 295.99
A76: @TK-DVM-BP3TY | B76: 300 HL Pull Out Tray Base | C76: Devlin Matt Dove | D76: BP3TY | F76: 472
A77: @TK-DVM-BSU6450S | B77: 600 Belfast Sink Unit (450mm High) | C77: Devlin Matt Dove | D77: BSU6450S | F77: 191
A78: @TK-DVM-BSU6495S | B78: 600 Belfast Sink Unit -SC Full | C78: Devlin Matt Dove | D78: BSU6495S | F78: 198
A79: @TK-DVM-L3S | B79: 300 Larder Unit -SC Full | C79: Devlin Matt Dove | D79: L3S | F79: 615.02
A80: @TK-DVM-L3W | B80: 300 Larder Unit | C80: Devlin Matt Dove | D80: L3W | F80: 544.02
A81: @TK-DVM-L5S | B81: 500 Larder Unit -SC Full | C81: Devlin Matt Dove | D81: L5S | F81: 701.02
A82: @TK-DVM-L5W | B82: 500 Larder Unit | C82: Devlin Matt Dove | D82: L5W | F82: 630.01
A83: @TK-DVM-L6S | B83: 600 Larder Unit -SC Full | C83: Devlin Matt Dove | D83: L6S | F83: 723.01
A84: @TK-DVM-L6W | B84: 600 Larder Unit | C84: Devlin Matt Dove | D84: L6W | F84: 652.01
A85: @TK-DVM-LBC15W | B85: 1000mm Blind Corner larder 500 | C85: Devlin Matt Dove | D85: LBC15W | F85: 911
A86: @TK-DVM-LBC16W | B86: 1000mm Blind Corner larder 600 | C86: Devlin Matt Dove | D86: LBC16W | F86: 932
A87: @TK-DVM-LBCLM15LW | B87: 1000 Blind Cnr larder Le Mans 50 LH | C87: Devlin Matt Dove | D87: LBCLM15LW | F87: 2359.01
A88: @TK-DVM-LBCLM15RW | B88: 1000 Blind Cnr larder Le Mans 50 RH | C88: Devlin Matt Dove | D88: LBCLM15RW | F88: 2359.01
A89: @TK-DVM-LBCLM16LW | B89: 1000 Blind Cnr larder Le Mans 60 LH | C89: Devlin Matt Dove | D89: LBCLM16LW | F89: 2478
A90: @TK-DVM-LBCLM16RW | B90: 1000 Blind Cnr larder Le Mans 60 RH | C90: Devlin Matt Dove | D90: LBCLM16RW | F90: 2478
A91: @TK-DVM-LP3 | B91: 300mm Larder Unit & Pullout KB | C91: Devlin Matt Dove | D91: LP3 | F91: 1211
A92: @TK-DVM-LP3W | B92: 300mm Larder Unit & Pullout KB | C92: Devlin Matt Dove | D92: LP3W | F92: 1140
A93: @TK-DVM-LP5TSS | B93: 500mm Larder Unit & Tandem Solo -SC Full | C93: Devlin Matt Dove | D93: LP5TSS | F93: 1436.02
A94: @TK-DVM-LP5TSW | B94: 500mm Larder Unit & Tandem Solo PO | C94: Devlin Matt Dove | D94: LP5TSW | F94: 1365.01
A95: @TK-DVM-LP6TS | B95: 600mm Larder Unit & Tandem PO - SC Full | C95: Devlin Matt Dove | D95: LP6TS | F95: 1658.02
A96: @TK-DVM-LP6TSS | B96: 600mm Larder Unit & Tandem Solo - SC Ful | C96: Devlin Matt Dove | D96: LP6TSS | F96: 1501.01
A97: @TK-DVM-LP6TSW | B97: 600mm Larder Unit & Tandem Solo PO | C97: Devlin Matt Dove | D97: LP6TSW | F97: 1430
A98: @TK-DVM-LP6TW | B98: 600mm Larder Unit & Tandem PO | C98: Devlin Matt Dove | D98: =MID(A98,9,20) -> LP6TW | F98: 1587.01
A99: @TK-DVM-LPN12D3DW | B99: 1000mm Pantry 2 Doors 3 Drawers | C99: Devlin Matt Dove | D99: LPN12D3DW | F99: 1241
A100: @TK-DVM-LPN14DW | B100: 1000mm Pantry 4 Doors | C100: Devlin Matt Dove | D100: LPN14DW | F100: 1041.02
A101: @TK-DVM-W100S | B101: 1000 Wall Unit -SC Full | C101: Devlin Matt Dove | D101: W100S | F101: 297.01
A102: @TK-DVM-W15S | B102: 150 Wall Unit - SC Full | C102: Devlin Matt Dove | D102: W15S | F102: 150.01
A103: @TK-DVM-W30S | B103: 300 Wall Unit -SC Full | C103: Devlin Matt Dove | D103: W30S | F103: 156.01
A104: @TK-DVM-W35S | B104: 350 Wall Unit -SC Full | C104: Devlin Matt Dove | D104: W35S | F104: 160.01
A105: @TK-DVM-W40S | B105: 400 Wall Unit -SC Full | C105: Devlin Matt Dove | D105: W40S | F105: 167
A106: @TK-DVM-W45S | B106: 450 Wall Unit -SC Full | C106: Devlin Matt Dove | D106: W45S | F106: 174
A107: @TK-DVM-W50S | B107: 500 Wall Unit -SC Full | C107: Devlin Matt Dove | D107: W50S | F107: 182
A108: @TK-DVM-W60S | B108: 600 Wall Unit -SC Full | C108: Devlin Matt Dove | D108: W60S | F108: 192.01
A109: @TK-DVM-W70S | B109: 700 Wall Unit -SC Full | C109: Devlin Matt Dove | D109: W70S | F109: 261.02
A110: @TK-DVM-W80S | B110: 800 Wall Unit -SC Full | C110: Devlin Matt Dove | D110: W80S | F110: 278
A111: @TK-DVM-W90S | B111: 900 Wall Unit -SC Full | C111: Devlin Matt Dove | D111: W90S | F111: 287
A112: @TK-DVM-WB12S | B112: 1000 Bridging Unit -SC Full | C112: Devlin Matt Dove | D112: WB12S | F112: 216
A113: @TK-DVM-WB62S | B113: 600 Bridging Unit -SC Full | C113: Devlin Matt Dove | D113: WB62S | F113: 159
A114: @TK-DVM-WB82S | B114: 800 Bridging Unit -SC Full | C114: Devlin Matt Dove | D114: WB82S | F114: 197
A115: @TK-DVM-WB92S | B115: 900 Bridging Unit -SC Full | C115: Devlin Matt Dove | D115: WB92S | F115: 206
A116: @TK-DVM-WBHUS | B116: 600 Boiler Housing - SC Full | C116: Devlin Matt Dove | D116: WBHUS | F116: 228.01
A117: @TK-DVM-WBI60 | B117: 600 Bifold Unit | C117: Devlin Matt Dove | D117: WBI60 | F117: 469
A118: @TK-DVM-WBI90 | B118: 900 Bifold Unit | C118: Devlin Matt Dove | D118: WBI90 | F118: 538
A119: @TK-DVM-WC6S | B119: 600 Cnr Wall Unit -SC Full | C119: Devlin Matt Dove | D119: WC6S | F119: 210.01
A120: @TK-DVM-WC9S | B120: 900 Cnr Wall Unit -SC Full | C120: Devlin Matt Dove | D120: WC9S | F120: 260
A121: @TK-DVM-WCL65S | B121: 650 L Cnr Wall Unit -SC Full | C121: Devlin Matt Dove | D121: WCL65S | F121: 347
A122: @TK-DVM-WM60S | B122: 600 Wall Microwave Unit-SC Full | C122: Devlin Matt Dove | D122: WM60S | F122: 205.01
A123: TK-A-DVM-BLPEL | B123: Modern Sq Bul Pelmet / Cornice | C123: Devlin Matt Dove | D123: =MID(A123,10,20) -> BLPEL | F123: 51
A124: TK-A-DVM-ESP | B124: End Support / Plant on Base Panel | C124: Devlin Matt Dove | D124: ESP | F124: 62.004
A125: TK-A-DVM-ET | B125: 22mm Edging | C125: Devlin Matt Dove | D125: ET | F125: 12
A126: TK-A-DVM-LUP | B126: Large Universal Panel 2200x900mm | C126: Devlin Matt Dove | D126: LUP | F126: 188.004
A127: TK-A-DVM-PL | B127: Plinth | C127: Devlin Matt Dove | D127: PL | F127: 54.996
A128: TK-A-DVM-PTEP | B128: Plant on Tall End Panel 2200x630 | C128: Devlin Matt Dove | D128: PTEP | F128: 152.004
A129: TK-A-DVM-PWEP9 | B129: Plant on Wall end Panel 900x600 | C129: Devlin Matt Dove | D129: PWEP9 | F129: 62.004
A130: TK-A-DVM-REP9L | B130: Rep Base end Panel LH | C130: Devlin Matt Dove | D130: REP9L | F130: 90
A131: TK-A-DVM-REP9R | B131: Rep Base end Panel RH | C131: Devlin Matt Dove | D131: REP9R | F131: 90
A132: TK-A-DVM-WREP72 | B132: 720 Wall Rep end Panel | C132: Devlin Matt Dove | D132: WREP72 | F132: 39.996
A133: @TK-DVY-AD45I | B133: 450 Integrated Dishwasher Fascia | C133: Devlin Matt Dust | D133: =MID(A133,9,20) -> AD45I | F133: 49
A134: @TK-DVY-AD60FD | B134: 600 Fridge/Dishwasher Fascia | C134: Devlin Matt Dust | D134: AD60FD | F134: 57
A135: @TK-DVY-AD60ICH | B135: 600 Integrated Extractor Door | C135: Devlin Matt Dust | D135: AD60ICH | F135: 39
A136: @TK-DVY-AD60S | B136: 600 Semi Int Dishwasher Fascia | C136: Devlin Matt Dust | D136: AD60S | F136: 51
A137: @TK-DVY-AH-DMWS | B137: 600 Double Oven & MW unit -SC Full | C137: Devlin Matt Dust | D137: AH-DMWS | F137: 737.99
A138: @TK-DVY-AH-DMWW | B138: 600 Double Oven & MW unit | C138: Devlin Matt Dust | D138: AH-DMWW | F138: 666.98
A139: @TK-DVY-AH-DO2DS | B139: 600 Dble Oven & 2 Drws -SC Full | C139: Devlin Matt Dust | D139: AH-DO2DS | F139: 774.98
A140: @TK-DVY-AH-DO2DW | B140: 600 Dble Oven & 2 Drws | C140: Devlin Matt Dust | D140: AH-DO2DW | F140: 703.98
A141: @TK-DVY-AH-DOS | B141: 600 Dble Oven Housing -SC Full | C141: Devlin Matt Dust | D141: AH-DOS | F141: 658.01
A142: @TK-DVY-AH-DOW | B142: 600 Dble Oven Housing | C142: Devlin Matt Dust | D142: AH-DOW | F142: 587
A143: @TK-DVY-AH-F55 | B143: 600 50/50 FF Housing Unit | C143: Devlin Matt Dust | D143: AH-F55 | F143: 634.99
A144: @TK-DVY-AH-F55W | B144: 600 50/50 FF Housing Unit | C144: Devlin Matt Dust | D144: AH-F55W | F144: 563.99
A145: @TK-DVY-AH-F73 | B145: 600 70/30 FF Housing Unit | C145: Devlin Matt Dust | D145: AH-F73 | F145: 625
A146: @TK-DVY-AH-F73W | B146: 600 70/30 FF Housing Unit | C146: Devlin Matt Dust | D146: AH-F73W | F146: 553.99
A147: @TK-DVY-AH-SM2DS | B147: 600 Single Oven & MW 2 Drw unit -SC Full | C147: Devlin Matt Dust | D147: AH-SM2DS | F147: 814.99
A148: @TK-DVY-AH-SM2DW | B148: 600 Single Oven & MW 2 Drw unit | C148: Devlin Matt Dust | D148: AH-SM2DW | F148: 743.99
A149: @TK-DVY-AH-SMWS | B149: 600 Sgle Oven & MW 2 Door unit -SC Full | C149: Devlin Matt Dust | D149: AH-SMWS | F149: 699.01
A150: @TK-DVY-AH-SMWW | B150: 600 Sgle Oven & MW 2 Door unit | C150: Devlin Matt Dust | D150: AH-SMWW | F150: 628.01
A151: @TK-DVY-AH-SO | B151: 600 Single Oven Unit -SC Full | C151: Devlin Matt Dust | D151: AH-SO | F151: 675.01
A152: @TK-DVY-AH-SO1DS | B152: 600 Single Oven + 1 Drw Unit -SC Full | C152: Devlin Matt Dust | D152: AH-SO1DS | F152: 746
A153: @TK-DVY-AH-SO1DW | B153: 600 Single Oven + 1 Drw Unit | C153: Devlin Matt Dust | D153: AH-SO1DW | F153: 675
A154: @TK-DVY-AH-SO2DS | B154: 600 Single Oven + 2 Drws Unit -SC Full | C154: Devlin Matt Dust | D154: AH-SO2DS | F154: 787.99
A155: @TK-DVY-AH-SO2DW | B155: 600 Single Oven + 2 Drws Unit | C155: Devlin Matt Dust | D155: AH-SO2DW | F155: 716.99
A156: @TK-DVY-AH-SO3DS | B156: 600 Single Oven + 3 Drws Unit - SC Full | C156: Devlin Matt Dust | D156: AH-SO3DS | F156: 860.99
A157: @TK-DVY-AH-SO3DW | B157: 600 Single Oven + 3 Drws Unit | C157: Devlin Matt Dust | D157: AH-SO3DW | F157: 789.98
A158: @TK-DVY-AH-SOW | B158: 600 Single Oven Unit | C158: Devlin Matt Dust | D158: AH-SOW | F158: 604.01
A159: @TK-DVY-BC145S | B159: 1000 HL Cnr Base (450 Door) -SC Full | C159: Devlin Matt Dust | D159: BC145S | F159: 320
A160: @TK-DVY-BC15S | B160: 1000 HL Cnr Base (500 Door) -SC Full | C160: Devlin Matt Dust | D160: BC15S | F160: 323
A161: @TK-DVY-BC16S | B161: 1000 HL Cnr Base (600 Door) -SC Full | C161: Devlin Matt Dust | D161: BC16S | F161: 328.01
A162: @TK-DVY-BC83S | B162: 800 HL Cnr Base (300 Door) -SC Full | C162: Devlin Matt Dust | D162: BC83S | F162: 302
A163: @TK-DVY-BC845S | B163: 800 HL Cnr Base (450 Door) -SC Full | C163: Devlin Matt Dust | D163: BC845S | F163: 312
A164: @TK-DVY-BC84S | B164: 800 HL Cnr Base Unit (400 Door) -SC Full | C164: Devlin Matt Dust | D164: BC84S | F164: 309
A165: @TK-DVY-BC945S | B165: 900 HL Cnr Base (450 Door) -SC Full | C165: Devlin Matt Dust | D165: =MID(A165,9,20) -> BC945S | F165: 315
A166: @TK-DVY-BCL15L | B166: Le Mans Cnr Base 1000 - 500 LH - SC Hng | C166: Devlin Matt Dust | D166: BCL15L | F166: 1004
A167: @TK-DVY-BCL15R | B167: Le Mans Cnr Base 1000 - 500 RH - SC Hng | C167: Devlin Matt Dust | D167: BCL15R | F167: 1004
A168: @TK-DVY-BCL16L | B168: Le Mans Cnr Base 1000 - 600 LH - SC Hng | C168: Devlin Matt Dust | D168: BCL16L | F168: 1058
A169: @TK-DVY-BCL16R | B169: Le Mans Cnr Base 1000 - 600 RH - SC Hng | C169: Devlin Matt Dust | D169: BCL16R | F169: 1058
A170: @TK-DVY-BCL9S | B170: 950 HL Cnr L Base -SC Full | C170: Devlin Matt Dust | D170: BCL9S | F170: 444.01
A171: @TK-DVY-BCLC9S | B171: 950 HL 3/4 Carousel Cnr L Base - SC Full | C171: Devlin Matt Dust | D171: BCLC9S | F171: 848.02
A172: @TK-DVY-BCM15L | B172: Magic Cnr Base Unit 1000 - 500 LH | C172: Devlin Matt Dust | D172: BCM15L | F172: 1023
A173: @TK-DVY-BCM15R | B173: Magic Cnr Base Unit 1000 - 500 RH | C173: Devlin Matt Dust | D173: BCM15R | F173: 1023
A174: @TK-DVY-BCM16L | B174: Magic Cnr Base Unit 1000 - 600 LH | C174: Devlin Matt Dust | D174: BCM16L | F174: 1028
A175: @TK-DVY-BCM16R | B175: Magic Cnr Base Unit 1000 - 600 RH | C175: Devlin Matt Dust | D175: BCM16R | F175: 1028
A176: @TK-DVY-BCO145S | B176: Cnr Opt Base Unit 1000-450 door-SC Full | C176: Devlin Matt Dust | D176: BCO145S | F176: 873
A177: @TK-DVY-BCO15S | B177: Cnr Opt Base Unit 1000-500 door-SC Full | C177: Devlin Matt Dust | D177: BCO15S | F177: 876
A178: @TK-DVY-BCO16S | B178: Cnr Opt Base Unit 1000-600 door-SC Full | C178: Devlin Matt Dust | D178: BCO16S | F178: 881
A179: @TK-DVY-BCO84S | B179: Cnr Opt Base Unit 800 - 400 door-SC Full | C179: Devlin Matt Dust | D179: BCO84S | F179: 862
A180: @TK-DVY-BCO945S | B180: Cnr Opt Base Unit 900 - 450 door - SC Fu | C180: Devlin Matt Dust | D180: BCO945S | F180: 868
A181: @TK-DVY-BD13S | B181: 1000 3 Drw Base Unit -SC Full | C181: Devlin Matt Dust | D181: BD13S | F181: 524.99
A182: @TK-DVY-BD53S | B182: 500 3 Drw Base Unit -SC Full | C182: Devlin Matt Dust | D182: BD53S | F182: 384.01
A183: @TK-DVY-BD54S | B183: 500 4 Drw Base Unit -SC Full | C183: Devlin Matt Dust | D183: BD54S | F183: 448.01
A184: @TK-DVY-BD62S | B184: 600 2 Pan Drw Unit -SC Full | C184: Devlin Matt Dust | D184: BD62S | F184: 325.99
A185: @TK-DVY-BD63S | B185: 600 3 Drw Base Unit -SC Full | C185: Devlin Matt Dust | D185: BD63S | F185: 403.98
A186: @TK-DVY-BD83S | B186: 800 3 Drw Base Unit -SC Full | C186: Devlin Matt Dust | D186: BD83S | F186: 484
A187: @TK-DVY-BD92S | B187: 900 2 Pan Drw Unit -SC Full | C187: Devlin Matt Dust | D187: BD92S | F187: 401
A188: @TK-DVY-BD93S | B188: 900 3 Drw Base Unit -SC Full | C188: Devlin Matt Dust | D188: BD93S | F188: 490.99
A189: @TK-DVY-BH100S | B189: 1000 HL Base Unit -SC Full | C189: Devlin Matt Dust | D189: BH100S | F189: 310.01
A190: @TK-DVY-BH15S | B190: 150 HL Base Unit -SC Full | C190: Devlin Matt Dust | D190: BH15S | F190: 164
A191: @TK-DVY-BH30S | B191: 300 HL Base Unit -SC Full | C191: Devlin Matt Dust | D191: BH30S | F191: 170
A192: @TK-DVY-BH35S | B192: 350 HL Base Unit -SC Full | C192: Devlin Matt Dust | D192: BH35S | F192: 173.02
A193: @TK-DVY-BH3BS | B193: 300 HL Base Unit & Bin -SC Full | C193: Devlin Matt Dust | D193: BH3BS | F193: 322.01
A194: @TK-DVY-BH40S | B194: 400 HL Base Unit -SC Full | C194: Devlin Matt Dust | D194: BH40S | F194: 181.01
A195: @TK-DVY-BH45S | B195: 450 HL Base Unit -SC Full | C195: Devlin Matt Dust | D195: BH45S | F195: 188
A196: @TK-DVY-BH4BS | B196: 400 HL Base Unit & Bin -SC Full | C196: Devlin Matt Dust | D196: BH4BS | F196: 388.01
A197: @TK-DVY-BH50S | B197: 500 HL Base Unit -SC Full | C197: Devlin Matt Dust | D197: =MID(A197,9,20) -> BH50S | F197: 193.01
A198: @TK-DVY-BH60S | B198: 600 HL Base Unit -SC Full | C198: Devlin Matt Dust | D198: BH60S | F198: 209
A199: @TK-DVY-BH6BS | B199: 600 HL Base Unit & Bin -SC Full | C199: Devlin Matt Dust | D199: BH6BS | F199: 634.01
A200: @TK-DVY-BH70S | B200: 700 HL Base Unit -SC Full | C200: Devlin Matt Dust | D200: BH70S | F200: 275.03
... 2496 more rows
